Workbook

Sheet Magnets
B1: Physical Properties | F1: Magnets | G1: NB057-0-N48 | J1: Electrical Properties | R1: Constants | U1: Air Coefficient | V1: Vacuum
B2: Total Engine | F2: Physical Properties | R2: Electric Permittivity | S2: =V2*U2 -> 8.858933662e-12 | T2: F/m | U2: 1.000536 | V2: 8.854187817e-12
C3: Engine mass | D3: 0.25 | E3: kg | G3: Length | H3: 0.0508 | I3: m | R3: Breakdown Voltage | S3: 3000000 | T3: V/m
G4: Width | H4: 0.0254 | I4: m | R4: c | S4: 299792458 | T4: m/s
B5: Disc | C5: Radius | D5: 0.12 | E5: m | G5: Height | H5: 0.0127 | I5: m | R5: c^2 | S5: =[1]!xpow(S4,2,250) -> 89875517873681764
C6: Physical Area | D6: =PI()*$D$5^2 -> 0.04523893421 | E6: m^2 | G6: Physical Area | H6: =H3*H4 -> 0.00129032 | I6: m^2 | R6: g | S6: 9.8 | T6: m/s^2
C7: spin | D7: 3000 | E7: rpm
D8: =D7/60 -> 50 | E8: rps
B10: Between Discs | F10: Field | J10: Field
C11: Separation Between Discs | D11: 0.015 | E11: m | G11: B Strenght | H11: =14200/10000 -> 1.42 | I11: T | K11: Voltage Between Plates | L11: 30000 | M11: V
C12: Mid Separation | D12: =D11/2 -> 0.0075 | E12: m | G12: Mag Field Spread (Equivalent # of Magnets) | H12: 6 | K12: E Strenght | L12: =L11/D11 -> 2000000 | M12: V/m
G13: Mag Area | H13: =H6*H12 -> 0.00774192 | I13: m^2
B15: Model Position | F15: Typical Magnets | K15: EM Calculations
C16: delta | D16: 0.0005 | E16: m | G16: Typical High | H16: 0.01 | I16: T | K16: 2e/m | L16: =[1]!xdiv([1]!xmult(2,S2,250),D3,250) -> 0.00000000007087146929335928
C17: Max Height | D17: =D12+D16 -> 0.008 | E17: m | G17: Typical Low | H17: 10 | I17: T | K17: BE | L17: =[1]!xmult($H$11,$L$12,250) -> 2840000
C18: Min Height | D18: =D12 -> 0.0075 | E18: m | K18: (2e/m)BE | L18: =[1]!xmult(L16,L17,250) -> 0.0002012749727931403552
B20: Results | F20: Results
C21: Force | D21: =D3*S6 -> 2.45 | E21: N | G21: Force | H21: =D21*D50 -> -0.002280286868 | I21: N
C22: Grav: F/area | D22: =D21/$D$6 -> 54.15689036 | E22: Pa | G22: Mag: F/Area | H22: =ABS((H21/H6)*H12) -> 10.60335514 | I22: Pa
G23: # of magnets | H23: =ROUNDUP(D22/H22,0) -> 6
D27: Distance From Center | F27: Intervals | G27: =(D30-D29)/12 -> 0.004233333333 | H27: m
C28: Magnet Position | E28: =D29 -> 0.0692 | F28: =E28+$G$27 -> 0.07343333333 | G28: 0.07766666667 | H28: 0.0819 | I28: 0.08613333333 | J28: 0.09036666667 | K28: 0.0946 | L28: 0.09883333333 | M28: 0.1030666667 | N28: 0.1073 | O28: 0.1115333333 | P28: 0.1157666667 | Q28: 0.12
C29: Inner Radius | D29: =D30-H3 -> 0.0692 | E29: =IF(AND($D$29>=E28,$D$29<F28),1,"") -> 1 | F29: =IF(AND($D$29>=F28,$D$29<G28),1,"") ->  | G29: =IF(AND($D$29>=G28,$D$29<H28),1,"") ->  | O29: =IF(AND($D$29>=O28,$D$29<P28),1,"") ->  | R29: =SUMPRODUCT($E$29:$Q$29,$E$28:$Q$28) -> 0.0692
C30: Outer Radius | D30: =D5 -> 0.12 | E30: =IF(AND($D$30>=E28,$D$30<=F28),1,"") ->  | F30: =IF(AND($D$30>=F28,$D$30<=G28),1,"") ->  | O30: =IF(AND($D$30>=O28,$D$30<=P28),1,"") ->  | P30: =IF(AND($D$30>=P28,$D$30<=Q28),1,"") -> 1 | R30: =SUMPRODUCT($E$30:$Q$30,$E$28:$Q$28) -> 0.1157666667
C31: Length | E31: =IF(OR(E28<$R$29,E28>$R$30),"",1) -> 1 | F31: 1 | G31: 1 | H31: 1 | I31: 1 | J31: 1 | K31: 1 | L31: 1 | M31: 1 | N31: 1 | O31: 1 | P31: 1
C33: Field Calculations
C34: Tangential Velocity | E34: =IF(E$31=1,[1]!xmult(E28,$D$8,250),"") -> 3.46 | F34: =IF(F$31=1,[1]!xmult(F28,$D$8,250),"") -> 3.671666666666665 | G34: =IF(G$31=1,[1]!xmult(G28,$D$8,250),"") -> 3.883333333333335 | H34: =IF(H$31=1,[1]!xmult(H28,$D$8,250),"") -> 4.095 | I34: =IF(I$31=1,[1]!xmult(I28,$D$8,250),"") -> 4.30666666666667 | J34: =IF(J$31=1,[1]!xmult(J28,$D$8,250),"") -> 4.518333333333335 | K34: =IF(K$31=1,[1]!xmult(K28,$D$8,250),"") -> 4.73 | L34: =IF(L$31=1,[1]!xmult(L28,$D$8,250),"") -> 4.94166666666667 | M34: =IF(M$31=1,[1]!xmult(M28,$D$8,250),"") -> 5.15333333333335 | N34: =IF(N$31=1,[1]!xmult(N28,$D$8,250),"") -> 5.365 | O34: =IF(O$31=1,[1]!xmult(O28,$D$8,250),"") -> 5.57666666666665 | P34: =IF(P$31=1,[1]!xmult(P28,$D$8,250),"") -> 5.78833333333335 | Q34: =IF(Q$31=1,[1]!xmult(Q28,$D$8,250),"") -> 
C35: Magnetic | E35: =IF(E$31=1,$H$11,"") -> 1.42 | F35: 1.42 | G35: 1.42 | H35: 1.42 | I35: 1.42 | J35: 1.42 | K35: 1.42 | L35: 1.42 | M35: 1.42 | N35: 1.42 | O35: 1.42 | P35: 1.42
C36: Electric | E36: =IF(E$31=1,$L$12,"") -> 2000000 | F36: 2000000 | G36: 2000000 | H36: 2000000 | I36: 2000000 | J36: 2000000 | K36: =IF(K$31=1,$L$12,"") -> 2000000 | L36: =IF(L$31=1,$L$12,"") -> 2000000 | M36: 2000000 | N36: 2000000 | O36: 2000000 | P36: 2000000
C38: v(H) | E38: =IF(E$31=1,[1]!xadd([1]!xmult($L$18,$D$17,250),E34,250),"") -> 3.4600016101997823451228416 | F38: =IF(F$31=1,[1]!xadd([1]!xmult($L$18,$D$17,250),F34,250),"") -> 3.6716682768664473451228416 | G38: =IF(G$31=1,[1]!xadd([1]!xmult($L$18,$D$17,250),G34,250),"") -> 3.8833349435331173451228416 | H38: =IF(H$31=1,[1]!xadd([1]!xmult($L$18,$D$17,250),H34,250),"") -> 4.0950016101997823451228416 | I38: =IF(I$31=1,[1]!xadd([1]!xmult($L$18,$D$17,250),I34,250),"") -> 4.3066682768664523451228416 | J38: =IF(J$31=1,[1]!xadd([1]!xmult($L$18,$D$17,250),J34,250),"") -> 4.5183349435331173451228416 | K38: =IF(K$31=1,[1]!xadd([1]!xmult($L$18,$D$17,250),K34,250),"") -> 4.7300016101997823451228416 | L38: =IF(L$31=1,[1]!xadd([1]!xmult($L$18,$D$17,250),L34,250),"") -> 4.9416682768664523451228416 | M38: =IF(M$31=1,[1]!xadd([1]!xmult($L$18,$D$17,250),M34,250),"") -> 5.1533349435331323451228416 | N38: =IF(N$31=1,[1]!xadd([1]!xmult($L$18,$D$17,250),N34,250),"") -> 5.3650016101997823451228416 | O38: =IF(O$31=1,[1]!xadd([1]!xmult($L$18,$D$17,250),O34,250),"") -> 5.5766682768664323451228416 | P38: =IF(P$31=1,[1]!xadd([1]!xmult($L$18,$D$17,250),P34,250),"") -> 5.7883349435331323451228416 | Q38: =IF(Q$31=1,[1]!xadd([1]!xmult($L$18,$D$17,250),Q34,250),"") -> 
C39: v(L) | E39: =IF(E$31=1,[1]!xadd([1]!xmult($L$18,$D$18,250),E34,250),"") -> 3.460001509562295948552664 | F39: =IF(F$31=1,[1]!xadd([1]!xmult($L$18,$D$18,250),F34,250),"") -> 3.671668176228960948552664 | G39: =IF(G$31=1,[1]!xadd([1]!xmult($L$18,$D$18,250),G34,250),"") -> 3.883334842895630948552664 | H39: =IF(H$31=1,[1]!xadd([1]!xmult($L$18,$D$18,250),H34,250),"") -> 4.095001509562295948552664 | I39: =IF(I$31=1,[1]!xadd([1]!xmult($L$18,$D$18,250),I34,250),"") -> 4.306668176228965948552664 | J39: =IF(J$31=1,[1]!xadd([1]!xmult($L$18,$D$18,250),J34,250),"") -> 4.518334842895630948552664 | K39: =IF(K$31=1,[1]!xadd([1]!xmult($L$18,$D$18,250),K34,250),"") -> 4.730001509562295948552664 | L39: =IF(L$31=1,[1]!xadd([1]!xmult($L$18,$D$18,250),L34,250),"") -> 4.941668176228965948552664 | M39: =IF(M$31=1,[1]!xadd([1]!xmult($L$18,$D$18,250),M34,250),"") -> 5.153334842895645948552664 | N39: =IF(N$31=1,[1]!xadd([1]!xmult($L$18,$D$18,250),N34,250),"") -> 5.365001509562295948552664 | O39: =IF(O$31=1,[1]!xadd([1]!xmult($L$18,$D$18,250),O34,250),"") -> 5.576668176228945948552664 | P39: =IF(P$31=1,[1]!xadd([1]!xmult($L$18,$D$18,250),P34,250),"") -> 5.788334842895645948552664 | Q39: =IF(Q$31=1,[1]!xadd([1]!xmult($L$18,$D$18,250),Q34,250),"") -> 
C40: Delta v | E40: =IF(E$31=1,[1]!xsub(E38,E39,250),"") -> 0.0000001006374863965701776 | F40: =IF(F$31=1,[1]!xsub(F38,F39,250),"") -> 0.0000001006374863965701776 | G40: =IF(G$31=1,[1]!xsub(G38,G39,250),"") -> 0.0000001006374863965701776 | H40: =IF(H$31=1,[1]!xsub(H38,H39,250),"") -> 0.0000001006374863965701776 | I40: =IF(I$31=1,[1]!xsub(I38,I39,250),"") -> 0.0000001006374863965701776 | J40: =IF(J$31=1,[1]!xsub(J38,J39,250),"") -> 0.0000001006374863965701776 | K40: =IF(K$31=1,[1]!xsub(K38,K39,250),"") -> 0.0000001006374863965701776 | L40: =IF(L$31=1,[1]!xsub(L38,L39,250),"") -> 0.0000001006374863965701776 | M40: =IF(M$31=1,[1]!xsub(M38,M39,250),"") -> 0.0000001006374863965701776 | N40: =IF(N$31=1,[1]!xsub(N38,N39,250),"") -> 0.0000001006374863965701776 | O40: =IF(O$31=1,[1]!xsub(O38,O39,250),"") -> 0.0000001006374863965701776 | P40: =IF(P$31=1,[1]!xsub(P38,P39,250),"") -> 0.0000001006374863965701776 | Q40: =IF(Q$31=1,[1]!xsub(Q38,Q39,250),"") -> 
C42: v(H)^2 | E42: =IF(E$31=1,[1]!xpow(E38,2,250),"") -> 11.97161114258508657158912815297273419083819405869056 | F42: =IF(F$31=1,[1]!xpow(F38,2,250),"") -> 13.48114793534742663657465265325658378136619405869056 | G42: =IF(G$31=1,[1]!xpow(G38,2,250),"") -> 15.08029028366535967935405692913888460031019405869056 | H42: =IF(H$31=1,[1]!xpow(H38,2,250),"") -> 16.76903818753881014989513698497273419083819405869056 | I42: =IF(I$31=1,[1]!xpow(I38,2,250),"") -> 18.54739164696785783156343014975503500978219405869056 | J42: =IF(J$31=1,[1]!xpow(J38,2,250),"") -> 20.41535066195241870766006576113888460031019405869056 | K42: =IF(K$31=1,[1]!xpow(K38,2,250),"") -> 22.37291523249253372820114581697273419083819405869056 | L42: =IF(L$31=1,[1]!xpow(L38,2,250),"") -> 24.42008535858825230986943898175503500978219405869056 | M42: =IF(M$31=1,[1]!xpow(M38,2,250),"") -> 26.55686104023963233601438058688423828555819405869056 | N42: =IF(N$31=1,[1]!xpow(N38,2,250),"") -> 28.78324227744625730650715464897273419083819405869056 | O42: =IF(O$31=1,[1]!xpow(O38,2,250),"") -> 31.09922907020842372144437315606123009611819405869056 | P42: =IF(P$31=1,[1]!xpow(P38,2,250),"") -> 33.50482141852671041432038941888423828555819405869056 | Q42: =IF(Q$31=1,[1]!xpow(Q38,2,250),"") -> 
C43: v(L)^2 | E43: =IF(E$31=1,[1]!xpow(E39,2,250),"") -> 11.971610446173366742309784345698692159916381496896 | F43: =IF(F$31=1,[1]!xpow(F39,2,250),"") -> 13.481147196332504232747602453603863651036381496896 | G43: =IF(G$31=1,[1]!xpow(G39,2,250),"") -> 15.080289502047234700978293962243520668796381496896 | H43: =IF(H$31=1,[1]!xpow(H39,2,250),"") -> 16.769037363317482596971667625698692159916381496896 | I43: =IF(I$31=1,[1]!xpow(I39,2,250),"") -> 18.547390780143327704091248023238349177676381496896 | J43: =IF(J$31=1,[1]!xpow(J39,2,250),"") -> 20.415349752524686005640177242243520668796381496896 | K43: =IF(K$31=1,[1]!xpow(K39,2,250),"") -> 22.372914280461598451633550905698692159916381496896 | L43: =IF(L$31=1,[1]!xpow(L39,2,250),"") -> 24.420084363954114458753131303238349177676381496896 | M43: =IF(M$31=1,[1]!xpow(M39,2,250),"") -> 26.556860003002291910347347391396977248716381496896 | N43: =IF(N$31=1,[1]!xpow(N39,2,250),"") -> 28.783241197605714306295434185698692159916381496896 | O43: =IF(O$31=1,[1]!xpow(O39,2,250),"") -> 31.099227947764678146687965425000407071116381496896 | P43: =IF(P$31=1,[1]!xpow(P39,2,250),"") -> 33.504820253479762265009230671396977248716381496896 | Q43: =IF(Q$31=1,[1]!xpow(Q39,2,250),"") -> 
C44: delta | E44: =IF(E$31=1,[1]!xsub(E42,E43,250),"") -> 0.00000069641171982927934380727404203092181256179456 | F44: =IF(F$31=1,[1]!xsub(F42,F43,250),"") -> 0.00000073901492240382705019965272013032981256179456 | G44: =IF(G$31=1,[1]!xsub(G42,G43,250),"") -> 0.00000078161812497837576296689536393151381256179456 | H44: =IF(H$31=1,[1]!xsub(H42,H43,250),"") -> 0.00000082422132755292346935927404203092181256179456 | I44: =IF(I$31=1,[1]!xsub(I42,I43,250),"") -> 0.00000086682453012747218212651668583210581256179456 | J44: =IF(J$31=1,[1]!xsub(J42,J43,250),"") -> 0.00000090942773270201988851889536393151381256179456 | K44: =IF(K$31=1,[1]!xsub(K42,K43,250),"") -> 0.00000095203093527656759491127404203092181256179456 | L44: =IF(L$31=1,[1]!xsub(L42,L43,250),"") -> 0.00000099463413785111630767851668583210581256179456 | M44: =IF(M$31=1,[1]!xsub(M42,M43,250),"") -> 0.00000103723734042566703319548726103684181256179456 | N44: =IF(N$31=1,[1]!xsub(N42,N43,250),"") -> 0.00000107984054300021172046327404203092181256179456 | O44: =IF(O$31=1,[1]!xsub(O42,O43,250),"") -> 0.00000112244374557475640773106082302500181256179456 | P44: =IF(P$31=1,[1]!xsub(P42,P43,250),"") -> 0.00000116504694814931115874748726103684181256179456 | Q44: =IF(Q$31=1,[1]!xsub(Q42,Q43,250),"") -> 
C46: Transformation(H) | E46: =IF(E$31=1,[1]!xsqr([1]!xsub(1,[1]!xdiv(E42,$S$5,250),250),250),"") -> 0.9999999999999999333989309557528998886149531820361488705551709866003883487652903201176224559477626413449330770820131652291057838161457295227259297994199474588109304673624101002181357488362011490559876062708885576784952024042705778459338965346709677915 | F46: =IF(F$31=1,[1]!xsqr([1]!xsub(1,[1]!xdiv(F42,$S$5,250),250),250),"") -> 0.9999999999999999250009999703428139733701078532901585935811667583733674077995135626293896652357901613786418672583802000784099700969113790253770506489238972757846792908862092267435524946712882538317133936647425758129703641358378672531597248633386335705 | G46: =IF(G$31=1,[1]!xsqr([1]!xsub(1,[1]!xdiv(G42,$S$5,250),250),250),"") -> 0.9999999999999999161045708528744972096098216591340938405228698907756408925432226803702849978203931519431128225064382161502212691556983999735992133963408577377836521363280080782420936506466516744574327625899930400134434153862088332132447462065406758215 | H46: =IF(H$31=1,[1]!xsqr([1]!xsub(1,[1]!xdiv(H42,$S$5,250),250),250),"") -> 0.999999999999999906709643603348369887767367850639066654500290727678012180845354722982446991592816004169418486754240480220560984044059982516270447071730120459244220389009245345807913206743263187597464508550976376053510855342386144408102971642003176041 | I46: =IF(I$31=1,[1]!xsqr([1]!xsub(1,[1]!xdiv(I42,$S$5,250),250),250),"") -> 0.999999999999999896816218221763988138961999096448543806465729180813099040328488434597057704911717715428518594375341259388888799659801797915974324840711409211988301283856131353949608668779374125601035428630216269994366031940262002360153923042773033867 | J46: =IF(J$31=1,[1]!xsqr([1]!xsub(1,[1]!xdiv(J42,$S$5,250),250),250),"") -> 0.9999999999999998864242947081218193543216925916865375759028731040070501150781707857527662799923890637265601091702549210342631670930107885598278820266253728000346692925819245934713389342553775040074340034416882056108916830476275981741869465915433329195 | K46: =IF(K$31=1,[1]!xsqr([1]!xsub(1,[1]!xdiv(K42,$S$5,250),250),250),"") -> 0.999999999999999875533873062421635703116828533793382259783075936240160616069486097891903167523079269495906033642406939981825240190254511071049725921081248018560694437192604678569192500483024024129455080352472761084961061149088426786645262841312217144 | L46: =IF(L$31=1,[1]!xsqr([1]!xsub(1,[1]!xdiv(L42,$S$5,250),250),250),"") -> 0.999999999999999864144953284663162251686579687443084153561954384025403553591114372449777421236641680010084883182656016673001481485547308383451490005375576003023423118799991170306227671818496950549606718355800248551952091627144366323728342513412404522 | M46: =IF(M$31=1,[1]!xsqr([1]!xsub(1,[1]!xdiv(M42,$S$5,250),250),250),"") -> 0.999999999999999852257535374846076963438911383148573588040755483761747299239558290928748805743171381850480681027868988996592072497044116138467592301461615888932096726964540429893199301770100593963299434109519957794464702884488970556603385806334630642 | N46: =IF(N$31=1,[1]!xsqr([1]!xsub(1,[1]!xdiv(N42,$S$5,250),250),250),"") -> 0.9999999999999998398716193329726969150546239682182984883430138653632974271116017135064237006195029511474872575713274411153219369216565256752071338029145768786794817953986366244360431560510746409182668567882179207028184465352349374059995367717745797995 | O46: =IF(O$31=1,[1]!xsqr([1]!xsub(1,[1]!xdiv(O42,$S$5,250),250),250),"") -> 0.999999999999999826987205159041372583765073251456521652903552340381659798291324587163405089181718618336610458744421464089228555813046844134848751367624649813525065079309478951399472400791054210885886654212933544781818920958374170813338160295072600285 | P46: =IF(P$31=1,[1]!xsqr([1]!xsub(1,[1]!xdiv(P42,$S$5,250),250),250),"") -> 0.999999999999999813604292853048883754702000422081021765089645167546193780941948514006228847554121856088654527716712233472865520139770314876210617624512284389419984000276637441194752110158411453787805226190108463235464164027364130865456416202806884001 | Q46: =IF(Q$31=1,[1]!xsqr([1]!xsub(1,[1]!xdiv(Q42,$S$5,250),250),250),"") -> 
C47: Transformation(L) | E47: =IF(E$31=1,[1]!xsqr([1]!xsub(1,[1]!xdiv(E43,$S$5,250),250),250),"") -> 0.999999999999999933398934830065595410837595673967347213806159218898026381935095083942078700319962012958042929670236231333993120164815614780680926130323180302244811395682807506250735487686335963090135095199299295881754384172242638478874398569716433088 | F47: =IF(F$31=1,[1]!xsqr([1]!xsub(1,[1]!xdiv(F43,$S$5,250),250),250),"") -> 0.9999999999999999250010040816677881587636337560854145971758201256370458026040754362653582998394473205962196877607161928985633786522740953384787649878237655807509661800372422963072729117581020626119159084244933212839186130623848493218313888205054113445 | G47: =IF(G$31=1,[1]!xsqr([1]!xsub(1,[1]!xdiv(G43,$S$5,250),250),250),"") -> 0.9999999999999999161045752012117500581798358365008792040523079941301448987273152682185292565629899841454932555468165957968121530339324597021922766204627632174516589391733093646006141139129236764427613483551058064013021063320594423395195333532561394495 | H47: =IF(H$31=1,[1]!xsqr([1]!xsub(1,[1]!xdiv(H43,$S$5,250),250),250),"") -> 0.9999999999999999067096481886979013995082780902473637330532438026880748855271044718847203424073926076714062834163309949886731438165471039903796693482839675870854920198727800585775833726542608008253057781671683038440841049492549653335312573742936766875 | I47: =IF(I$31=1,[1]!xsqr([1]!xsub(1,[1]!xdiv(I43,$S$5,250),250),250),"") -> 0.999999999999999896816223044125798313879410970906893430392430757177605409934712272430679516101837286783889284466166608595790837728769937627841428422883388076859428497123415498205883113210567311348647224146374518147815851111929275996526927646661983913 | J47: =IF(J$31=1,[1]!xsqr([1]!xsub(1,[1]!xdiv(J43,$S$5,250),250),250),"") -> 0.999999999999999886424299767495908192410014597565991230420072986035261880236289595334622753788962543040639594348508700743820668457692231600237176595982557362898236669433246645147306094295128082605104114828426126514502881712425554131787596187164576246 | K47: =IF(K$31=1,[1]!xsqr([1]!xsub(1,[1]!xdiv(K43,$S$5,250),250),250),"") -> 0.9999999999999998755338783588080032043760682373595379504156121447776420456199461392739633053934013375683633396395664696000646086189900073009225806381673611998253322813900453168950883428972135909182362514249118794767989694623387744102278193272176954505 | L47: =IF(L$31=1,[1]!xsqr([1]!xsub(1,[1]!xdiv(L43,$S$5,250),250),250),"") -> 0.999999999999999864144958818061808416122343724656086406857732466662853588142825681263314121501696466741877614937210706594803455652893029176793755710023267848350677918556276786736890981470581199603511843623343099190531020648422606813205214107325347 | M47: =IF(M$31=1,[1]!xsqr([1]!xsub(1,[1]!xdiv(M43,$S$5,250),250),250),"") -> 0.9999999999999998522575411452570017910624054596631134523694589481697384464440537432333645029284260814167326060517257562750020901529034860151644402659363912361572324688354662715215825797170118761187914126232328787078579587218794742697109185750160483895 | N47: =IF(N$31=1,[1]!xsqr([1]!xsub(1,[1]!xdiv(N43,$S$5,250),250),250),"") -> 0.999999999999999839871625340395900405832264422187505928823796726818510096324795869980682898341697975058988634876866858700484758626633444632989439302129244653298931128748209531089412587097283339933031545304861305035393366643113413162557663155090448067 | O47: =IF(O$31=1,[1]!xsqr([1]!xsub(1,[1]!xdiv(O43,$S$5,250),250),250),"") -> 0.999999999999999826987211403476854737696869066948132934650945566687699375065300482395698104763284978601113281105167163164714654302807555986099192062429998449307088927326435984509711812896807414441615568055596286235152507264730969068302424094629662901 | P47: =IF(P$31=1,[1]!xsqr([1]!xsub(1,[1]!xdiv(P43,$S$5,250),250),250),"") -> 0.9999999999999998136042993344966445718439480900534272849404902929652976305824335908980023603759809268577328607319608220051977232091415769788956859380497338062735523253842380787464964957981252315872170011143512170441973234456694887953253404371874784055 | Q47: =IF(Q$31=1,[1]!xsqr([1]!xsub(1,[1]!xdiv(Q43,$S$5,250),250),250),"") -> 
C48: delta | E48: =IF(E$31=1,[1]!xsub(E46,E47,250),"") -> -0.0000000000000000000000038743126955222226424919311983432509882322976380331698047638244562443721993716131098525882230661048873363486698852579549963309032328434338809283203974060325997388501348140341474889284107382032591817679720606329405020350454652965 | F48: =IF(F$31=1,[1]!xsub(F46,F47,250),"") -> -0.000000000000000000000004111324974185393525902795256003594653367263678394804561873635968634603657159217577820502335992820153408555362716313101714338899868304966286889151033069563720417086813808780202514759750745470948248926546982068671663957166777774 | G48: =IF(G$31=1,[1]!xsub(G46,G47,250),"") -> -0.000000000000000000000004348337252848570014177366785363529438103354504006184092587848244258742596832202380433040378379646590883878234059728593063224121905479668006802845301286358520463266272001985328585765112766387858690945850609126274787146715463628 | H48: =IF(H$31=1,[1]!xsub(H46,H47,250),"") -> -0.0000000000000000000000045853495315117409102396082970785529530750100627046817497489022733508145766035019877966620905147681121597724871214741092222765538471278412716308635347127696701659109976132278412696161919277905732496068688209254282857322905006465 | I48: =IF(I$31=1,[1]!xsub(I46,I47,250),"") -> -0.000000000000000000000004822361810174917411874458349623926701576364506369606223837833621811190119571355370690090825349206902038068968139711867103582171978864871127213267284144256274444431193185747611795516158248153449819171667273636373004603888950046 | J48: =IF(J$31=1,[1]!xsub(J46,J47,250),"") -> -0.0000000000000000000000050593740888380883220058794536545171998820282117651581188095818564737965734793140794851782537797095575013646814430404092945693571845628635673768513220516759671600397505785976701113867379209036111986647979559576006495956212433265 | K48: =IF(K$31=1,[1]!xsub(K46,K47,250),"") -> -0.0000000000000000000000052963863675012592397035661556906325362085374814295504600413820601378703220680724573059971595296182393684287354962298728547170861131812646378441974406383258958424141895667887811710724391183918379083132503476235825564859054783065 | L48: =IF(L$31=1,[1]!xsub(L46,L47,250),"") -> -0.000000000000000000000005533398646164435764037213002253295778082637450034551711308813536700265054786731792731754554689921801974167345720793342265704647691845327254799756285616430663309652084249053905125267542850638578929021278240489476871593912942478 | M48: =IF(M$31=1,[1]!xsub(M46,M47,250),"") -> -0.0000000000000000000000057704109248276234940765145398643287034644079911472044954523046156971852546995662519250238567672784100176558593698766968479644747753472251357418709258416283832779469112821554919785137129209133932558373905037131075327686814177475 | N48: =IF(N$31=1,[1]!xsub(N46,N47,250),"") -> -0.0000000000000000000000060074232034907776404539692074404807828614552126692131941564742591977221950239115013773055394175851628217049769189577823054992146677746194493333495729066533694310462086990147646885166433843325749201078784757565581263833158682675 | O48: =IF(O$31=1,[1]!xsub(O46,O47,250),"") -> -0.000000000000000000000006244435482153931795815491611281747393226306039576773975895232293015581566360264502822360745699075486098489760711851250440694805348635782023848016957033110239412105753203555728913842662741453333586306356798254964263799557062616 | P48: =IF(P$31=1,[1]!xsub(P46,P47,250),"") -> -0.0000000000000000000000064814477608171419476679724055198508451254191038496404850768917735128218590707690783330152485885323322030693712621026850683135374494168535683251076006375517443856397137777994117749242427538087331594183053579298689242343805944045 | Q48: =IF(Q$31=1,[1]!xsub(Q46,Q47,250),"") -> 
C49: Avg g At Any Point | E49: =IF(E$31=1,[1]!xmult([1]!xdiv(E48,$D$16,250),$S$5,250),"") -> -0.000696411719829279390189037728545242062326608134419294083043582142879601168153749443183059587355425121239202192350484513216127641494711544128575406569130667122366533613666551085954369717250895027867032718270934358686974283355274105215461893806052 | F49: =IF(F$31=1,[1]!xmult([1]!xdiv(F48,$D$16,250),$S$5,250),"") -> -0.000739014922403827105625031388246808550251741562131868521010906118807672411895609251499643645794172351703882056823976852680196114441940349778923566812556109366743135797978700166139946757500825743899711782363826136538048068117021150100011568626672 | G49: =IF(G$31=1,[1]!xmult([1]!xdiv(G48,$D$16,250),$S$5,250),"") -> -0.000781618124978375828541081688794324126211352532459803887791953427582374703336995711224699151260968322597866276942356341751496880383683649297660565697684012240241936633999235260314917743462746596067536731663576580906881588523857056177489177759584 | H49: =IF(H$31=1,[1]!xmult([1]!xdiv(H48,$D$16,250),$S$5,250),"") -> -0.000824221327552923546251173549493062351860238919551539412961448348358214555376251430575226883070019577536687622330236407510846710439272402720762799978098427260918417130885451822669250763470863357209938832082639189487218683258947753236211554520852 | I49: =IF(I$31=1,[1]!xmult([1]!xdiv(I48,$D$16,250),$S$5,250),"") -> -0.000866824530127472271568747752456416970636482984460715750171659645096561034048553681875942487681218250943901608733616847049866005522749272198285392980956013400521660387166349416961572132273400740053162931777338865552490629921640554485836594322288 | J49: =IF(J$31=1,[1]!xmult([1]!xdiv(J48,$D$16,250),$S$5,250),"") -> -0.000909427732702019991807789216989548104330048916604500136935014985769758640921406503587344463740510698413945385111370580255389273170163206774946830113677336388161647904937184228663771127453582317673175495864023695422653146289852800483691739495892 | K49: =IF(K$31=1,[1]!xmult([1]!xdiv(K48,$D$16,250),$S$5,250),"") -> -0.000952030935276567713406874759503817214486507996935655290618587883410764755548066294963037188984348404385387119396725949820594989336721252380688351901939971854009005961003863685793784838118338090042658075519760580063883474548052329022769173305332 | L49: =IF(L$31=1,[1]!xmult([1]!xdiv(L48,$D$16,250),$S$5,250),"") -> -0.000994634137851116442804581196410714280922979479508816456071526726706075510654714313891463518777246389597050527624046496653657470661528097538938545517549009815894117762932156375353984802675906367742165191702050766467159415832739145724745219142384 | M49: =IF(M$31=1,[1]!xmult([1]!xdiv(M48,$D$16,250),$S$5,250),"") -> -0.00103723734042566718643948534412187285248423676324380662410937206686554062943711819945644019476203266941158787646457560942934575706538126568929812639421476450043721340776956323492660676958886476426805180930087564118325019204595875784593831341318 | N49: =IF(N$31=1,[1]!xmult([1]!xdiv(N48,$D$16,250),$S$5,250),"") -> -0.00107984054300021189337638832772875007009303840397897528723973566981058042059321605135794914025066415729091450259271763901602902829511353586808618714625796828640627759399754795469736228392475930281253708658528760592949174558452391160950928204774 | O49: =IF(O$31=1,[1]!xmult([1]!xdiv(O48,$D$16,250),$S$5,250),"") -> -0.001122443745574756601928186792153753218202911833647091468274038481718621822567833525662853163025266101363703528053739862070244039321110042153450783771106286183615513482007749709575749356160593234579705544697988427325876597750253945458714010669248 | P49: =IF(P$31=1,[1]!xmult([1]!xdiv(P48,$D$16,250),$S$5,250),"") -> -0.001165046948149311375907233245129560132052881190372460185502139045330612502065314377907004345660841610907388093798516151652495279471971665933706182533183808053311469898655269093314820196142020493974659190637267390516629236110221495463586384179076 | Q49: =IF(Q$31=1,[1]!xmult([1]!xdiv(Q48,$D$16,250),$S$5,250),"") -> 
C50: value | D50: =AVERAGE(E50:Q50) -> -0.000930729334 | E50: =IF(E$31=1,VALUE(E49),"") -> -0.0006964117198 | F50: -0.0007390149224 | G50: -0.000781618125 | H50: -0.0008242213276 | I50: -0.0008668245301 | J50: -0.0009094277327 | K50: -0.0009520309353 | L50: -0.0009946341379 | M50: -0.00103723734 | N50: -0.001079840543 | O50: -0.001122443746 | P50: -0.001165046948
B55: Assumptions
B56: 1 | C56: Quick & dirty crude odel to design engine
B57: =B56+1 -> 2 | C57: To calculate the number of bar magnets required, cell H23
B58: =B57+1 -> 3 | C58: Electric field between lower and upper discs
B59: 4 | C59: Magnets on lower disc
B60: 5 | C60: Magnets are placed radially from the outer edge of lower disc
B61: 6 | C61: Magnetic field spread is how many times the field spreads out from the bar magnets
B62: 7 | C62: Magentic field spread is equivalent to having that much more bar magnets
B63: 8 | C63: Use even number of magnets to facilitate dynamic stability
B64: 9 | C64: There are 2 fudge factors, because I am using an approximation of the magnetic field to kee everything simple Magnets!H12, and Model!M9
J1776: solomon

Sheet Model
C6: Field Strengths
C7: Magnetic, B | D7: =Magnets!H11 -> 1.42 | E7: T | I7: Mag Height | J7: =Magnets!H5 -> 0.0127 | K7: m
C8: Electric, E | D8: =Magnets!L12 -> 2000000 | E8: V/m | I8: 1/2 Height | J8: =J7/2 -> 0.00635 | K8: m
C9: (2e/m)BE | D9: =Magnets!L18 -> 0.0002012749727931403552 | I9: B*r^2 | J9: =D7*M9^2 -> 0.000221875 | L9: Fudge Factor | M9: 0.0125 | N9: to realign B strengths
C10: (2e/m)E | D10: =[1]!xmult(D9,D7,250) -> 0.000285810461366259304384 | I10: Max Height | J10: =Magnets!D11 -> 0.015 | K10: m
C11: Opposite velocities | D11: -1 | I11: Engine Mass | J11: =Magnets!D3 -> 0.25 | K11: kg
I12: Spin | J12: =Magnets!D8 -> 50 | K12: rps
C13: c^2 | D13: =Magnets!S4 -> 299792458
C14: c^2 | D14: =Magnets!S5 -> 89875517873681764
U15: V(H)^2 | W15: Tangential Velocity | X15: =IF(Magnets!E34="","",VALUE(Magnets!E34)) -> 3.46 | Y15: =IF(Magnets!F34="","",VALUE(Magnets!F34)) -> 3.671666667 | Z15: =IF(Magnets!G34="","",VALUE(Magnets!G34)) -> 3.883333333 | AA15: =IF(Magnets!H34="","",VALUE(Magnets!H34)) -> 4.095 | AB15: =IF(Magnets!I34="","",VALUE(Magnets!I34)) -> 4.306666667 | AC15: =IF(Magnets!J34="","",VALUE(Magnets!J34)) -> 4.518333333 | AD15: =IF(Magnets!K34="","",VALUE(Magnets!K34)) -> 4.73 | AE15: =IF(Magnets!L34="","",VALUE(Magnets!L34)) -> 4.941666667 | AF15: =IF(Magnets!M34="","",VALUE(Magnets!M34)) -> 5.153333333 | AG15: =IF(Magnets!N34="","",VALUE(Magnets!N34)) -> 5.365 | AH15: =IF(Magnets!O34="","",VALUE(Magnets!O34)) -> 5.576666667 | AI15: =IF(Magnets!P34="","",VALUE(Magnets!P34)) -> 5.788333333 | AJ15: =IF(Magnets!Q34="","",VALUE(Magnets!Q34)) ->  | AN15: V(H) Transformation | AP15: Tangential Velocity | AQ15: =X15 -> 3.46 | AR15: =Y15 -> 3.671666667 | AS15: 3.883333333 | AT15: 4.095 | AU15: 4.306666667 | AV15: 4.518333333 | AW15: 4.73 | AX15: 4.941666667 | AY15: 5.153333333 | AZ15: 5.365 | BA15: 5.576666667 | BB15: 5.788333333
W16: Distance From Center | X16: =Magnets!E28 -> 0.0692 | Y16: =Magnets!F28 -> 0.07343333333 | Z16: =Magnets!G28 -> 0.07766666667 | AA16: =Magnets!H28 -> 0.0819 | AB16: =Magnets!I28 -> 0.08613333333 | AC16: =Magnets!J28 -> 0.09036666667 | AD16: =Magnets!K28 -> 0.0946 | AE16: =Magnets!L28 -> 0.09883333333 | AF16: =Magnets!M28 -> 0.1030666667 | AG16: =Magnets!N28 -> 0.1073 | AH16: =Magnets!O28 -> 0.1115333333 | AI16: =Magnets!P28 -> 0.1157666667 | AJ16: =Magnets!Q28 -> 0.12 | AP16: Distance From Center | AQ16: =X16 -> 0.0692 | AR16: 0.07343333333 | AS16: 0.07766666667 | AT16: 0.0819 | AU16: 0.08613333333 | AV16: 0.09036666667 | AW16: 0.0946 | AX16: 0.09883333333 | AY16: 0.1030666667 | AZ16: 0.1073 | BA16: 0.1115333333 | BB16: 0.1157666667
V17: B | W17: Height | AO17: B | AP17: Height
U18: Increments | V18: =IF(W18="","",J$9/W18^2) -> 0.9861111111 | W18: =J10 -> 0.015 | X18: =IF($W18="","",IF(X$15="","",[1]!xpow([1]!xadd([1]!xmult([1]!xmult($D$10,$V18,250),$W18,250),$D$11*X$15,250),2,250))) -> 11.9715707449353980309512993129575137022888436535982920519239921623923780440321156096 | Y18: =IF($W18="","",IF(Y$15="","",[1]!xpow([1]!xadd([1]!xmult([1]!xmult($D$10,$V18,250),$W18,250),$D$11*Y$15,250),2,250))) -> 13.4811050663569253674244332879524899194779932232369741767239921623923780440321156096 | Z18: =IF($W18="","",IF(Z$15="","",[1]!xpow([1]!xadd([1]!xmult([1]!xmult($D$10,$V18,250),$W18,250),$D$11*Z$15,250),2,250))) -> 15.0802449433340802815907927791599477686472248384176331143239921623923780440321156096 | AA18: =IF($W18="","",IF(AA$15="","",[1]!xpow([1]!xadd([1]!xmult([1]!xmult($D$10,$V18,250),$W18,250),$D$11*AA$15,250),2,250))) -> 16.7689903758667935735349300481674056178164564535982920519239921623923780440321156096 | AB18: =IF($W18="","",IF(AB$15="","",[1]!xpow([1]!xadd([1]!xmult([1]!xmult($D$10,$V18,250),$W18,250),$D$11*AB$15,250),2,250))) -> 18.5473413639550652432568450949748634669856880687789509895239921623923780440321156096 | AC18: =IF($W18="","",IF(AC$15="","",[1]!xpow([1]!xadd([1]!xmult([1]!xmult($D$10,$V18,250),$W18,250),$D$11*AC$15,250),2,250))) -> 20.4152979075988049241744235143698396841748376384176331143239921623923780440321156096 | AD18: =IF($W18="","",IF(AD$15="","",[1]!xpow([1]!xadd([1]!xmult([1]!xmult($D$10,$V18,250),$W18,250),$D$11*AD$15,250),2,250))) -> 22.3728600067981891161185607833772975333440692535982920519239921623923780440321156096 | AE18: =IF($W18="","",IF(AE$15="","",[1]!xpow([1]!xadd([1]!xmult([1]!xmult($D$10,$V18,250),$W18,250),$D$11*AE$15,250),2,250))) -> 24.4200276615531316858404758301847553825133008687789509895239921623923780440321156096 | AF18: =IF($W18="","",IF(AF$15="","",[1]!xpow([1]!xadd([1]!xmult([1]!xmult($D$10,$V18,250),$W18,250),$D$11*AF$15,250),2,250))) -> 26.5568008718637356999222830602046948636626145295015867399239921623923780440321156096 | AG18: =IF($W18="","",IF(AG$15="","",[1]!xpow([1]!xadd([1]!xmult([1]!xmult($D$10,$V18,250),$W18,250),$D$11*AG$15,250),2,250))) -> 28.7831796377295846587021915185871894488716820535982920519239921623923780440321156096 | AH18: =IF($W18="","",IF(AH$15="","",[1]!xpow([1]!xadd([1]!xmult([1]!xmult($D$10,$V18,250),$W18,250),$D$11*AH$15,250),2,250))) -> 31.0991639591509750619265444219696840340807495776949973639239921623923780440321156096 | AI18: =IF($W18="","",IF(AI$15="","",[1]!xpow([1]!xadd([1]!xmult([1]!xmult($D$10,$V18,250),$W18,250),$D$11*AI$15,250),2,250))) -> 33.5047538361284857425059137954145867791902273295015867399239921623923780440321156096 | AJ18: =IF($W18="","",IF(AJ$15="","",[1]!xpow([1]!xadd([1]!xmult([1]!xmult($D$10,$V18,250),$W18,250),$D$11*AJ$15,250),2,250))) ->  | AN18: Increments | AP18: =W18 -> 0.015 | AQ18: =IF($AP18="","",IF(AQ$15="","",[1]!xsqr([1]!xsub(1,[1]!xdiv(X18,$D$14,250),250),250))) -> 0.999999999999999933399155697988851834539312991076071583542094931902312484575021391098701001136626565187327319757219871741088271540229976273001658154410854288158149262343324332102948978370110713373227902590376682394127384187014464155517164167991958883 | AR18: =IF($AP18="","",IF(AR$15="","",[1]!xsqr([1]!xsub(1,[1]!xdiv(Y18,$D$14,250),250),250))) -> 0.999999999999999925001238461266234969168605471747815864571581939409218930019673799653245213898522611304610329513074036469930160911973326077438342948942103547217087784649037081615096119279151255602823905755933400663633149678998777562147555366095988176 | AS18: =IF($AP18="","",IF(AS$15="","",[1]!xsqr([1]!xsub(1,[1]!xdiv(Z18,$D$14,250),250),250))) -> 0.999999999999999916104823092485194767383081309586586831174776355718411778510370894083781824141107756226024850396830443735742663213774010355107102879656261596005825127984679412352631558308429114440663911870945880891016302912639146022627203104406478269 | AT18: =IF($AP18="","",IF(AT$15="","",[1]!xsqr([1]!xsub(1,[1]!xdiv(AA18,$D$14,250),250),250))) -> 0.999999999999999906709909591646116192327210333572173584373877359659545605839829387537451929848093908340326417158269365931641032944770731867437087428649275141032716003320362394588691578743840182787095822438611125329589207488652499546062440740271444706 | AU18: =IF($AP18="","",IF(AU$15="","",[1]!xsqr([1]!xsub(1,[1]!xdiv(AB18,$D$14,250),250),250))) -> 0.9999999999999998968164979587489992299509520506591948778238250658161697459027883409237117269451110083002483733581130487011987975853304540985314372808110899707131769480422912154874186862434738882013186081809025956857491879461290042428344426118946788815 | AV18: =IF($AP18="","",IF(AV$15="","",[1]!xsqr([1]!xsub(1,[1]!xdiv(AC18,$D$14,250),250),250))) -> 0.999999999999999886424588193794346597372039639225947811036728568408804207824902398529011164132288942045020859816148677654706586199835487444044919465141195192033816748651773840340757687734615929871869750542148548349339680466009903913925928976658206004 | AW18: =IF($AP18="","",IF(AW$15="","",[1]!xsqr([1]!xsub(1,[1]!xdiv(AD18,$D$14,250),250),250))) -> 0.999999999999999875534180296781176366315733746698220708589730276349087960338478186132692734832623298300682072419205163374730223576816801811034529127593273677123415050194934658580795000965784347464282283397098432239159758476164899130172391226800957112 | AX18: =IF($AP18="","",IF(AX$15="","",[1]!xsqr([1]!xsub(1,[1]!xdiv(AE18,$D$14,250),250),250))) -> 0.999999999999999864145274267709967701315912090160204624545976451866970057892178382180741731554971992070692820873292767492425305270309032754742016005494739884032622908691468666912951032139286868600826564166227610100965878455657356033647638500785301881 | AY18: =IF($AP18="","",IF(AY$15="","",[1]!xsqr([1]!xsub(1,[1]!xdiv(AF18,$D$14,250),250),250))) -> 0.999999999999999852257870106580147200148695284251860901628072566639025322626276049558973658847094012694887794520451654352745436659346563360767683455293957883658149883200345457468616403661934913833210602360181786735806885800630510297677014598049370896 | AZ18: =IF($AP18="","",IF(AZ$15="","",[1]!xsqr([1]!xsub(1,[1]!xdiv(AG18,$D$14,250),250),250))) -> 0.9999999999999998398719678133940319368967271164619151727393896182343011484046877006666457692696679977238658523401067749565252143730397412373557845447125634183741708245316688076454348396931817889277977346220442133821929830201091283000723312697396839175 | BA18: =IF($AP18="","",IF(BA$15="","",[1]!xsqr([1]!xsub(1,[1]!xdiv(AH18,$D$14,250),250),250))) -> 0.9999999999999998269875673881499723907400167973577505295404623816296489452664132497211038398115975031082413173902380537464254013062779469456022103095558278877941015938846193907873961508630932523646569641654167551447245739695700901959804635455959518115 | BB18: =IF($AP18="","",IF(BB$15="","",[1]!xsqr([1]!xsub(1,[1]!xdiv(AI18,$D$14,250),250),250))) -> 0.999999999999999813604668830844748350058047478372507148047597856488227083194178367480302317436863605206350807977085367713539588742459977623395863134547384438000369242577137328608988066937823735464736840201136467810305639702855103999698684909545969956
U19: =J10/U21 -> 0.000125 | V19: =IF(W19="","",J$9/W19^2) -> 1.002754043 | W19: =IF(W18="","",IF(W18-$U$19<$J$7,"",IF(W18<$U$19,"",W18-$U$19))) -> 0.014875 | X19: =IF($W19="","",IF(X$15="","",[1]!xpow([1]!xadd([1]!xmult([1]!xmult($D$10,$V19,250),$W19,250),$D$11*X$15,250),2,250))) -> 11.9715704990946704757143433747545151254501334111351978825359012252731814600366105664 | Y19: =IF($W19="","",IF(Y$15="","",[1]!xpow([1]!xadd([1]!xmult([1]!xmult($D$10,$V19,250),$W19,250),$D$11*Y$15,250),2,250))) -> 13.4811048054767899565611752926747920076324776626981940969359012252731814600366105664 | Z19: =IF($W19="","",IF(Z$15="","",[1]!xpow([1]!xadd([1]!xmult([1]!xmult($D$10,$V19,250),$W19,250),$D$11*Z$15,250),2,250))) -> 15.0802446674145370151005222036017728788465947369166959897359012252731814600366105664 | AA19: =IF($W19="","",IF(AA$15="","",[1]!xpow([1]!xadd([1]!xmult([1]!xmult($D$10,$V19,250),$W19,250),$D$11*AA$15,250),2,250))) -> 16.7689900849078424514176468923287537500607118111351978825359012252731814600366105664 | AB19: =IF($W19="","",IF(AB$15="","",[1]!xpow([1]!xadd([1]!xmult([1]!xmult($D$10,$V19,250),$W19,250),$D$11*AB$15,250),2,250))) -> 18.5473410579567062655125493588557346212748288853536997753359012252731814600366105664 | AC19: =IF($W19="","",IF(AC$15="","",[1]!xpow([1]!xadd([1]!xmult([1]!xmult($D$10,$V19,250),$W19,250),$D$11*AC$15,250),2,250))) -> 20.4152975865610380908038257211760115034571731369166959897359012252731814600366105664 | AD19: =IF($W19="","",IF(AD$15="","",[1]!xpow([1]!xadd([1]!xmult([1]!xmult($D$10,$V19,250),$W19,250),$D$11*AD$15,250),2,250))) -> 22.3728596707210144271209504099029923746712902111351978825359012252731814600366105664 | AE19: =IF($W19="","",IF(AE$15="","",[1]!xpow([1]!xadd([1]!xmult([1]!xmult($D$10,$V19,250),$W19,250),$D$11*AE$15,250),2,250))) -> 24.4200273104365491412158528764299732458854072853536997753359012252731814600366105664 | AF19: =IF($W19="","",IF(AF$15="","",[1]!xpow([1]!xadd([1]!xmult([1]!xmult($D$10,$V19,250),$W19,250),$D$11*AF$15,250),2,250))) -> 26.5568005057077452996699370029636581061312971822277073465359012252731814600366105664 | AG19: =IF($W19="","",IF(AG$15="","",[1]!xpow([1]!xadd([1]!xmult([1]!xmult($D$10,$V19,250),$W19,250),$D$11*AG$15,250),2,250))) -> 28.7831792565341864028242539274772309992818686111351978825359012252731814600366105664 | AH19: =IF($W19="","",IF(AH$15="","",[1]!xpow([1]!xadd([1]!xmult([1]!xmult($D$10,$V19,250),$W19,250),$D$11*AH$15,250),2,250))) -> 31.0991635629161689504230152969908038924324400400426884185359012252731814600366105664 | AI19: =IF($W19="","",IF(AI$15="","",[1]!xpow([1]!xadd([1]!xmult([1]!xmult($D$10,$V19,250),$W19,250),$D$11*AI$15,250),2,250))) -> 33.5047534248542717753732405205378967307418755822277073465359012252731814600366105664 | AJ19: =IF($W19="","",IF(AJ$15="","",[1]!xpow([1]!xadd([1]!xmult([1]!xmult($D$10,$V19,250),$W19,250),$D$11*AJ$15,250),2,250))) ->  | AN19: =U49 -> 0.000125 | AP19: =W19 -> 0.014875 | AQ19: =IF($AP19="","",IF(AQ$15="","",[1]!xsqr([1]!xsub(1,[1]!xdiv(X19,$D$14,250),250),250))) -> 0.9999999999999999333991570656623483075230865490872383527683597443773205959309654478402886985989686373344225498539912469843617627642423718148681119485165611234221365844176762262537951452102727994796699296936555863835704398019529679454211106526634353245 | AR19: =IF($AP19="","",IF(AR$15="","",[1]!xsqr([1]!xsub(1,[1]!xdiv(Y19,$D$14,250),250),250))) -> 0.999999999999999925001239912607721410031568634975593420729397272982371739035214748971634912382979117523832742826828766343918513914051111636001221810030879118691366521095610197953409559593423696473323577869549058866509095803210255735988815720024856891 | AS19: =IF($AP19="","",IF(AS$15="","",[1]!xsqr([1]!xsub(1,[1]!xdiv(Z19,$D$14,250),250),250))) -> 0.999999999999999916104824627494671176129189066927714537826581722194505759531539125566762736964374141180803390292399802763800259629844582998327995512311571679754254706715315477400082455013324981255254223318444959201148973587156635676902482107623290175 | AT19: =IF($AP19="","",IF(AT$15="","",[1]!xsqr([1]!xsub(1,[1]!xdiv(AA19,$D$14,250),250),250))) -> 0.999999999999999906709911210323582568956464980624721484962234926896147029376073946112373780988196836004637928166543650885304256174980364925799228118460180285332704195797249262848139147731100990574735979880770478390831535745554106077285220070620709259 | AU19: =IF($AP19="","",IF(AU$15="","",[1]!xsqr([1]!xsub(1,[1]!xdiv(AB19,$D$14,250),250),250))) -> 0.999999999999999896816499661094455574463356008146243151912726785380454294293409107732491840466121249630981184640831816344774764506931670571106223431239836679888674157299869123100918234856850380998150171293813820891460810447398829008693480256166226067 | AV19: =IF($AP19="","",IF(AV$15="","",[1]!xsqr([1]!xsub(1,[1]!xdiv(AC19,$D$14,250),250),250))) -> 0.9999999999999998864245899798077929097636426345719073175132785089355353787235514254289515574622711478472377481867222713260928626656000123396946365142690685610021138416128954849522840385304228109794078998117588026982856087183341975827574971007899197545 | AW19: =IF($AP19="","",IF(AW$15="","",[1]!xsqr([1]!xsub(1,[1]!xdiv(AD19,$D$14,250),250),250))) -> 0.9999999999999998755341821664626126465904912692998713559300275482074538911754428277847650498869120052394330811673078941652359421396409701037219746380008255232708798827751405463332474779368591018402842344061904603178917745339289394981393269522809636355 | AX19: =IF($AP19="","",IF(AX$15="","",[1]!xsqr([1]!xsub(1,[1]!xdiv(AE19,$D$14,250),250),250))) -> 0.99999999999999986414527622105939394947382693611565700067250328776033076462330104262711288218615440246377616752543418848684838454067750780299480116581674041053521022943932909224822836201006992496637874241178444904501281434088446648884254546954490835 | AY19: =IF($AP19="","",IF(AY$15="","",[1]!xsqr([1]!xsub(1,[1]!xdiv(AF19,$D$14,250),250),250))) -> 0.999999999999999852257872143597563416193723193207915187788319264487084938783873711803907804164497262813727583002121370928905336209628849552154868383781287133904840051764507489165700392932706054814586543662953145458957575938976037720779058093033587953 | AZ19: =IF($AP19="","",IF(AZ$15="","",[1]!xsqr([1]!xsub(1,[1]!xdiv(AG19,$D$14,250),250),250))) -> 0.9999999999999998398719699340794381208170126794956638573414973955071816857579639428333958437625402204666684054389215536314932284329455837087540395207980052559827424591666283607633627930429192222792376908846430208056059740460987883084590565915165653135 | BA19: =IF($AP19="","",IF(BA$15="","",[1]!xsqr([1]!xsub(1,[1]!xdiv(AH19,$D$14,250),250),250))) -> 0.999999999999999826987569592503368542535563185942334608266258414914504529133483935389221758176447450608629993525296033982582289310691062586590774221580884737699440686651221773153668803682446200116360767740984559043171734465722829129802302443354385965 | BB19: =IF($AP19="","",IF(BB$15="","",[1]!xsqr([1]!xsub(1,[1]!xdiv(AI19,$D$14,250),250),250))) -> 0.999999999999999813604671118866134469748622081224475040974354559291752976381126486931820676782795850797541643285212670015296276560904043419503792019969431726028886249066032888660906670249894829647277799295297685635421060863905772838436649622083742279
U20: Divisor | V20: 1.01982189 | W20: =IF(W19="","",IF(W19-$U$19<$J$7,"",IF(W19<$U$19,"",W19-$U$19))) -> 0.01475 | X20: =IF($W20="","",IF(X$15="","",[1]!xpow([1]!xadd([1]!xmult([1]!xmult($D$10,$V20,250),$W20,250),$D$11*X$15,250),2,250))) -> 11.9715702490871535168647593219613619470306414738649270708687993343768146043626578944 | Y20: =IF($W20="","",IF(Y$15="","",[1]!xpow([1]!xadd([1]!xmult([1]!xmult($D$10,$V20,250),$W20,250),$D$11*Y$15,250),2,250))) -> 13.4811045401749599241991497261580917560876998629102999092687993343768146043626578944 | Z20: =IF($W20="","",IF(Z$15="","",[1]!xpow([1]!xadd([1]!xmult([1]!xmult($D$10,$V20,250),$W20,250),$D$11*Z$15,250),2,250))) -> 15.0802443868183939092253325573895485656777418683876134900687993343768146043626578944 | AA20: =IF($W20="","",IF(AA$15="","",[1]!xpow([1]!xadd([1]!xmult([1]!xmult($D$10,$V20,250),$W20,250),$D$11*AA$15,250),2,250))) -> 16.7689897890173862720292931664210053752677838738649270708687993343768146043626578944 | AB20: =IF($W20="","",IF(AB$15="","",[1]!xpow([1]!xadd([1]!xmult([1]!xmult($D$10,$V20,250),$W20,250),$D$11*AB$15,250),2,250))) -> 18.5473407467719370126110315532524621848578258793422406516687993343768146043626578944 | AC20: =IF($W20="","",IF(AC$15="","",[1]!xpow([1]!xadd([1]!xmult([1]!xmult($D$10,$V20,250),$W20,250),$D$11*AC$15,250),2,250))) -> 20.4152972600819557643898664018491919939148842683876134900687993343768146043626578944 | AD20: =IF($W20="","",IF(AD$15="","",[1]!xpow([1]!xadd([1]!xmult([1]!xmult($D$10,$V20,250),$W20,250),$D$11*AD$15,250),2,250))) -> 22.3728593289476190271938270108806488035049262738649270708687993343768146043626578944 | AE20: =IF($W20="","",IF(AE$15="","",[1]!xpow([1]!xadd([1]!xmult([1]!xmult($D$10,$V20,250),$W20,250),$D$11*AE$15,250),2,250))) -> 24.4200269533688406677755653977121056130949682793422406516687993343768146043626578944 | AF20: =IF($W20="","",IF(AF$15="","",[1]!xpow([1]!xadd([1]!xmult([1]!xmult($D$10,$V20,250),$W20,250),$D$11*AF$15,250),2,250))) -> 26.5568001333457237527157628785782894232179939012514949748687993343768146043626578944 | AG20: =IF($W20="","",IF(AG$15="","",[1]!xpow([1]!xadd([1]!xmult([1]!xmult($D$10,$V20,250),$W20,250),$D$11*AG$15,250),2,250))) -> 28.7831788688778517823583608553402922317420686738649270708687993343768146043626578944 | AH20: =IF($W20="","",IF(AH$15="","",[1]!xpow([1]!xadd([1]!xmult([1]!xmult($D$10,$V20,250),$W20,250),$D$11*AH$15,250),2,250))) -> 31.0991631599655212564454032771022950402661434464783591668687993343768146043626578944 | AI20: =IF($W20="","",IF(AI$15="","",[1]!xpow([1]!xadd([1]!xmult([1]!xmult($D$10,$V20,250),$W20,250),$D$11*AI$15,250),2,250))) -> 33.5047530066093110078802967230379328514551363012514949748687993343768146043626578944 | AJ20: =IF($W20="","",IF(AJ$15="","",[1]!xpow([1]!xadd([1]!xmult([1]!xmult($D$10,$V20,250),$W20,250),$D$11*AJ$15,250),2,250))) ->  | AN20: Low Delta | AP20: 0.01475 | AQ20: =IF($AP20="","",IF(AQ$15="","",[1]!xsqr([1]!xsub(1,[1]!xdiv(X20,$D$14,250),250),250))) -> 0.999999999999999933399158456516737097972931596099622983009587043806482220879099761295796727570907854791582148330582255235964075742517943228736983168816852662786523629631221094545572525057330104230145891325417985992843187634638959725130693458794103985 | AR20: =IF($AP20="","",IF(AR$15="","",[1]!xsqr([1]!xsub(1,[1]!xdiv(Y20,$D$14,250),250),250))) -> 0.9999999999999999250012413885482016932074680192324162064400528291099804323873260289471286623286461944592454227288187696085633391946054326037229644808838537520505956634297975954785619960335531217802328969808251994725392141590168911496567303335785400725 | AS20: =IF($AP20="","",IF(AS$15="","",[1]!xsqr([1]!xsub(1,[1]!xdiv(Z20,$D$14,250),250),250))) -> 0.999999999999999916104826188521242952035164811035805997523791298910508917904453883397316940490913294507484878040442505563016196921674818520253230678651840701069761840613796291842272270742310255523429865100448363116362165964125710003059202667724496051 | AT20: =IF($AP20="","",IF(AT$15="","",[1]!xsqr([1]!xsub(1,[1]!xdiv(AA20,$D$14,250),250),250))) -> 0.999999999999999906709912856436245837592519419090571988403678662966219435175532856535189743384993124021906150866611653917629703397451554450199415263652654642096165250626798724668127788367841967330034313111760545219758625636753001351739263738731738232 | AU20: =IF($AP20="","",IF(AU$15="","",[1]!xsqr([1]!xsub(1,[1]!xdiv(AB20,$D$14,250),250),250))) -> 0.999999999999999896816501392293210335829491602722116088592070512665439880700781431756290074040607354584853922097153494110051417510937993752406850753348355359581350278867695331565840090030449146562560126672603352010012357289566627814966268862482107391 | AV20: =IF($AP20="","",IF(AV$15="","",[1]!xsqr([1]!xsub(1,[1]!xdiv(AC20,$D$14,250),250),250))) -> 0.9999999999999998864245917960926391638558421589097259275982910436814500364130467274020918382869203697440929121254544997771952102872627075095214819161524037010471531333668184855306159260603568688010783459519858080585531554861994142984658029828782947265 | AW20: =IF($AP20="","",IF(AW$15="","",[1]!xsqr([1]!xsub(1,[1]!xdiv(AD20,$D$14,250),250),250))) -> 0.99999999999999987553418406783355039341277725498955823731697111453897110146790629352348671864991711908534499522581073130782965995063623478319884584765229502888300610961833354813236822825746363353037231364009779504867068056564314067691559048018174232 | AX20: =IF($AP20="","",IF(AX$15="","",[1]!xsqr([1]!xsub(1,[1]!xdiv(AE20,$D$14,250),250),250))) -> 0.9999999999999998641452782075164231890262022266467946020571034375082847451983269589055763291256501032262931055139352907787641079024484033699183174282612552806093004360939163545231846132068038202840792152516945568026485484003013572232780050589941286035 | AY20: =IF($AP20="","",IF(AY$15="","",[1]!xsqr([1]!xsub(1,[1]!xdiv(AF20,$D$14,250),250),250))) -> 0.9999999999999998522578742151406841484802105746619721470762993870793637084849512071556847412952659574935229140318125720521746923637954277190342037100966765146450322532638452384052889863346924822356337122705368756391103424114514165905377641508356474965 | AZ20: =IF($AP20="","",IF(AZ$15="","",[1]!xsqr([1]!xsub(1,[1]!xdiv(AG20,$D$14,250),250),250))) -> 0.999999999999999839871972090708650345825555803815429154129569788203431438414282474479084873819198126590835489997646292922949957194808315919462685323381565756870470040483631800034321429023299954295492604820767181619567625548429091243582697039522245438 | BA20: =IF($AP20="","",IF(BA$15="","",[1]!xsqr([1]!xsub(1,[1]!xdiv(AH20,$D$14,250),250),250))) -> 0.9999999999999998269875718342186722602661652783547097498429080106159616977230664521284877033425668471068457117117994887256075857202701803852083690187458461108634622287245890846660504598332292987164268973234404766648358629105711154539289838648893847505 | BB20: =IF($AP20="","",IF(BB$15="","",[1]!xsqr([1]!xsub(1,[1]!xdiv(AI20,$D$14,250),250),250))) -> 0.9999999999999998136046734456675296802213855709327004040284761275233001864212551986886418715263131594480074044668882104550667193240843768793847005890214828139914223382928027356534598554636194288183160435526040502039037301950742688486629454707744697455
U21: 120 | V21: 1.037329242 | W21: 0.014625 | X21: =IF($W21="","",IF(X$15="","",[1]!xpow([1]!xadd([1]!xmult([1]!xmult($D$10,$V21,250),$W21,250),$D$11*X$15,250),2,250))) -> 11.97156999480600646723532509016817972990960896659539766137842912422393427078811664 | Y21: =IF($W21="","",IF(Y$15="","",[1]!xpow([1]!xadd([1]!xmult([1]!xmult($D$10,$V21,250),$W21,250),$D$11*Y$15,250),2,250))) -> 13.48110427033805855193263585075389161659727994316049751737842912422393427078811664 | Z21: =IF($W21="","",IF(Z$15="","",[1]!xpow([1]!xadd([1]!xmult([1]!xmult($D$10,$V21,250),$W21,250),$D$11*Z$15,250),2,250))) -> 15.08024410142573821432100412084727676037280245487794758937842912422393427078811664 | AA21: =IF($W21="","",IF(AA$15="","",[1]!xpow([1]!xadd([1]!xmult([1]!xmult($D$10,$V21,250),$W21,250),$D$11*AA$15,250),2,250))) -> 16.76898948806897625448715016874066190414832496659539766137842912422393427078811664 | AB21: =IF($W21="","",IF(AB$15="","",[1]!xpow([1]!xadd([1]!xmult([1]!xmult($D$10,$V21,250),$W21,250),$D$11*AB$15,250),2,250))) -> 18.54734043026777267243107399443404704792384747831284773337842912422393427078811664 | AC21: =IF($W21="","",IF(AC$15="","",[1]!xpow([1]!xadd([1]!xmult([1]!xmult($D$10,$V21,250),$W21,250),$D$11*AC$15,250),2,250))) -> 20.41529692802203710157282919941975893461151845487794758937842912422393427078811664 | AD21: =IF($W21="","",IF(AD$15="","",[1]!xpow([1]!xadd([1]!xmult([1]!xmult($D$10,$V21,250),$W21,250),$D$11*AD$15,250),2,250))) -> 22.37285898133194604173897524731314407838704096659539766137842912422393427078811664 | AE21: =IF($W21="","",IF(AE$15="","",[1]!xpow([1]!xadd([1]!xmult([1]!xmult($D$10,$V21,250),$W21,250),$D$11*AE$15,250),2,250))) -> 24.42002659019741335968289907300652922216256347831284773337842912422393427078811664 | AF21: =IF($W21="","",IF(AF$15="","",[1]!xpow([1]!xadd([1]!xmult([1]!xmult($D$10,$V21,250),$W21,250),$D$11*AF$15,250),2,250))) -> 26.55679975461854212198454707520758762302593752518264802137842912422393427078811664 | AG21: =IF($W21="","",IF(AG$15="","",[1]!xpow([1]!xadd([1]!xmult([1]!xmult($D$10,$V21,250),$W21,250),$D$11*AG$15,250),2,250))) -> 28.78317847459491582899080032588562625262575696659539766137842912422393427078811664 | AH21: =IF($W21="","",IF(AH$15="","",[1]!xpow([1]!xadd([1]!xmult([1]!xmult($D$10,$V21,250),$W21,250),$D$11*AH$15,250),2,250))) -> 31.09916275012683098044149802156366488222557640800814730137842912422393427078811664 | AI21: =IF($W21="","",IF(AI$15="","",[1]!xpow([1]!xadd([1]!xmult([1]!xmult($D$10,$V21,250),$W21,250),$D$11*AI$15,250),2,250))) -> 33.50475258121486640923637215378006979726465352518264802137842912422393427078811664 | AJ21: =IF($W21="","",IF(AJ$15="","",[1]!xpow([1]!xadd([1]!xmult([1]!xmult($D$10,$V21,250),$W21,250),$D$11*AJ$15,250),2,250))) ->  | AN21: =AN19/100 -> 1.25e-06 | AP21: 0.014625 | AQ21: =IF($AP21="","",IF(AQ$15="","",[1]!xsqr([1]!xsub(1,[1]!xdiv(X21,$D$14,250),250),250))) -> 0.9999999999999999333991598711463996887159318790413911629131215170314035529577077829109071050427510815775350331077077684724153256922580964747566978312410266468237892601913308229619432548887887303133093350367480165805273784314801228932838166989160007815 | AR21: =IF($AP21="","",IF(AR$15="","",[1]!xsqr([1]!xsub(1,[1]!xdiv(Y21,$D$14,250),250),250))) -> 0.999999999999999925001242889718418879142806128577721591756142144112826406229345499448428605119953870486092608179813335043737802459418139849969767407864373557312393978622675213396611746746714676416487152561388155849920451697034618011596783953319029597 | AS21: =IF($AP21="","",IF(AS$15="","",[1]!xsqr([1]!xsub(1,[1]!xdiv(Z21,$D$14,250),250),250))) -> 0.9999999999999999161048277762320147331669315219146517655391326683866276246802845548441392549045257296590325568607580727258250879101583124375275920676908158498308068308305344180699053457085520289338069609375208877957868527676631109256140466300281274025 | AT21: =IF($AP21="","",IF(AT$15="","",[1]!xsqr([1]!xsub(1,[1]!xdiv(AA21,$D$14,250),250),250))) -> 0.9999999999999999067099145306875722139207171059155200830804193799307396356966676807620619288811821600378230149520033644495613199150793990469285358789302983105972634246214885852574968956541859399817182810319564597535439767373319226494193974181204255835 | AU21: =IF($AP21="","",IF(AU$15="","",[1]!xsqr([1]!xsub(1,[1]!xdiv(AB21,$D$14,250),250),250))) -> 0.999999999999999896816503153085091307354122769326642892808792961216393926491356559463411866153522359041397382494678602333169949290500226164789215934283090460071844882652884679167036316303555188638501245724734061506351995700708125062657360471167561288 | AV21: =IF($AP21="","",IF(AV$15="","",[1]!xsqr([1]!xsub(1,[1]!xdiv(AC21,$D$14,250),250),250))) -> 0.9999999999999998864245936434250747305728209084098665903328933732563658292731692315806587132888970500181708265448739583358282132984754411916513458118904810211071897722080028255675358513961389012743626853497168733349102923880855188462599687235932517335 | AW21: =IF($AP21="","",IF(AW$15="","",[1]!xsqr([1]!xsub(1,[1]!xdiv(AD21,$D$14,250),250),250))) -> 0.999999999999999875534186001706540555326194880198973691964523794147844219273405344896995115205680623902202116388494542946341213050479551065204727996711798415739470301218691643722220768728388055016273581896186543563842648050653218894890532579324256981 | AX21: =IF($AP21="","",IF(AX$15="","",[1]!xsqr([1]!xsub(1,[1]!xdiv(AE21,$D$14,250),250),250))) -> 0.9999999999999998641452802279299679461360616196617045482394959556203907506357341774165617495013290291432976159338046164667528842064339442926285724173296295161333008415529697153155967019533576668420589434570697602071923733787850722014476856002756982755 | AY21: =IF($AP21="","",IF(AY$15="","",[1]!xsqr([1]!xsub(1,[1]!xdiv(AF21,$D$14,250),250),250))) -> 0.9999999999999998522578763220947835007906032871378663965681500292441936896864098311168904559689814365590898143183241900714463288216056522364669041016892428496293542134897520155833445376509291630758204329983999960144677455758611213242979281013185980595 | AZ21: =IF($AP21="","",IF(AZ$15="","",[1]!xsqr([1]!xsub(1,[1]!xdiv(AG21,$D$14,250),250),250))) -> 0.9999999999999998398719742842033042933242193962752892645252627776563111200409606178211121272726351255420033029563456339254786435949125154666567722911810657088513561573497450787015943290678499370225209770139276899688809151688313869615292647564849559715 | BA21: =IF($AP21="","",IF(BA$15="","",[1]!xsqr([1]!xsub(1,[1]!xdiv(AH21,$D$14,250),250),250))) -> 0.999999999999999826987574114253880802953103031157498736887924215097796869855824225024339928980517466690759991009582651235091623500363218378842453186955301812595088054045593259093408170819357830394007358049821599966782721642021371721511875920120981841 | BB21: =IF($AP21="","",IF(BB$15="","",[1]!xsqr([1]!xsub(1,[1]!xdiv(AI21,$D$14,250),250),250))) -> 0.999999999999999813604675812243292818117043544550074090899783328616915693658942533690240016818868492741106883954925725340826867655403616080994788512853658705235461571546297203756655115458602090135755780991302342027257693022034385597767857430268815561
V22: 1.05529132 | W22: 0.0145 | X22: =IF($W22="","",IF(X$15="","",[1]!xpow([1]!xadd([1]!xmult([1]!xmult($D$10,$V22,250),$W22,250),$D$11*X$15,250),2,250))) -> 11.9715697361407044808081268187084704734142308992816374831080071636289496596832011264 | Y22: =IF($W22="","",IF(Y$15="","",[1]!xpow([1]!xadd([1]!xmult([1]!xmult($D$10,$V22,250),$W22,250),$D$11*Y$15,250),2,250))) -> 13.4811039958487995821450561681434915714621258765842105775080071636289496596832011264 | Z22: =IF($W22="","",IF(Z$15="","",[1]!xpow([1]!xadd([1]!xmult([1]!xmult($D$10,$V22,250),$W22,250),$D$11*Z$15,250),2,250))) -> 15.0802438111125222611722954385672869873945575879329240303080071636289496596832011264 | AA22: =IF($W22="","",IF(AA$15="","",[1]!xpow([1]!xadd([1]!xmult([1]!xmult($D$10,$V22,250),$W22,250),$D$11*AA$15,250),2,250))) -> 16.7689891819318033179773124867910824033269892992816374831080071636289496596832011264 | AB22: =IF($W22="","",IF(AB$15="","",[1]!xpow([1]!xadd([1]!xmult([1]!xmult($D$10,$V22,250),$W22,250),$D$11*AB$15,250),2,250))) -> 18.5473401083066427525601073128148778192594210106303509359080071636289496596832011264 | AC22: =IF($W22="","",IF(AC$15="","",[1]!xpow([1]!xadd([1]!xmult([1]!xmult($D$10,$V22,250),$W22,250),$D$11*AC$15,250),2,250))) -> 20.4152965902369501983414811066498989173073159879329240303080071636289496596832011264 | AD22: =IF($W22="","",IF(AD$15="","",[1]!xpow([1]!xadd([1]!xmult([1]!xmult($D$10,$V22,250),$W22,250),$D$11*AD$15,250),2,250))) -> 22.3728586277229021551464981548736943332397476992816374831080071636289496596832011264 | AE22: =IF($W22="","",IF(AE$15="","",[1]!xpow([1]!xadd([1]!xmult([1]!xmult($D$10,$V22,250),$W22,250),$D$11*AE$15,250),2,250))) -> 24.4200262207644124897292929808974897491721794106303509359080071636289496596832011264 | AF22: =IF($W22="","",IF(AF$15="","",[1]!xpow([1]!xadd([1]!xmult([1]!xmult($D$10,$V22,250),$W22,250),$D$11*AF$15,250),2,250))) -> 26.5567993693615842686690643949100594829891478560252047471080071636289496596832011264 | AG22: =IF($W22="","",IF(AG$15="","",[1]!xpow([1]!xadd([1]!xmult([1]!xmult($D$10,$V22,250),$W22,250),$D$11*AG$15,250),2,250))) -> 28.7831780735140009923156838229563062631525060992816374831080071636289496596832011264 | AH22: =IF($W22="","",IF(AH$15="","",[1]!xpow([1]!xadd([1]!xmult([1]!xmult($D$10,$V22,250),$W22,250),$D$11*AH$15,250),2,250))) -> 31.0991623332219591604067476960025530433158643425380702191080071636289496596832011264 | AI22: =IF($W22="","",IF(AI$15="","",[1]!xpow([1]!xadd([1]!xmult([1]!xmult($D$10,$V22,250),$W22,250),$D$11*AI$15,250),2,250))) -> 33.5047521484860376058382500629926714129019062560252047471080071636289496596832011264 | AJ22: =IF($W22="","",IF(AJ$15="","",[1]!xpow([1]!xadd([1]!xmult([1]!xmult($D$10,$V22,250),$W22,250),$D$11*AJ$15,250),2,250))) ->  | AP22: 0.0145 | AQ22: =IF($AP22="","",IF(AQ$15="","",[1]!xsqr([1]!xsub(1,[1]!xdiv(X22,$D$14,250),250),250))) -> 0.999999999999999933399161310166213460337834454031383478717109170920104591028386828175120988048604077995066864438441192400652237227325082932457652573546318468777125720405123468369347735583122494814047539496195175013662386991145050024521531396370432824 | AR22: =IF($AP22="","",IF(AR$15="","",[1]!xsqr([1]!xsub(1,[1]!xdiv(Y22,$D$14,250),250),250))) -> 0.9999999999999999250012444167708657733946034383555883166483507393343408345488062988038424306452352248664521023592327693215957358882941531470920772131571231978773429621763405609957794828752459556925966836141917385020527728974212629657655264128108663405 | AS22: =IF($AP22="","",IF(AS$15="","",[1]!xsqr([1]!xsub(1,[1]!xdiv(Z22,$D$14,250),250),250))) -> 0.9999999999999999161048293913170947500527848722160596261107615824369211736609495791709364991608961048348276018966031690323832935855139135428779039273796755835562089983628817543654040381953129489695554516533701183235715104864727105116565666322620727775 | AT22: =IF($AP22="","",IF(AT$15="","",[1]!xsqr([1]!xsub(1,[1]!xdiv(AA22,$D$14,250),250),250))) -> 0.999999999999999906709916233805285353440628912091155589006783722295201838994802262362265532747132867422277965817161346651316403388781209639041046890586375591358702658251618647227200709174810807206909394187864695989094752132109133973952778825627806955 | AU22: =IF($AP22="","",IF(AU$15="","",[1]!xsqr([1]!xsub(1,[1]!xdiv(AB22,$D$14,250),250),250))) -> 0.9999999999999998968165049442354375695080955783795020691163423104131537960881779157294571510555832698885884564804871111976354982609531474174307548807253991032620121392958247047872511257382859348841738017950586674689816417393764213250649746137934861115 | AV22: =IF($AP22="","",IF(AV$15="","",[1]!xsqr([1]!xsub(1,[1]!xdiv(AC22,$D$14,250),250),250))) -> 0.999999999999999886424595522608054115356698376957965244546125379999906335063055600612354729594968032936930726859087718988039369312762867513049494617753592553201744475607032195562348795658022932954209105588724531429540307496930659437459032942005154132 | AW22: =IF($AP22="","",IF(AW$15="","",[1]!xsqr([1]!xsub(1,[1]!xdiv(AD22,$D$14,250),250),250))) -> 0.999999999999999875534187968922153062744138840587216612529440201277032997678384720481302188706936965793921953475783210695888697980257049641302938357388665346900392073395281295110512149685304857525387348624229249002418041186713501609232523142677234232 | AX22: =IF($AP22="","",IF(AX$15="","",[1]!xsqr([1]!xsub(1,[1]!xdiv(AE22,$D$14,250),250),250))) -> 0.99999999999999986414528228317821357618807501385001630622984816316829408862792304818622466832252608924073379561594360214306831133629665376319185866417038518452448828784595778681813231050665391568068296565809900535198385944326520162821436079736867044 | AY22: =IF($AP22="","",IF(AY$15="","",[1]!xsqr([1]!xsub(1,[1]!xdiv(AF22,$D$14,250),250),250))) -> 0.999999999999999852257878465375662253480848210775770811688311824585620856878630152969920323020426080819475496031686258986993535056460981237005817885271071323761415297126582596276398694790005830370630995596233051305985334130353568017064996726527979978 | AZ22: =IF($AP22="","",IF(AZ$15="","",[1]!xsqr([1]!xsub(1,[1]!xdiv(AG22,$D$14,250),250),250))) -> 0.999999999999999839871976515516816168640221988515460738558684444443864960163631151638072985114238841187544553638584533316871282780081643469973921254157771570978223024096455160840466150269989879786329431632327192823755859604732696801016462902867738545 | BA22: =IF($AP22="","",IF(BA$15="","",[1]!xsqr([1]!xsub(1,[1]!xdiv(AH22,$D$14,250),250),250))) -> 0.9999999999999998269875764336000258008948666289167903863252585002540821112101622182198814239402703039538051988075533276309736769258118184080866975210888169134522228233755583591845352873892301287734927232959079999633945005017124888637232646139804388125 | BB22: =IF($AP22="","",IF(BB$15="","",[1]!xsqr([1]!xsub(1,[1]!xdiv(AI22,$D$14,250),250),250))) -> 0.9999999999999998136046782196220709387053667265840972163540745107819818237731818987408896899509442383326889619076539672386981860138342479183953400745874502372805271160530544665263640137195645385482583928498521490198533224171042479625167457467346408385
V23: 1.073724008 | W23: 0.014375 | X23: =IF($W23="","",IF(X$15="","",[1]!xpow([1]!xadd([1]!xmult([1]!xmult($D$10,$V23,250),$W23,250),$D$11*X$15,250),2,250))) -> 11.97156947297687837075353189361962161099538983608967212476931993342391678712582144 | Y23: =IF($W23="","",IF(Y$15="","",[1]!xpow([1]!xadd([1]!xmult([1]!xmult($D$10,$V23,250),$W23,250),$D$11*Y$15,250),2,250))) -> 13.48110371658581723682578092473371190736768914211009810876931993342391678712582144 | Z23: =IF($W23="","",IF(Z$15="","",[1]!xpow([1]!xadd([1]!xmult([1]!xmult($D$10,$V23,250),$W23,250),$D$11*Z$15,250),2,250))) -> 15.08024351575038368058757928677821753639405148909988511676931993342391678712582144 | AA23: =IF($W23="","",IF(AA$15="","",[1]!xpow([1]!xadd([1]!xmult([1]!xmult($D$10,$V23,250),$W23,250),$D$11*AA$15,250),2,250))) -> 16.76898887047050850212715542662272316542041383608967212476931993342391678712582144 | AB23: =IF($W23="","",IF(AB$15="","",[1]!xpow([1]!xadd([1]!xmult([1]!xmult($D$10,$V23,250),$W23,250),$D$11*AB$15,250),2,250))) -> 18.54733978074619170144450934426722879444677618307945913276931993342391678712582144 | AC23: =IF($W23="","",IF(AC$15="","",[1]!xpow([1]!xadd([1]!xmult([1]!xmult($D$10,$V23,250),$W23,250),$D$11*AC$15,250),2,250))) -> 20.41529624657734291196120281978131909081907548909988511676931993342391678712582144 | AD23: =IF($W23="","",IF(AD$15="","",[1]!xpow([1]!xadd([1]!xmult([1]!xmult($D$10,$V23,250),$W23,250),$D$11*AD$15,250),2,250))) -> 22.37285826796413863350077895962582471984543783608967212476931993342391678712582144 | AE23: =IF($W23="","",IF(AE$15="","",[1]!xpow([1]!xadd([1]!xmult([1]!xmult($D$10,$V23,250),$W23,250),$D$11*AE$15,250),2,250))) -> 24.42002584490649273281813287727033034887180018307945913276931993342391678712582144 | AF23: =IF($W23="","",IF(AF$15="","",[1]!xpow([1]!xadd([1]!xmult([1]!xmult($D$10,$V23,250),$W23,250),$D$11*AF$15,250),2,250))) -> 26.55679897740450827649170279284525131055222557103860716476931993342391678712582144 | AG23: =IF($W23="","",IF(AG$15="","",[1]!xpow([1]!xadd([1]!xmult([1]!xmult($D$10,$V23,250),$W23,250),$D$11*AG$15,250),2,250))) -> 28.78317766545776876487440249262892627427046183608967212476931993342391678712582144 | AH23: =IF($W23="","",IF(AH$15="","",[1]!xpow([1]!xadd([1]!xmult([1]!xmult($D$10,$V23,250),$W23,250),$D$11*AH$15,250),2,250))) -> 31.09916190906657069770154663741260123798869810114073708476931993342391678712582144 | AI23: =IF($W23="","",IF(AI$15="","",[1]!xpow([1]!xadd([1]!xmult([1]!xmult($D$10,$V23,250),$W23,250),$D$11*AI$15,250),2,250))) -> 33.50475170823149290786532632584835286497724957103860716476931993342391678712582144 | AJ23: =IF($W23="","",IF(AJ$15="","",[1]!xpow([1]!xadd([1]!xmult([1]!xmult($D$10,$V23,250),$W23,250),$D$11*AJ$15,250),2,250))) ->  | AP23: 0.014375 | AQ23: =IF($AP23="","",IF(AQ$15="","",[1]!xsqr([1]!xsub(1,[1]!xdiv(X23,$D$14,250),250),250))) -> 0.9999999999999999333991627742124428235226267978040257538613414663105731112790189701718974655727302598464786744128181314492428646395481372144741321061046633996666470753498639618024321913712746774645456649751133132682502699221925198117384374125920508355 | AR23: =IF($AP23="","",IF(AR$15="","",[1]!xsqr([1]!xsub(1,[1]!xdiv(Y23,$D$14,250),250),250))) -> 0.999999999999999925001245970380730574495451032540352536152192217695227455906377755180561386455133630054317022558771411742615293363615511296893345851067722603737877083958657873876163658741153994230632266857823752505906720314717788151975896942518413637 | AS23: =IF($AP23="","",IF(AS$15="","",[1]!xsqr([1]!xsub(1,[1]!xdiv(Z23,$D$14,250),250),250))) -> 0.999999999999999916104831034490594989073921393083127190846931219392317364250820558824519912117399027408293551608894844068507101676416538445278581446647736142817299025706220415455645153353842409913670459901412950766823303178996163962045813266143862097 | AT23: =IF($AP23="","",IF(AT$15="","",[1]!xsqr([1]!xsub(1,[1]!xdiv(AA23,$D$14,250),250),250))) -> 0.9999999999999999067099179665424210303820568169972880482376099600945998743674971134763847470515831494854517927956716693648826423739463007866025152859210919794484776394974440960502746183625916167172350940489153916328655625781611176466253354729481426575 | AU23: =IF($AP23="","",IF(AU$15="","",[1]!xsqr([1]!xsub(1,[1]!xdiv(AB23,$D$14,250),250),250))) -> 0.9999999999999998968165067665362086843698174586233758704954470497596730813383558094617032576292399706335616567203239638913205706358274807558762938784215404783248762014603526461837379497672845802817126037413267191125342167182560709726145514027051883175 | AV23: =IF($AP23="","",IF(AV$15="","",[1]!xsqr([1]!xsub(1,[1]!xdiv(AC23,$D$14,250),250),250))) -> 0.9999999999999998864245974344724606681344856049248369835204798530240722975669888821318097236742476428421742980986507893180225125090086266638417235166911141432301733110342538993408982389640933468920282055005416495154382460699835409631388866331763694635 | AW23: =IF($AP23="","",IF(AW$15="","",[1]!xsqr([1]!xsub(1,[1]!xdiv(AD23,$D$14,250),250),250))) -> 0.9999999999999998755341899703501950534422256283149272839950323888896638708597953732711546512790987232158742938811885231926960654255347744660502994012909166132105134228523960410989549372172491008807174646262168057633851156660945037465835179071491137015 | AX23: =IF($AP23="","",IF(AX$15="","",[1]!xsqr([1]!xsub(1,[1]!xdiv(AE23,$D$14,250),250),250))) -> 0.9999999999999998641452843741698910048064643544629870530079726413171482909754488766277823015315628841004893448643658481465212116002774670865870216246645820981926706404739120827125356230224744194260616568235033666224448106773129050291751039220576474885 | AY23: =IF($AP23="","",IF(AY$15="","",[1]!xsqr([1]!xsub(1,[1]!xdiv(AF23,$D$14,250),250),250))) -> 0.9999999999999998522578806459309751200237745841956724260233179514232439898795562520134352007628163367100183785525647872607560119581563892952287546305688854851846522108017272010445435831424726986280864482423123427832090932670306509981422143331187640055 | AZ23: =IF($AP23="","",IF(AZ$15="","",[1]!xsqr([1]!xsub(1,[1]!xdiv(AG23,$D$14,250),250),250))) -> 0.9999999999999998398719787856357644730949945971845399068023833336192762961104495889840153613467423045893936722395173414436722991712302450888352280276844625268313582203424871032116822218224395391599008123389024760032525239963195436394776319443717267685 | BA23: =IF($AP23="","",IF(BA$15="","",[1]!xsqr([1]!xsub(1,[1]!xdiv(AH23,$D$14,250),250),250))) -> 0.9999999999999998269875787932826095432614888677852129458252534463254975016074877451404116789436406906035598616430046201975920735892147053794686703095357173313846960089360368051231676672808598419218898546784899685831612223825054770683454082475300888765 | BB23: =IF($AP23="","",IF(BB$15="","",[1]!xsqr([1]!xsub(1,[1]!xdiv(AI23,$D$14,250),250),250))) -> 0.9999999999999998136046806688682901190049988888206176604231701218606638475631620702751436982332748381169801022651239774608207030624906795230842693565400969509006839102982337888874170773039661050099045082273683905710456725504847845775796782119954713525
V24: 1.09264389 | W24: 0.01425 | X24: =IF($W24="","",IF(X$15="","",[1]!xpow([1]!xadd([1]!xmult([1]!xmult($D$10,$V24,250),$W24,250),$D$11*X$15,250),2,250))) -> 11.9715692051961460001288641967682691541700316368870959478500835821002147090296226816 | Y24: =IF($W24="","",IF(Y$15="","",[1]!xpow([1]!xadd([1]!xmult([1]!xmult($D$10,$V24,250),$W24,250),$D$11*Y$15,250),2,250))) -> 13.4811034324234872934989879756075926759497408020657928950500835821002147090296226816 | Z24: =IF($W24="","",IF(Z$15="","",[1]!xpow([1]!xadd([1]!xmult([1]!xmult($D$10,$V24,250),$W24,250),$D$11*Z$15,250),2,250))) -> 15.0802432152064561645578871516337392796177758194764444214500835821002147090296226816 | AA24: =IF($W24="","",IF(AA$15="","",[1]!xpow([1]!xadd([1]!xmult([1]!xmult($D$10,$V24,250),$W24,250),$D$11*AA$15,250),2,250))) -> 16.7689885535449834133945641054598858832858108368870959478500835821002147090296226816 | AB24: =IF($W24="","",IF(AB$15="","",[1]!xpow([1]!xadd([1]!xmult([1]!xmult($D$10,$V24,250),$W24,250),$D$11*AB$15,250),2,250))) -> 18.5473394474390690400090188370860324869538458542977474742500835821002147090296226816 | AC24: =IF($W24="","",IF(AC$15="","",[1]!xpow([1]!xadd([1]!xmult([1]!xmult($D$10,$V24,250),$W24,250),$D$11*AC$15,250),2,250))) -> 20.4152958968886226778235870603253560087335550194764444214500835821002147090296226816 | AD24: =IF($W24="","",IF(AD$15="","",[1]!xpow([1]!xadd([1]!xmult([1]!xmult($D$10,$V24,250),$W24,250),$D$11*AD$15,250),2,250))) -> 22.3728579018938208266602640141515026124015900368870959478500835821002147090296226816 | AE24: =IF($W24="","",IF(AE$15="","",[1]!xpow([1]!xadd([1]!xmult([1]!xmult($D$10,$V24,250),$W24,250),$D$11*AE$15,250),2,250))) -> 24.4200254624545773532747187457776492160696250542977474742500835821002147090296226816 | AF24: =IF($W24="","",IF(AF$15="","",[1]!xpow([1]!xadd([1]!xmult([1]!xmult($D$10,$V24,250),$W24,250),$D$11*AF$15,250),2,250))) -> 26.5567985785709953242446155415906189016259859239403535798500835821002147090296226816 | AG24: =IF($W24="","",IF(AG$15="","",[1]!xpow([1]!xadd([1]!xmult([1]!xmult($D$10,$V24,250),$W24,250),$D$11*AG$15,250),2,250))) -> 28.7831772502426582399259639228431193415173692368870959478500835821002147090296226816 | AH24: =IF($W24="","",IF(AH$15="","",[1]!xpow([1]!xadd([1]!xmult([1]!xmult($D$10,$V24,250),$W24,250),$D$11*AH$15,250),2,250))) -> 31.0991614774698626000517567490956197814087525498338383158500835821002147090296226816 | AI24: =IF($W24="","",IF(AI$15="","",[1]!xpow([1]!xadd([1]!xmult([1]!xmult($D$10,$V24,250),$W24,250),$D$11*AI$15,250),2,250))) -> 33.5047512602531872375103154502822356307417651239403535798500835821002147090296226816 | AJ24: =IF($W24="","",IF(AJ$15="","",[1]!xpow([1]!xadd([1]!xmult([1]!xmult($D$10,$V24,250),$W24,250),$D$11*AJ$15,250),2,250))) ->  | AP24: 0.01425 | AQ24: =IF($AP24="","",IF(AQ$15="","",[1]!xsqr([1]!xsub(1,[1]!xdiv(X24,$D$14,250),250),250))) -> 0.999999999999999933399164263943677234795387535277990113855883362554636155805221821143742059313043866268659394251997154093165478220401451387087063129474907328134220050972901131056409872249715148344969391048067366232331201741167355376608746212284336709 | AR24: =IF($AP24="","",IF(AR$15="","",[1]!xsqr([1]!xsub(1,[1]!xdiv(Y24,$D$14,250),250),250))) -> 0.999999999999999925001247551246892273342427673747634199304013367013851988548712425072448076816184497266789290222444118750611098702937544462361495122968170451551781275095398057462499015198023718355844819808110908047466830151347399446885456447225771008 | AS24: =IF($AP24="","",IF(AS$15="","",[1]!xsqr([1]!xsub(1,[1]!xdiv(Z24,$D$14,250),250),250))) -> 0.999999999999999916104832706491683975499421889316160602772616333546650270134351897428671979296932277364082513091707311595268679277751267968738157964169338482952399610893344328113664630444447979100810376499694706265406857479746633388509184002096731702 | AT24: =IF($AP24="","",IF(AT$15="","",[1]!xsqr([1]!xsub(1,[1]!xdiv(AA24,$D$14,250),250),250))) -> 0.999999999999999906709919729678437304386083668724332185154696059375826938655010377265531204172430085057721579674749839508478377191869123836049220570276048453128178112692677027192263949992552495317309006277399243722628743920140338829015370643806590287 | AU24: =IF($AP24="","",IF(AU$15="","",[1]!xsqr([1]!xsub(1,[1]!xdiv(AB24,$D$14,250),250),250))) -> 0.9999999999999998968165086208071522459523733026044627629307171033692384459349192174173200026904179353265087230565984952204479125595783286072932095266260325172912574251176352315861687998147288674284151072421196370913442023768301892091679651270092811135 | AV24: =IF($AP24="","",IF(AV$15="","",[1]!xsqr([1]!xsub(1,[1]!xdiv(AC24,$D$14,250),250),250))) -> 0.9999999999999998864245993798783315172912676270958231919949483052047791173969032277695148080734806693396777717976321496644362579784281060285847129583316270506691636429111795775893116326703989436306681794251575189235861565424504893375941911977862206895 | AW24: =IF($AP24="","",IF(AW$15="","",[1]!xsqr([1]!xsub(1,[1]!xdiv(AD24,$D$14,250),250),250))) -> 0.9999999999999998755341920068909931901775423251353394718283996712410462107819895536350607894522023093294401425127166599742932685986295173252871348299293727181934481888963287625716712407966666406542923728202697122589171416472641477379498451184472559745 | AX24: =IF($AP24="","",IF(AX$15="","",[1]!xsqr([1]!xsub(1,[1]!xdiv(AE24,$D$14,250),250),250))) -> 0.9999999999999998641452865018456164291203187715681764136484429626345005398771041716454919574181608915719043931000481362643088701361371391974294472998247733970836030093633217934945044283311179511686126659991916259480258498098522501903637660263640746045 | AY24: =IF($AP24="","",IF(AY$15="","",[1]!xsqr([1]!xsub(1,[1]!xdiv(AF24,$D$14,250),250),250))) -> 0.999999999999999852257882864741627831920475490628711731984783964516062650342025254267770892592376282326658612990612681379005734725349064604209955686636638979769503456823231412030353384491287345149487758645810429600760314857930959302817517458073460744 | AZ24: =IF($AP24="","",IF(AZ$15="","",[1]!xsqr([1]!xsub(1,[1]!xdiv(AG24,$D$14,250),250),250))) -> 0.999999999999999839871981095581344472561628549816480885722676614266387481766928785989200712379153312485636441517315767395887284833813614255452780121134602216165265556406274890335888918852950801402893444893632834295943587687796417293364872373495003642 | BA24: =IF($AP24="","",IF(BA$15="","",[1]!xsqr([1]!xsub(1,[1]!xdiv(AH24,$D$14,250),250),250))) -> 0.999999999999999826987581194363116830298059321126725953421383491710015934223658782179011561917153221675467576148884513344244997312883404231013483930515501954836556382742035736426996324588112346039216677032098972872629681206654237664846600781110225977 | BB24: =IF($AP24="","",IF(BB$15="","",[1]!xsqr([1]!xsub(1,[1]!xdiv(AI24,$D$14,250),250),250))) -> 0.9999999999999998136046831610837246936330373692538887329610762695617346016977886747464193889185304885390739597363097649602037524042614471364176686749737079013707354920684370657951880676223373706551954180667001195847513888383225685958973823796736986055
V25: 1.11206829 | W25: 0.014125 | X25: =IF($W25="","",IF(X$15="","",[1]!xpow([1]!xadd([1]!xmult([1]!xmult($D$10,$V25,250),$W25,250),$D$11*X$15,250),2,250))) -> 11.9715689326759347151744110664137469419383853297344849600194015186183221550841726016 | Y25: =IF($W25="","",IF(Y$15="","",[1]!xpow([1]!xadd([1]!xmult([1]!xmult($D$10,$V25,250),$W25,250),$D$11*Y$15,250),2,250))) -> 13.4811031432317386557753017619186192790407612777877936928194015186183221550841726016 | Z25: =IF($W25="","",IF(Z$15="","",[1]!xpow([1]!xadd([1]!xmult([1]!xmult($D$10,$V25,250),$W25,250),$D$11*Z$15,250),2,250))) -> 15.0802429093431701740641802229243570716611737037611393264194015186183221550841726016 | AA25: =IF($W25="","",IF(AA$15="","",[1]!xpow([1]!xadd([1]!xmult([1]!xmult($D$10,$V25,250),$W25,250),$D$11*AA$15,250),2,250))) -> 16.7689882310101600701308364617300948642815861297344849600194015186183221550841726016 | AB25: =IF($W25="","",IF(AB$15="","",[1]!xpow([1]!xadd([1]!xmult([1]!xmult($D$10,$V25,250),$W25,250),$D$11*AB$15,250),2,250))) -> 18.5473391082327083439752704783358326569019985557078305936194015186183221550841726016 | AC25: =IF($W25="","",IF(AC$15="","",[1]!xpow([1]!xadd([1]!xmult([1]!xmult($D$10,$V25,250),$W25,250),$D$11*AC$15,250),2,250))) -> 20.4152955410107246290206056182407049940043745037611393264194015186183221550841726016 | AD25: =IF($W25="","",IF(AD$15="","",[1]!xpow([1]!xadd([1]!xmult([1]!xmult($D$10,$V25,250),$W25,250),$D$11*AD$15,250),2,250))) -> 22.3728575293443854250872618570464427866247869297344849600194015186183221550841726016 | AE25: =IF($W25="","",IF(AE$15="","",[1]!xpow([1]!xadd([1]!xmult([1]!xmult($D$10,$V25,250),$W25,250),$D$11*AE$15,250),2,250))) -> 24.4200250732336045989316958736521805792451993557078305936194015186183221550841726016 | AF25: =IF($W25="","",IF(AF$15="","",[1]!xpow([1]!xadd([1]!xmult([1]!xmult($D$10,$V25,250),$W25,250),$D$11*AF$15,250),2,250))) -> 26.5567981726784852171307843227587838273836482596012131280194015186183221550841726016 | AG25: =IF($W25="","",IF(AG$15="","",[1]!xpow([1]!xadd([1]!xmult([1]!xmult($D$10,$V25,250),$W25,250),$D$11*AG$15,250),2,250))) -> 28.7831768276786107800436872523627907089679877297344849600194015186183221550841726016 | AH25: =IF($W25="","",IF(AH$15="","",[1]!xpow([1]!xadd([1]!xmult([1]!xmult($D$10,$V25,250),$W25,250),$D$11*AH$15,250),2,250))) -> 31.0991610382342777874010346269667975905523271998677567920194015186183221550841726016 | AI25: =IF($W25="","",IF(AI$15="","",[1]!xpow([1]!xadd([1]!xmult([1]!xmult($D$10,$V25,250),$W25,250),$D$11*AI$15,250),2,250))) -> 33.5047508043460650720872097180751317497268490596012131280194015186183221550841726016 | AJ25: =IF($W25="","",IF(AJ$15="","",[1]!xpow([1]!xadd([1]!xmult([1]!xmult($D$10,$V25,250),$W25,250),$D$11*AJ$15,250),2,250))) ->  | AP25: 0.014125 | AQ25: =IF($AP25="","",IF(AQ$15="","",[1]!xsqr([1]!xsub(1,[1]!xdiv(X25,$D$14,250),250),250))) -> 0.9999999999999999333991657800418190445380419976268003006125318605549594747196798791389944605082486440832381803968746231396050044639213755108705832423795742932839047660523609773122975030645320440718649817596978022602843427285500684480824860116857321925 | AR25: =IF($AP25="","",IF(AR$15="","",[1]!xsqr([1]!xsub(1,[1]!xdiv(Y25,$D$14,250),250),250))) -> 0.9999999999999999250012491600929689333785050243235999570014719416674612065365567659199249564336759746296088681796123395655667929798243024557610329375982231367557271493451006716557418230146741004421766834786858387671807199183416181233517383201991712405 | AS25: =IF($AP25="","",IF(AS$15="","",[1]!xsqr([1]!xsub(1,[1]!xdiv(Z25,$D$14,250),250),250))) -> 0.999999999999999916104834408085695485833306326337225678934579866720458215917944695183594803135146023308622173550309585377744378959094204016417648110681187251353534448483808171805545803547783997791517990951690512807029075448043531441628637867393277827 | AT25: =IF($AP25="","",IF(AT$15="","",[1]!xsqr([1]!xsub(1,[1]!xdiv(AA25,$D$14,250),250),250))) -> 0.999999999999999906709921524020383665017777736914805356918444757947023916489196684714622730239953150662789665221633911824137336804380413909879869045241471259092578288604881553394599923331447952099036157439066212130737920981758701262036226402079612441 | AU25: =IF($AP25="","",IF(AU$15="","",[1]!xsqr([1]!xsub(1,[1]!xdiv(AB25,$D$14,250),250),250))) -> 0.9999999999999998968165105078970334568818796853926696327759347454276808770892005834050297789266669450974587769989818132357142509011273664659396062607687975590724172059380867304157597650349575364433642438157591600473459508871966078726612182046885288305 | AV25: =IF($AP25="","",IF(AV$15="","",[1]!xsqr([1]!xsub(1,[1]!xdiv(AC25,$D$14,250),250),250))) -> 0.999999999999999886424601359716147578514207354416454391397444744572189895984903028460280462779734432344531539052926503419613348516077973968218375781328348755906388246185381018201800615074643169297061689273425987386459132609075604130037823261048841517 | AW25: =IF($AP25="","",IF(AW$15="","",[1]!xsqr([1]!xsub(1,[1]!xdiv(AD25,$D$14,250),250),250))) -> 0.9999999999999998755341940794767441016983001500224060501558661165502690954970774520808696968637529929268175289035960978848544149945405471645802766819561779272951712784141770671603506443876682362128312670496304144639501392314488896718197222529216713005 | AX25: =IF($AP25="","",IF(AX$15="","",[1]!xsqr([1]!xsub(1,[1]!xdiv(AE25,$D$14,250),250),250))) -> 0.999999999999999864145288667179302190938897793562054449401345500118904557370367276507761098631348214877867774273566154626389507443740687272485809610371815931358024277714320371684212986245622553544813195231956128667864328992367163762807588114457389625 | AY25: =IF($AP25="","",IF(AY$15="","",[1]!xsqr([1]!xsub(1,[1]!xdiv(AF25,$D$14,250),250),250))) -> 0.9999999999999998522578851228232484440412607401714459258015106500428696522410086040382439461566490054764386698078087442070107458164708989526363892354624332063492025268409700134615132248094412109540257332101163724017924400974247964423803574194738161075 | AZ25: =IF($AP25="","",IF(AZ$15="","",[1]!xsqr([1]!xsub(1,[1]!xdiv(AG25,$D$14,250),250),250))) -> 0.999999999999999839871983446410899934971478027263525576239584772387415657730567521155411929875580374871253709992071635186073273514335833444021682780855120557674924443092803645731826629609084378519091877670985691091066169311893123015262732451009764111 | BA25: =IF($AP25="","",IF(BA$15="","",[1]!xsqr([1]!xsub(1,[1]!xdiv(AH25,$D$14,250),250),250))) -> 0.999999999999999826987583637940607142996976542130507694495554845627939427101602700590919749554494279968123790333535359685939029028173996472393287685563029220036650354587833399907330855038552061804769298045228353270872515374798858894222996544299948991 | BB25: =IF($AP25="","",IF(BB$15="","",[1]!xsqr([1]!xsub(1,[1]!xdiv(AI25,$D$14,250),250),250))) -> 0.999999999999999813604685697409149856642934949159109890270554572949322498725106238737005428350831132014735149205794472704354157598775981645957034333461036633438324635600086808980126481429245206232123624952971618364989752713196965417403616621762182555
V26: 1.132015306 | W26: 0.014 | X26: =IF($W26="","",IF(X$15="","",[1]!xpow([1]!xadd([1]!xmult([1]!xmult($D$10,$V26,250),$W26,250),$D$11*X$15,250),2,250))) -> 11.97156865528929427131705245157531016265254260895787170544347949995267262276767744 | Y26: =IF($W26="","",IF(Y$15="","",[1]!xpow([1]!xadd([1]!xmult([1]!xmult($D$10,$V26,250),$W26,250),$D$11*Y$15,250),2,250))) -> 13.48110284887585483499664035320956072811868915491202492144347949995267262276767744 | Z26: =IF($W26="","",IF(Z$15="","",[1]!xpow([1]!xadd([1]!xmult([1]!xmult($D$10,$V26,250),$W26,250),$D$11*Z$15,250),2,250))) -> 15.08024259801804297636341432380718437883870388193494831344347949995267262276767744 | AA26: =IF($W26="","",IF(AA$15="","",[1]!xpow([1]!xadd([1]!xmult([1]!xmult($D$10,$V26,250),$W26,250),$D$11*AA$15,250),2,250))) -> 16.76898790271578949550796607220480802955871860895787170544347949995267262276767744 | AB26: =IF($W26="","",IF(AB$15="","",[1]!xpow([1]!xadd([1]!xmult([1]!xmult($D$10,$V26,250),$W26,250),$D$11*AB$15,250),2,250))) -> 18.54733876296909439243029559840243168027873333598079509744347949995267262276767744 | AC26: =IF($W26="","",IF(AC$15="","",[1]!xpow([1]!xadd([1]!xmult([1]!xmult($D$10,$V26,250),$W26,250),$D$11*AC$15,250),2,250))) -> 20.41529517877786730055432794443668224574487988193494831344347949995267262276767744 | AD26: =IF($W26="","",IF(AD$15="","",[1]!xpow([1]!xadd([1]!xmult([1]!xmult($D$10,$V26,250),$W26,250),$D$11*AD$15,250),2,250))) -> 22.37285715014228471969887969283430589646489460895787170544347949995267262276767744 | AE26: =IF($W26="","",IF(AE$15="","",[1]!xpow([1]!xadd([1]!xmult([1]!xmult($D$10,$V26,250),$W26,250),$D$11*AE$15,250),2,250))) -> 24.42002467706226051662120921903192954718490933598079509744347949995267262276767744 | AF26: =IF($W26="","",IF(AF$15="","",[1]!xpow([1]!xadd([1]!xmult([1]!xmult($D$10,$V26,250),$W26,250),$D$11*AF$15,250),2,250))) -> 26.55679775953789775789739148119292628315879224407248866544347949995267262276767744 | AG26: =IF($W26="","",IF(AG$15="","",[1]!xpow([1]!xadd([1]!xmult([1]!xmult($D$10,$V26,250),$W26,250),$D$11*AG$15,250),2,250))) -> 28.78317639756877994388979331346380376337107060895787170544347949995267262276767744 | AH26: =IF($W26="","",IF(AH$15="","",[1]!xpow([1]!xadd([1]!xmult([1]!xmult($D$10,$V26,250),$W26,250),$D$11*AH$15,250),2,250))) -> 31.09916059115520357432663959073468124358334897384325474544347949995267262276767744 | AI26: =IF($W26="","",IF(AI$15="","",[1]!xpow([1]!xadd([1]!xmult([1]!xmult($D$10,$V26,250),$W26,250),$D$11*AI$15,250),2,250))) -> 33.50475034029774748208830510182242415006496824407248866544347949995267262276767744 | AJ26: =IF($W26="","",IF(AJ$15="","",[1]!xpow([1]!xadd([1]!xmult([1]!xmult($D$10,$V26,250),$W26,250),$D$11*AJ$15,250),2,250))) ->  | AP26: 0.014 | AQ26: =IF($AP26="","",IF(AQ$15="","",[1]!xsqr([1]!xsub(1,[1]!xdiv(X26,$D$14,250),250),250))) -> 0.999999999999999933399167323213124236452103201370455685898151548311632006672657584306309878633666928728543426752369257993541180670253238902836513961700370129298404987188257543936876931021394053225436894492380493259109788886295404187256997806197756004 | AR26: =IF($AP26="","",IF(AR$15="","",[1]!xsqr([1]!xsub(1,[1]!xdiv(Y26,$D$14,250),250),250))) -> 0.9999999999999999250012507976684220978874906989051485399187900494659365312543708467162413016419841496711095404820315352826893879942092390682020012022386693276614307951606111277981976722443286652331488519966760337349881979811435576020479807648972072745 | AS26: =IF($AP26="","",IF(AS$15="","",[1]!xsqr([1]!xsub(1,[1]!xdiv(Z26,$D$14,250),250),250))) -> 0.9999999999999999161048361400652966229416789592284753681122397997547801156895322967765332250358688121991910682618525140584495429147923774796354860464171717632859787265974074183767799901673684388738126112914869626056304631773106290863635524612939604105 | AT26: =IF($AP26="","",IF(AT$15="","",[1]!xsqr([1]!xsub(1,[1]!xdiv(AA26,$D$14,250),250),250))) -> 0.999999999999999906709923350404132774725539918281543940781299789135065555931539230559781708204401887622560004755652897365120935082077229455298385279353185697886303268841531419742269619640546353746744173345652523360780393013779608339790062187626784237 | AU26: =IF($AP26="","",IF(AU$15="","",[1]!xsqr([1]!xsub(1,[1]!xdiv(AB26,$D$14,250),250),250))) -> 0.9999999999999998968165124286849305391890341465815591683632908631829274443930415130347490405103623724831434366419134159156944256550261206629178648637478819618838938345012143407615222173927253122400255531814671197613843036018640401483043252276755644595 | AV26: =IF($AP26="","",IF(AV$15="","",[1]!xsqr([1]!xsub(1,[1]!xdiv(AC26,$D$14,250),250),250))) -> 0.9999999999999998864246033749081926334162969294681368149163325039907785932954424068747436516434719851353064907566339343308332088160678802440775618914988504470062124944937070434085946184460468883650173658827842943838435948990596768591285669942603869505 | AW26: =IF($AP26="","",IF(AW$15="","",[1]!xsqr([1]!xsub(1,[1]!xdiv(AD26,$D$14,250),250),250))) -> 0.9999999999999998755341961890729371291997878911321863451755929296065442959290250073768021457064559564885562668313004210794495251387112363948066745167607728747926167999768192913707148501787767498278212684884079737090376035494757263805338773149574600025 | AX26: =IF($AP26="","",IF(AX$15="","",[1]!xsqr([1]!xsub(1,[1]!xdiv(AE26,$D$14,250),250),250))) -> 0.9999999999999998641452908711796431910397868556192174787980323032622558411986807572565502018402219017709173177627778213418007367796840324408943449275466311925009789389735340077728284748583386788787419699835926202290462499742820293253756587564104746315 | AY26: =IF($AP26="","",IF(AY$15="","",[1]!xsqr([1]!xsub(1,[1]!xdiv(AF26,$D$14,250),250),250))) -> 0.999999999999999852257887421227737416746014457733045210969722302195436586535032725667924261077463288824514534827333051828363636056058425232574441110447762214426029625320045944106364205840856058734725966554129196396487305448886210909280820955554623138 | AZ26: =IF($AP26="","",IF(AZ$15="","",[1]!xsqr([1]!xsub(1,[1]!xdiv(AG26,$D$14,250),250),250))) -> 0.999999999999999839871985839219536880266719722119911347407114014090813620415452926633718482993585070803519785444992832720046148884510487825423229266226499741267346954107779778184990465531571227380974980538262006423370387899205206014665713502226320881 | BA26: =IF($AP26="","",IF(BA$15="","",[1]!xsqr([1]!xsub(1,[1]!xdiv(AH26,$D$14,250),250),250))) -> 0.999999999999999826987586125153392060882709792713587619699310776071773720465689216715834147978682491028816461157099812047766053740513750135716021432602047681574902542433360988025362489683229312290742494812379719020809366598374036600530693860717701549 | BB26: =IF($AP26="","",IF(BB$15="","",[1]!xsqr([1]!xsub(1,[1]!xdiv(AI26,$D$14,250),250),250))) -> 0.9999999999999998136046882790260827471414636675161378582274816055618676549715647459582163795406381544405056077124639925590284232977539733770326067267614208363913884248195478923470933857253354543875368388974667904697218348370660709109486479232276065465
V27: 1.152503855 | W27: 0.013875 | X27: =IF($W27="","",IF(X$15="","",[1]!xpow([1]!xadd([1]!xmult([1]!xmult($D$10,$V27,250),$W27,250),$D$11*X$15,250),2,250))) -> 11.9715683729046996429520052884732817748537464557351961885604785381798530823254196224 | Y27: =IF($W27="","",IF(Y$15="","",[1]!xpow([1]!xadd([1]!xmult([1]!xmult($D$10,$V27,250),$W27,250),$D$11*Y$15,250),2,250))) -> 13.4811025492162646967931069156177059989507539463484046109604785381798530823254196224 | Z27: =IF($W27="","",IF(Z$15="","",[1]!xpow([1]!xadd([1]!xmult([1]!xmult($D$10,$V27,250),$W27,250),$D$11*Z$15,250),2,250))) -> 15.0802422810834573283205784702053534328511334010418003997604785381798530823254196224 | AA27: =IF($W27="","",IF(AA$15="","",[1]!xpow([1]!xadd([1]!xmult([1]!xmult($D$10,$V27,250),$W27,250),$D$11*AA$15,250),2,250))) -> 16.7689875685062083376258278025930008667515128557351961885604785381798530823254196224 | AB27: =IF($W27="","",IF(AB$15="","",[1]!xpow([1]!xadd([1]!xmult([1]!xmult($D$10,$V27,250),$W27,250),$D$11*AB$15,250),2,250))) -> 18.5473384114845177247088549127806483006518923104285919773604785381798530823254196224 | AC27: =IF($W27="","",IF(AC$15="","",[1]!xpow([1]!xadd([1]!xmult([1]!xmult($D$10,$V27,250),$W27,250),$D$11*AC$15,250),2,250))) -> 20.4152948100182951229944009843250725247488998010418003997604785381798530823254196224 | AD27: =IF($W27="","",IF(AD$15="","",[1]!xpow([1]!xadd([1]!xmult([1]!xmult($D$10,$V27,250),$W27,250),$D$11*AD$15,250),2,250))) -> 22.3728567641077170322996503167127199586492792557351961885604785381798530823254196224 | AE27: =IF($W27="","",IF(AE$15="","",[1]!xpow([1]!xadd([1]!xmult([1]!xmult($D$10,$V27,250),$W27,250),$D$11*AE$15,250),2,250))) -> 24.4200242737526973193826774269003673925496587104285919773604785381798530823254196224 | AF27: =IF($W27="","",IF(AF$15="","",[1]!xpow([1]!xadd([1]!xmult([1]!xmult($D$10,$V27,250),$W27,250),$D$11*AF$15,250),2,250))) -> 26.5567973389533390508187411315312380362534101292021751325604785381798530823254196224 | AG27: =IF($W27="","",IF(AG$15="","",[1]!xpow([1]!xadd([1]!xmult([1]!xmult($D$10,$V27,250),$W27,250),$D$11*AG$15,250),2,250))) -> 28.7831759597092257269734728308324390505470456557351961885604785381798530823254196224 | AH27: =IF($W27="","",IF(AH$15="","",[1]!xpow([1]!xadd([1]!xmult([1]!xmult($D$10,$V27,250),$W27,250),$D$11*AH$15,250),2,250))) -> 31.0991601360206538475726489751336400648406811822682172445604785381798530823254196224 | AI27: =IF($W27="","",IF(AI$15="","",[1]!xpow([1]!xadd([1]!xmult([1]!xmult($D$10,$V27,250),$W27,250),$D$11*AI$15,250),2,250))) -> 33.5047498678882022454925636456509571281511765292021751325604785381798530823254196224 | AJ27: =IF($W27="","",IF(AJ$15="","",[1]!xpow([1]!xadd([1]!xmult([1]!xmult($D$10,$V27,250),$W27,250),$D$11*AJ$15,250),2,250))) ->  | AP27: 0.013875 | AQ27: =IF($AP27="","",IF(AQ$15="","",[1]!xsqr([1]!xsub(1,[1]!xdiv(X27,$D$14,250),250),250))) -> 0.999999999999999933399168894189299446095648572475574680724284811853613458860747978086594612743711218723072613536945967595017910271867981593616056353156955844296484953514185665573469743336905559655587596418109790759676442008157007962484148456576828592 | AR27: =IF($AP27="","",IF(AR$15="","",[1]!xsqr([1]!xsub(1,[1]!xdiv(Y27,$D$14,250),250),250))) -> 0.9999999999999999250012524647497209192700488672925588762700833818185133570912202347364101280108523842393281516489101871163599521029060497039952142839297557274878030145555079806327730106191187080754599086597727342288388603839027461650404207540869534015 | AS27: =IF($AP27="","",IF(AS$15="","",[1]!xsqr([1]!xsub(1,[1]!xdiv(Z27,$D$14,250),250),250))) -> 0.999999999999999916104837903251719056067792817549629622324730115334391944975550070953994328542611424573205039982760584573355234162094754734547567806334943291308029853831455002985098979470708202692584761184673465305259490938277191343349146913345986117 | AT27: =IF($AP27="","",IF(AT$15="","",[1]!xsqr([1]!xsub(1,[1]!xdiv(AA27,$D$14,250),250),250))) -> 0.999999999999999906709925209695678819595212103371856271881412847546613626935343544857912044397423580742081150929137393957438684972390745469233558613375234328611889758920998469575626414461575605044514001360373499516840658408509810017298102221443890208 | AU27: =IF($AP27="","",IF(AU$15="","",[1]!xsqr([1]!xsub(1,[1]!xdiv(AB27,$D$14,250),250),250))) -> 0.9999999999999998968165143840816001958022674390011175403606954248503123191971472722852119201323101929223348015834756280516047542916261905947843848972843479886144880383318200135760150854390816633586697419172592498499582751060254905349463686155655770865 | AV27: =IF($AP27="","",IF(AV$15="","",[1]!xsqr([1]!xsub(1,[1]!xdiv(AC27,$D$14,250),250),250))) -> 0.999999999999999886424605426409985901768553853960990773871276820493978275886708366951380238810218522212451235597865523385105733410032786608563788422476654764360344723447061733380215424758267071352756203700194145878786131087631286738845758500281215435 | AW27: =IF($AP27="","",IF(AW$15="","",[1]!xsqr([1]!xsub(1,[1]!xdiv(AD27,$D$14,250),250),250))) -> 0.999999999999999875534198336679854009295611915248483687848639114908523575237883990499038796093534525051247781985769586235512725783923541684194277788856339632966164005293698118843578409190747311299464085763843887243417930114098958497310349849116608176 | AX27: =IF($AP27="","",IF(AX$15="","",[1]!xsqr([1]!xsub(1,[1]!xdiv(AE27,$D$14,250),250),250))) -> 0.9999999999999998641452931148916836828791811910930675841419170263241652002250602000398314913168050662808880017576652504777937070493639148749408505804545951217673302192786117866920853289912279239208549195514437379427169421870816729096064434747548847635 | AY27: =IF($AP27="","",IF(AY$15="","",[1]!xsqr([1]!xsub(1,[1]!xdiv(AF27,$D$14,250),250),250))) -> 0.999999999999999852257889761044901520333522859563943486318590770752019567677894329719440703322733315247754487767406897143812671132317731631201858037543814996397182062209619539680550367626764949396046643564978957257128604508080328967264066021305724236 | AZ27: =IF($AP27="","",IF(AZ$15="","",[1]!xsqr([1]!xsub(1,[1]!xdiv(AG27,$D$14,250),250),250))) -> 0.9999999999999998398719882751418245955887244908691781113174546224378450040614146726995432476794816283515045544357762997719821926936834492563114291811589563695306798285477656557020667493359613588165863261307972765444443380233757865682264836129775703995 | BA27: =IF($AP27="","",IF(BA$15="","",[1]!xsqr([1]!xsub(1,[1]!xdiv(AH27,$D$14,250),250),250))) -> 0.9999999999999998269875886571808033879392145712893536653787206588019384170123583489593978351691828262370983166150620736342620526522381667077752462824677487387494836947054912721978954320151286862932565486169069493889057364267256608993835908559053226225 | BB27: =IF($AP27="","",IF(BB$15="","",[1]!xsqr([1]!xsub(1,[1]!xdiv(AI27,$D$14,250),250),250))) -> 0.999999999999999813604690907158617685955174240254768903449122277552300611092614520820132424071153141947631722471562389804104102646544552098928340110641788982190275416040984458959900711374076992162076192068777924630666113610497891506131140735630074828
V28: 1.173553719 | W28: 0.01375 | X28: =IF($W28="","",IF(X$15="","",[1]!xpow([1]!xadd([1]!xmult([1]!xmult($D$10,$V28,250),$W28,250),$D$11*X$15,250),2,250))) -> 11.97156808538584307973141496066025503192726133681342841651993201814069977163440384 | Y28: =IF($W28="","",IF(Y$15="","",[1]!xpow([1]!xadd([1]!xmult([1]!xmult($D$10,$V28,250),$W28,250),$D$11*Y$15,250),2,250))) -> 13.48110224410832179629516974445742652080384094623763392051993201814069977163440384 | Z28: =IF($W28="","",IF(Z$15="","",[1]!xpow([1]!xadd([1]!xmult([1]!xmult($D$10,$V28,250),$W28,250),$D$11*Z$15,250),2,250))) -> 15.08024195838642809054446347524094194857842314152553116851993201814069977163440384 | AA28: =IF($W28="","",IF(AA$15="","",[1]!xpow([1]!xadd([1]!xmult([1]!xmult($D$10,$V28,250),$W28,250),$D$11*AA$15,250),2,250))) -> 16.76898722822009276257153498382445737635300533681342841651993201814069977163440384 | AB28: =IF($W28="","",IF(AB$15="","",[1]!xpow([1]!xadd([1]!xmult([1]!xmult($D$10,$V28,250),$W28,250),$D$11*AB$15,250),2,250))) -> 18.54733805360931581237638427020797280412758753210132566451993201814069977163440384 | AC28: =IF($W28="","",IF(AC$15="","",[1]!xpow([1]!xadd([1]!xmult([1]!xmult($D$10,$V28,250),$W28,250),$D$11*AC$15,250),2,250))) -> 20.41529443455400687338458349840514429300416714152553116851993201814069977163440384 | AD28: =IF($W28="","",IF(AD$15="","",[1]!xpow([1]!xadd([1]!xmult([1]!xmult($D$10,$V28,250),$W28,250),$D$11*AD$15,250),2,250))) -> 22.37285637105434244541165500698865972077874933681342841651993201814069977163440384 | AE28: =IF($W28="","",IF(AE$15="","",[1]!xpow([1]!xadd([1]!xmult([1]!xmult($D$10,$V28,250),$W28,250),$D$11*AE$15,250),2,250))) -> 24.42002386311023639521650429337217514855333153210132566451993201814069977163440384 | AF28: =IF($W28="","",IF(AF$15="","",[1]!xpow([1]!xadd([1]!xmult([1]!xmult($D$10,$V28,250),$W28,250),$D$11*AF$15,250),2,250))) -> 26.55679691072179178937355919374203451522591631325291465651993201814069977163440384 | AG28: =IF($W28="","",IF(AG$15="","",[1]!xpow([1]!xadd([1]!xmult([1]!xmult($D$10,$V28,250),$W28,250),$D$11*AG$15,250),2,250))) -> 28.78317551388859212825177503015286206520449333681342841651993201814069977163440384 | AH28: =IF($W28="","",IF(AH$15="","",[1]!xpow([1]!xadd([1]!xmult([1]!xmult($D$10,$V28,250),$W28,250),$D$11*AH$15,250),2,250))) -> 31.09915967261093391157443531156368961518307036037394217651993201814069977163440384 | AI28: =IF($W28="","",IF(AI$15="","",[1]!xpow([1]!xadd([1]!xmult([1]!xmult($D$10,$V28,250),$W28,250),$D$11*AI$15,250),2,250))) -> 33.50474938688939597221367921690623685965166031325291465651993201814069977163440384 | AJ28: =IF($W28="","",IF(AJ$15="","",[1]!xpow([1]!xadd([1]!xmult([1]!xmult($D$10,$V28,250),$W28,250),$D$11*AJ$15,250),2,250))) ->  | AP28: 0.01375 | AQ28: =IF($AP28="","",IF(AQ$15="","",[1]!xsqr([1]!xsub(1,[1]!xdiv(X28,$D$14,250),250),250))) -> 0.999999999999999933399170493728658803794093493130850690213329848441413554965160418094671306353524096858401214494418865574644611134815043625206600987312888092066216834744302784724375956938614682643968109360237404387159349936638790305468503490491693851 | AR28: =IF($AP28="","",IF(AR$15="","",[1]!xsqr([1]!xsub(1,[1]!xdiv(Y28,$D$14,250),250),250))) -> 0.9999999999999999250012541621415697724863849873660038962200881621209726613887407695063258734973301275501839475160853584842573908809052004730544186459444159993230529581934727074327726333034716357680716535063203434329745059171531428845168275564927876135 | AS28: =IF($AP28="","",IF(AS$15="","",[1]!xsqr([1]!xsub(1,[1]!xdiv(Z28,$D$14,250),250),250))) -> 0.999999999999999916104839698496057404806645627740872636401956209123041362174148044361116792210278705595306556032006252885480122026829095392603251849414196615780381187250691165850714573238584481191559332426209495107248536121636226122677896784134813698 | AT28: =IF($AP28="","",IF(AT$15="","",[1]!xsqr([1]!xsub(1,[1]!xdiv(AA28,$D$14,250),250),250))) -> 0.9999999999999999067099271027925066638565842884587450439321179397145420013384347382503775845933272831989142687864544477848106878161788952325651957759949285451716326507453900760367127860834557042586500071129444868078948300956653503779518819133901896295 | AU28: =IF($AP28="","",IF(AU$15="","",[1]!xsqr([1]!xsub(1,[1]!xdiv(AB28,$D$14,250),250),250))) -> 0.999999999999999896816516375030917535586161830099349526471648691888345277121985483812235973623844162188724323953418786664354740440760588325802226911409253921979400824820473665895750711482065232014015574957588466254080261909398179585317874516876075602 | AV28: =IF($AP28="","",IF(AV$15="","",[1]!xsqr([1]!xsub(1,[1]!xdiv(AC28,$D$14,250),250),250))) -> 0.9999999999999998864246075152117927370703504762644822096578013093610441658335003831393501006272941956373212998577682091159945633208129198578175832899727880586806144911357534031578276185382095062737668932289932688612161905263415302888005975001010911715 | AW28: =IF($AP28="","",IF(AW$15="","",[1]!xsqr([1]!xsub(1,[1]!xdiv(AD28,$D$14,250),250),250))) -> 0.999999999999999875534200523334150340119936844808262326439532883498181406745481484503698325228598513788532890262849638488745779442418696650851313570247380766841121363468535617372191987740589205861318247248859053600328413867389108058849726276627613636 | AX28: =IF($AP28="","",IF(AX$15="","",[1]!xsqr([1]!xsub(1,[1]!xdiv(AE28,$D$14,250),250),250))) -> 0.9999999999999998641452953993984695092260376980383799583387015212008896868078985086390371017556574312795182644411254552552623237083250783060283285205112672628504703165849293871276034183292475523106538552890530281093456904451345449014011021659433121225 | AY28: =IF($AP28="","",IF(AY$15="","",[1]!xsqr([1]!xsub(1,[1]!xdiv(AF28,$D$14,250),250),250))) -> 0.999999999999999852257892143404176842207537312621516734349222248704631445724745730747268067371025362380496593935783494777406797810305087951283792431204264945458183710170293691768294533583557823035931681610992002532060444176744859379907324754855165161 | AZ28: =IF($AP28="","",IF(AZ$15="","",[1]!xsqr([1]!xsub(1,[1]!xdiv(AG28,$D$14,250),250),250))) -> 0.999999999999999839871990755353589412976031596065065410735411029657699856074213346032545575394844288036317429069206716665042708528156664521777529142600293377533389717443975477685513568282955402653329399815060011138370606590627787212293329307709550067 | BA28: =IF($AP28="","",IF(BA$15="","",[1]!xsqr([1]!xsub(1,[1]!xdiv(AH28,$D$14,250),250),250))) -> 0.9999999999999998269875912352450577008398180377663506249995554118016915234400590241297852430929263619782180968783595940181510737702158388154079700790646683991184261630123229931512926565010956893153295297292005185306493095232232876892304797197991447915 | BB28: =IF($AP28="","",IF(BB$15="","",[1]!xsqr([1]!xsub(1,[1]!xdiv(AI28,$D$14,250),250),250))) -> 0.999999999999999813604693583075361494392192684791675392897128614179267402655291732723871615253225828090787474348797077671581838505925199079002388882201818962234463187957113279304586638832480159329050014736487855057944136602277038537389989423702395902
V29: 1.19518559 | W29: 0.013625 | X29: =IF($W29="","",IF(X$15="","",[1]!xpow([1]!xadd([1]!xmult([1]!xmult($D$10,$V29,250),$W29,250),$D$11*X$15,250),2,250))) -> 11.9715677925914147145469519832105490176147164630850882675542478727278708759291216896 | Y29: =IF($W29="","",IF(Y$15="","",[1]!xpow([1]!xadd([1]!xmult([1]!xmult($D$10,$V29,250),$W29,250),$D$11*Y$15,250),2,250))) -> 13.4811019334020715646826584116979172694616803290556106227542478727278708759291216896 | Z29: =IF($W29="","",IF(Z$15="","",[1]!xpow([1]!xadd([1]!xmult([1]!xmult($D$10,$V29,250),$W29,250),$D$11*Z$15,250),2,250))) -> 15.0802416297683559925030575593669162974110319960703494451542478727278708759291216896 | AA29: =IF($W29="","",IF(AA$15="","",[1]!xpow([1]!xadd([1]!xmult([1]!xmult($D$10,$V29,250),$W29,250),$D$11*AA$15,250),2,250))) -> 16.7689868816901987981012344848359153253603836630850882675542478727278708759291216896 | AB29: =IF($W29="","",IF(AB$15="","",[1]!xpow([1]!xadd([1]!xmult([1]!xmult($D$10,$V29,250),$W29,250),$D$11*AB$15,250),2,250))) -> 18.5473376891675999814771891881049143533097353300998270899542478727278708759291216896 | AC29: =IF($W29="","",IF(AC$15="","",[1]!xpow([1]!xadd([1]!xmult([1]!xmult($D$10,$V29,250),$W29,250),$D$11*AC$15,250),2,250))) -> 20.4152940522004691760573400609922826051566991960703494451542478727278708759291216896 | AD29: =IF($W29="","",IF(AD$15="","",[1]!xpow([1]!xadd([1]!xmult([1]!xmult($D$10,$V29,250),$W29,250),$D$11*AD$15,250),2,250))) -> 22.3728559707889828816555169864612816331060508630850882675542478727278708759291216896 | AE29: =IF($W29="","",IF(AE$15="","",[1]!xpow([1]!xadd([1]!xmult([1]!xmult($D$10,$V29,250),$W29,250),$D$11*AE$15,250),2,250))) -> 24.4200234449330549650314716897302806610554025300998270899542478727278708759291216896 | AF29: =IF($W29="","",IF(AF$15="","",[1]!xpow([1]!xadd([1]!xmult([1]!xmult($D$10,$V29,250),$W29,250),$D$11*AF$15,250),2,250))) -> 26.5567964746327884927587857791809104651071419981587823795542478727278708759291216896 | AG29: =IF($W29="","",IF(AG$15="","",[1]!xpow([1]!xadd([1]!xmult([1]!xmult($D$10,$V29,250),$W29,250),$D$11*AG$15,250),2,250))) -> 28.7831750598877669652097994880866479408517180630850882675542478727278708759291216896 | AH29: =IF($W29="","",IF(AH$15="","",[1]!xpow([1]!xadd([1]!xmult([1]!xmult($D$10,$V29,250),$W29,250),$D$11*AH$15,250),2,250))) -> 31.0991592006982868821052576419923854165962941280113941555542478727278708759291216896 | AI29: =IF($W29="","",IF(AI$15="","",[1]!xpow([1]!xadd([1]!xmult([1]!xmult($D$10,$V29,250),$W29,250),$D$11*AI$15,250),2,250))) -> 33.5047488970649270763130682808062767728528091981587823795542478727278708759291216896 | AJ29: =IF($W29="","",IF(AJ$15="","",[1]!xpow([1]!xadd([1]!xmult([1]!xmult($D$10,$V29,250),$W29,250),$D$11*AJ$15,250),2,250))) ->  | AP29: 0.013625 | AQ29: =IF($AP29="","",IF(AQ$15="","",[1]!xsqr([1]!xsub(1,[1]!xdiv(X29,$D$14,250),250),250))) -> 0.9999999999999999333991721226173444673424988806643034804838051568438321305886769836065442798868147785244044324004862647202697367410894290334507058757225511616770346978147732442366107862164164542700620047048500552692738188176675462017850036828093074235 | AR29: =IF($AP29="","",IF(AR$15="","",[1]!xsqr([1]!xsub(1,[1]!xdiv(Y29,$D$14,250),250),250))) -> 0.999999999999999925001255890678203454552793169469383291281138700398232313417464001626021798915946418988816258188504655333464649583702634130264908270886224937662430790492455759154920743509256602047560677539542493281728931118636799214946911104338309653 | AS29: =IF($AP29="","",IF(AS$15="","",[1]!xsqr([1]!xsub(1,[1]!xdiv(Z29,$D$14,250),250),250))) -> 0.9999999999999999161048415266806391053957669665027690456769996602312683658298255868485764305838908562237260803207206698300530570787356931549040579988532254005750915588039471008785759682832277606099528559559634219433998127295283042218420073170000066385 | AT29: =IF($AP29="","",IF(AT$15="","",[1]!xsqr([1]!xsub(1,[1]!xdiv(AA29,$D$14,250),250),250))) -> 0.999999999999999906709929030625036382968421517918955572571143379305677156454592140247102725992398243322325667468335679791271041398987259408183983696071295338962114659777265881230214283477728334718296635038172335068596661861999701267983716787522349785 | AU29: =IF($AP29="","",IF(AU$15="","",[1]!xsqr([1]!xsub(1,[1]!xdiv(AB29,$D$14,250),250),250))) -> 0.9999999999999998968165184025113952732207178333206191315750063380964228075695241215461840158071589241924811121263478925736033740921562087300913721493825234292228609096882514182400184881222908650542681430308821889526230584813787943248273149585632682595 | AV29: =IF($AP29="","",IF(AV$15="","",[1]!xsqr([1]!xsub(1,[1]!xdiv(AC29,$D$14,250),250),250))) -> 0.9999999999999998864246096423402184932229205082607625433890174666252128571155346541059364861912172050897070095953475855579868241279467619464419760213160580257696891268314236966054292519469592092368821298353718184756744564904032185031745758026996428385 | AW29: =IF($AP29="","",IF(AW$15="","",[1]!xsqr([1]!xsub(1,[1]!xdiv(AD29,$D$14,250),250),250))) -> 0.999999999999999875534202750110524114795231863759935206533143633180943152537077886245590228979718158214561839164784276505225018531904659817828969049785471240752258141472184522612405252633240325594063173902030378168721569399289785863400745988476518219 | AX29: =IF($AP29="","",IF(AX$15="","",[1]!xsqr([1]!xsub(1,[1]!xdiv(AE29,$D$14,250),250),250))) -> 0.9999999999999998641452977258227913024240610340770338977392338600383684188680815815236188755872598078458897680924907283047009217886760853257265847352643341737687412424843416218973164000588942970291285396942970278936061524442546707809723655063775704185 | AY29: =IF($AP29="","",IF(AY$15="","",[1]!xsqr([1]!xsub(1,[1]!xdiv(AF29,$D$14,250),250),250))) -> 0.9999999999999998522578945694764466539330002219734292553214116837072554593811469757394255897866597020093390501221428866724001457129387031360006780389781773243328861342895013759812889207871273807705263690067044571726892827833518723737684382336001524345 | AZ29: =IF($AP29="","",IF(AZ$15="","",[1]!xsqr([1]!xsub(1,[1]!xdiv(AG29,$D$14,250),250),250))) -> 0.999999999999999839871993281073807243214814375692497257840525157296249755347495868497308528400270382839831518740341407375916335995604646261708560275401886377335006580517590052672557336849686015009759939732119818572442801321589050976663428063852305877 | BA29: =IF($AP29="","",IF(BA$15="","",[1]!xsqr([1]!xsub(1,[1]!xdiv(AH29,$D$14,250),250),250))) -> 0.9999999999999998269875938606132235495919244648697338663127204596512929982408529807311510644228344404144781519066024049817657008665690216503002332614517011624223059307989057311819358132481021230261706917941194816206332313060324678253908658093338050985 | BB29: =IF($AP29="","",IF(BB$15="","",[1]!xsqr([1]!xsub(1,[1]!xdiv(AI29,$D$14,250),250),250))) -> 0.99999999999999981360469630809147536168116557095309573798009540119827512810454014542106670054618010866078897451085039707934607562603028759132946047827930309749909930583008481210161360741384462898798125492523067536866884076959158788787157948447868559
V30: 1.217421125 | W30: 0.0135 | X30: =IF($W30="","",IF(X$15="","",[1]!xpow([1]!xadd([1]!xmult([1]!xmult($D$10,$V30,250),$W30,250),$D$11*X$15,250),2,250))) -> 11.9715674943748709865829919050704454920020319160840005688965838418123191591269090304 | Y30: =IF($W30="","",IF(Y$15="","",[1]!xpow([1]!xadd([1]!xmult([1]!xmult($D$10,$V30,250),$W30,250),$D$11*Y$15,250),2,250))) -> 13.4811016169420055653837293976986953688958296773179101624965838418123191591269090304 | Z30: =IF($W30="","",IF(Z$15="","",[1]!xpow([1]!xadd([1]!xmult([1]!xmult($D$10,$V30,250),$W30,250),$D$11*Z$15,250),2,250))) -> 15.0802412950647677218682977108185916655045355967009553656965838418123191591269090304 | AA30: =IF($W30="","",IF(AA$15="","",[1]!xpow([1]!xadd([1]!xmult([1]!xmult($D$10,$V30,250),$W30,250),$D$11*AA$15,250),2,250))) -> 16.7689865287430882561306438017384879621132415160840005688965838418123191591269090304 | AB30: =IF($W30="","",IF(AB$15="","",[1]!xpow([1]!xadd([1]!xmult([1]!xmult($D$10,$V30,250),$W30,250),$D$11*AB$15,250),2,250))) -> 18.5473373179769671681707676704583842587219474354670457720965838418123191591269090304 | AC30: =IF($W30="","",IF(AC$15="","",[1]!xpow([1]!xadd([1]!xmult([1]!xmult($D$10,$V30,250),$W30,250),$D$11*AC$15,250),2,250))) -> 20.4152936627663140914159496074866341356157451967009553656965838418123191591269090304 | AD30: =IF($W30="","",IF(AD$15="","",[1]!xpow([1]!xadd([1]!xmult([1]!xmult($D$10,$V30,250),$W30,250),$D$11*AD$15,250),2,250))) -> 22.3728555631113055256782956984065304322244511160840005688965838418123191591269090304 | AE30: =IF($W30="","",IF(AE$15="","",[1]!xpow([1]!xadd([1]!xmult([1]!xmult($D$10,$V30,250),$W30,250),$D$11*AE$15,250),2,250))) -> 24.4200230190118553377184195671264267288331570354670457720965838418123191591269090304 | AF30: =IF($W30="","",IF(AF$15="","",[1]!xpow([1]!xadd([1]!xmult([1]!xmult($D$10,$V30,250),$W30,250),$D$11*AF$15,250),2,250))) -> 26.5567960304680665941090409233379694451567711129992265848965838418123191591269090304 | AG30: =IF($W30="","",IF(AG$15="","",[1]!xpow([1]!xadd([1]!xmult([1]!xmult($D$10,$V30,250),$W30,250),$D$11*AG$15,250),2,250))) -> 28.7831745974795227952259475950745729023356607160840005688965838418123191591269090304 | AH30: =IF($W30="","",IF(AH$15="","",[1]!xpow([1]!xadd([1]!xmult([1]!xmult($D$10,$V30,250),$W30,250),$D$11*AH$15,250),2,250))) -> 31.0991587200465204407872987118111763595145503191687745528965838418123191591269090304 | AI30: =IF($W30="","",IF(AI$15="","",[1]!xpow([1]!xadd([1]!xmult([1]!xmult($D$10,$V30,250),$W30,250),$D$11*AI$15,250),2,250))) -> 33.5047483981696383636566928200060119152679807129992265848965838418123191591269090304 | AJ30: =IF($W30="","",IF(AJ$15="","",[1]!xpow([1]!xadd([1]!xmult([1]!xmult($D$10,$V30,250),$W30,250),$D$11*AJ$15,250),2,250))) ->  | AP30: 0.0135 | AQ30: =IF($AP30="","",IF(AQ$15="","",[1]!xsqr([1]!xsub(1,[1]!xdiv(X30,$D$14,250),250),250))) -> 0.9999999999999999333991737816706149425198717249528349287442960850372186953528826214798452868501748712235867465819631665302659184697564241082889287602501805148838522101037108996110890655974498071277924347956652102999935896351528883887186747967279469195 | AR30: =IF($AP30="","",IF(AR$15="","",[1]!xsqr([1]!xsub(1,[1]!xdiv(Y30,$D$14,250),250),250))) -> 0.9999999999999999250012576512247543188116347720366066980808970217539108594778307534404538662192670688161505930768032427125038670715662040733532821852070784427693478609609720834649898770205279291348157261544955638733186260550696761315678942224416240195 | AS30: =IF($AP30="","",IF(AS$15="","",[1]!xsqr([1]!xsub(1,[1]!xdiv(Z30,$D$14,250),250),250))) -> 0.9999999999999999161048433887204703587408749183648036052905415862417733958648283128899180801731985893348074097435481970160143237503389739753267578465000834277702556445456515685277771288663847319338677811268742259333112691704466230093220240321084186655 | AT30: =IF($AP30="","",IF(AT$15="","",[1]!xsqr([1]!xsub(1,[1]!xdiv(AA30,$D$14,250),250),250))) -> 0.999999999999999906709930994158148025399798603745934377371257425932030334253555557904691091595928007144451953662761269116108043253053582210191310018016435968015815131447009003607570222484733237326600297291270260026742699798272526157138995439551244381 | AU30: =IF($AP30="","",IF(AU$15="","",[1]!xsqr([1]!xsub(1,[1]!xdiv(AB30,$D$14,250),250),250))) -> 0.9999999999999998968165204675377873047383669895653073451413339070021546136369288032790899499807820130970417315615524788600496176445253080065700853263778648002217716728527328825968682164881309286463217186024095716264956927751678131080864678520069950575 | AV30: =IF($AP30="","",IF(AV$15="","",[1]!xsqr([1]!xsub(1,[1]!xdiv(AC30,$D$14,250),250),250))) -> 0.999999999999999886424611808859890913822049865029939226723791866519164320685217714709467338273084568227976318576240032932773453078919998667258451209533669003942593205127421590333661066067029803688866220899086484030067549984748185047019966249853910424 | AW30: =IF($AP30="","",IF(AW$15="","",[1]!xsqr([1]!xsub(1,[1]!xdiv(AD30,$D$14,250),250),250))) -> 0.9999999999999998755342050181234769244806396192002478392574048452867531758424960067778738391691622421428273242921132393565742057025450616004711465542060790693213584443384377327275481787786961200460218504700776714946400696922679936094817826831866335515 | AX30: =IF($AP30="","",IF(AX$15="","",[1]!xsqr([1]!xsub(1,[1]!xdiv(AE30,$D$14,250),250),250))) -> 0.9999999999999998641453000953290245011957505799891438570461473933770178671400580265547151579418126811461009302404166139796020792586448676029357316019172161575017828396935853889245714205784623703141879873534984804451702049132870091342688707999369310745 | AY30: =IF($AP30="","",IF(AY$15="","",[1]!xsqr([1]!xsub(1,[1]!xdiv(AF30,$D$14,250),250),250))) -> 0.999999999999999852257897040475960241795770060069248163886857409888544438863067106736564846510112022678965385679518718402498009433835854155529745447975044748645730911828380333471946839305758317977546961187125351335110164044600693317897884328555868565 | AZ30: =IF($AP30="","",IF(AZ$15="","",[1]!xsqr([1]!xsub(1,[1]!xdiv(AG30,$D$14,250),250),250))) -> 0.999999999999999839871995853566601220154283326952096112266119983049592132237819557891675757257795272055990773132223393904972981752809106286869666366310780382615569311523501709831538216434883287668304321070279824630334200377649543296699033207603251627 | BA30: =IF($AP30="","",IF(BA$15="","",[1]!xsqr([1]!xsub(1,[1]!xdiv(AH30,$D$14,250),250),250))) -> 0.999999999999999826987596534599297915608096376441670256678362060345177080306097515604505735890363638657809559332473238893253076336434847950921590030673792551930181695151249792729191606946401987792274054728075351518612240369489877520450758067060637191 | BB30: =IF($AP30="","",IF(BB$15="","",[1]!xsqr([1]!xsub(1,[1]!xdiv(AI30,$D$14,250),250),250))) -> 0.9999999999999998136046990835708301167980192324116501996886280626097601090021335205994311821961503809673376389540971706307361903239820598873124230972930869830645933761601125567862484578014910438640337366721224516305824144348310373543224028203842132085
V31: 1.240282994 | W31: 0.013375 | X31: =IF($W31="","",IF(X$15="","",[1]!xpow([1]!xadd([1]!xmult([1]!xmult($D$10,$V31,250),$W31,250),$D$11*X$15,250),2,250))) -> 11.9715671905841900732577839353546878437311884094843512185193259600434066031979201536 | Y31: =IF($W31="","",IF(Y$15="","",[1]!xpow([1]!xadd([1]!xmult([1]!xmult($D$10,$V31,250),$W31,250),$D$11*Y$15,250),2,250))) -> 13.4811012945668019644224549261354544740581515648908083193193259600434066031979201536 | Z31: =IF($W31="","",IF(Z$15="","",[1]!xpow([1]!xadd([1]!xmult([1]!xmult($D$10,$V31,250),$W31,250),$D$11*Z$15,250),2,250))) -> 15.0802409541050414332700787284619949263752443871875797689193259600434066031979201536 | AA31: =IF($W31="","",IF(AA$15="","",[1]!xpow([1]!xadd([1]!xmult([1]!xmult($D$10,$V31,250),$W31,250),$D$11*AA$15,250),2,250))) -> 16.7689861691988392798954803085885353786923372094843512185193259600434066031979201536 | AB31: =IF($W31="","",IF(AB$15="","",[1]!xpow([1]!xadd([1]!xmult([1]!xmult($D$10,$V31,250),$W31,250),$D$11*AB$15,250),2,250))) -> 18.5473369398481955042986596665150758310094300317811226681193259600434066031979201536 | AC31: =IF($W31="","",IF(AC$15="","",[1]!xpow([1]!xadd([1]!xmult([1]!xmult($D$10,$V31,250),$W31,250),$D$11*AC$15,250),2,250))) -> 20.4152932660530197399077751016958424613363931871875797689193259600434066031979201536 | AD31: =IF($W31="","",IF(AD$15="","",[1]!xpow([1]!xadd([1]!xmult([1]!xmult($D$10,$V31,250),$W31,250),$D$11*AD$15,250),2,250))) -> 22.3728551478134884865331766818223829136534860094843512185193259600434066031979201536 | AE31: =IF($W31="","",IF(AE$15="","",[1]!xpow([1]!xadd([1]!xmult([1]!xmult($D$10,$V31,250),$W31,250),$D$11*AE$15,250),2,250))) -> 24.4200225851295156109363560397489233659705788317811226681193259600434066031979201536 | AF31: =IF($W31="","",IF(AF$15="","",[1]!xpow([1]!xadd([1]!xmult([1]!xmult($D$10,$V31,250),$W31,250),$D$11*AF$15,250),2,250))) -> 26.5567955780012041796891548762212376402778013209682084665193259600434066031979201536 | AG31: =IF($W31="","",IF(AG$15="","",[1]!xpow([1]!xadd([1]!xmult([1]!xmult($D$10,$V31,250),$W31,250),$D$11*AG$15,250),2,250))) -> 28.7831741264281376931708730550562304486146348094843512185193259600434066031979201536 | AH31: =IF($W31="","",IF(AH$15="","",[1]!xpow([1]!xadd([1]!xmult([1]!xmult($D$10,$V31,250),$W31,250),$D$11*AH$15,250),2,250))) -> 31.0991582304106126510970356788912232569514682980004939705193259600434066031979201536 | AI31: =IF($W31="","",IF(AI$15="","",[1]!xpow([1]!xadd([1]!xmult([1]!xmult($D$10,$V31,250),$W31,250),$D$11*AI$15,250),2,250))) -> 33.5047478899492078863268512494550851752389501209682084665193259600434066031979201536 | AJ31: =IF($W31="","",IF(AJ$15="","",[1]!xpow([1]!xadd([1]!xmult([1]!xmult($D$10,$V31,250),$W31,250),$D$11*AJ$15,250),2,250))) ->  | AP31: 0.013375 | AQ31: =IF($AP31="","",IF(AQ$15="","",[1]!xsqr([1]!xsub(1,[1]!xdiv(X31,$D$14,250),250),250))) -> 0.9999999999999999333991754717342056764110033515210040158882177350585284778709408005284794607467317486366531123519231409923057261833672642252601467645492224958037924562664314187661443577943097445220306116249691079980517025018530591159541745744915827085 | AR31: =IF($AP31="","",IF(AR$15="","",[1]!xsqr([1]!xsub(1,[1]!xdiv(Y31,$D$14,250),250),250))) -> 0.9999999999999999250012594446786961033428526963390701621302864645047051071480830291883449855607341175189833809360954751194995119720950940669415411403709350027356630179990646419502451308783671425481095459600896203940311416438858575733217203311163153595 | AS31: =IF($AP31="","",IF(AS$15="","",[1]!xsqr([1]!xsub(1,[1]!xdiv(Z31,$D$14,250),250),250))) -> 0.9999999999999999161048452855647631939170664060160848038178693276681956185170857077559666400249049062065860208972182849492767556321801595430911453493679180004843000428625680571812489675126761484585929687533068362752124988300215252565611851404498882105 | AT31: =IF($AP31="","",IF(AT$15="","",[1]!xsqr([1]!xsub(1,[1]!xdiv(AA31,$D$14,250),250),250))) -> 0.999999999999999906709932994392791911220966491466043660234980219310128704483675713029860031164258658847034348633700803516090700027214470450053686224088289689883714491878540848407901082596345929994662404399321899076848431436465752179658810021081431583 | AU31: =IF($AP31="","",IF(AU$15="","",[1]!xsqr([1]!xsub(1,[1]!xdiv(AB31,$D$14,250),250),250))) -> 0.999999999999999896816522571162782241204514268693945676914131720359643070601560405191462534270639148110267157068804236042603283961895842418605799621487227682278228314007167188245250797706932752399162461131267098271326039455292800332052277912363211853 | AV31: =IF($AP31="","",IF(AV$15="","",[1]!xsqr([1]!xsub(1,[1]!xdiv(AC31,$D$14,250),250),250))) -> 0.9999999999999998864246140158752369009282950980122945635760209851565071183975108112124171981403403885883358860733486169676351042157936509283660107922494762996015507393532965756403411761104563472295215545411424834747260987415241644411277813303062311375 | AW31: =IF($AP31="","",IF(AW$15="","",[1]!xsqr([1]!xsub(1,[1]!xdiv(AD31,$D$14,250),250),250))) -> 0.999999999999999875534207328529173962231870690129605998147243887352033603615326550984923225034655494300971606380835196973587373396923643334719069861153441342422938702058424358887008738741307939505803001268202413854598787801438027512392999917296999026 | AX31: =IF($AP31="","",IF(AX$15="","",[1]!xsqr([1]!xsub(1,[1]!xdiv(AE31,$D$14,250),250),250))) -> 0.999999999999999864145302509125072589591970944064277646681779934490223589701736889712305367912528387453226934788475233024043407577643998753206117662305106491920376681136044798385083952202236266904145266624982901011986710574338545356877600586033761133 | AY31: =IF($AP31="","",IF(AY$15="","",[1]!xsqr([1]!xsub(1,[1]!xdiv(AF31,$D$14,250),250),250))) -> 0.999999999999999852257899557662359380841867910622824631308026425984510468893404541218421609999585137609105543923708542388546427513224410878719655962910128386464505148951027596190150384766623719527471150413875421312894540394378154762570087665437070192 | AZ31: =IF($AP31="","",IF(AZ$15="","",[1]!xsqr([1]!xsub(1,[1]!xdiv(AG31,$D$14,250),250),250))) -> 0.9999999999999998398719984741433514098356086778796584245764560475057435858196235573840721398564532337451131368764141883810530987503692347505281815149719766869521445146777050533796653107262795687873115832188014356372758053287146769037986766661224899285 | BA31: =IF($AP31="","",IF(BA$15="","",[1]!xsqr([1]!xsub(1,[1]!xdiv(AH31,$D$14,250),250),250))) -> 0.99999999999999982698759925856639915592465314680106306598117552527210136003909602395799726568569136668769972801624910789853198180781243970011918895840384369284172424657291180663514572819377475601627617404467908964951653310277816986880787410297832072 | BB31: =IF($AP31="","",IF(BB$15="","",[1]!xsqr([1]!xsub(1,[1]!xdiv(AI31,$D$14,250),250),250))) -> 0.999999999999999813604701910928282407774234413451426893676074625312978465679263790210236503052433432605420791088080544183422310324165345993258178887154246220269980913155260116233277566323213476265188751015754961059835798489085870141725502490342710585
V32: 1.263794945 | W32: 0.01325 | X32: =IF($W32="","",IF(X$15="","",[1]!xpow([1]!xadd([1]!xmult([1]!xmult($D$10,$V32,250),$W32,250),$D$11*X$15,250),2,250))) -> 11.9715668810616134843846108150763021063628203326347471360667560701222205213757572096 | Y32: =IF($W32="","",IF(Y$15="","",[1]!xpow([1]!xadd([1]!xmult([1]!xmult($D$10,$V32,250),$W32,250),$D$11*Y$15,250),2,250))) -> 13.4811009661090513164515570757196948732629924005690996608667560701222205213757572096 | Z32: =IF($W32="","",IF(Z$15="","",[1]!xpow([1]!xadd([1]!xmult([1]!xmult($D$10,$V32,250),$W32,250),$D$11*Z$15,250),2,250))) -> 15.0802406067121167262005615727564631162739127666019233984667560701222205213757572096 | AA32: =IF($W32="","",IF(AA$15="","",[1]!xpow([1]!xadd([1]!xmult([1]!xmult($D$10,$V32,250),$W32,250),$D$11*AA$15,250),2,250))) -> 16.7689858028707405137273438475932313592848331326347471360667560701222205213757572096 | AB32: =IF($W32="","",IF(AB$15="","",[1]!xpow([1]!xadd([1]!xmult([1]!xmult($D$10,$V32,250),$W32,250),$D$11*AB$15,250),2,250))) -> 18.5473365545849226790319039002299996022957534986675708736667560701222205213757572096 | AC32: =IF($W32="","",IF(AC$15="","",[1]!xpow([1]!xadd([1]!xmult([1]!xmult($D$10,$V32,250),$W32,250),$D$11*AC$15,250),2,250))) -> 20.4152928618545728555432946052733923691959255666019233984667560701222205213757572096 | AD32: =IF($W32="","",IF(AD$15="","",[1]!xpow([1]!xadd([1]!xmult([1]!xmult($D$10,$V32,250),$W32,250),$D$11*AD$15,250),2,250))) -> 22.3728547246798675430700768801101606122068459326347471360667560701222205213757572096 | AE32: =IF($W32="","",IF(AE$15="","",[1]!xpow([1]!xadd([1]!xmult([1]!xmult($D$10,$V32,250),$W32,250),$D$11*AE$15,250),2,250))) -> 24.4200221430607206083746369327469288552177662986675708736667560701222205213757572096 | AF32: =IF($W32="","",IF(AF$15="","",[1]!xpow([1]!xadd([1]!xmult([1]!xmult($D$10,$V32,250),$W32,250),$D$11*AF$15,250),2,250))) -> 26.5567951169972351180279218887770725743394349627988658240667560701222205213757572096 | AG32: =IF($W32="","",IF(AG$15="","",[1]!xpow([1]!xadd([1]!xmult([1]!xmult($D$10,$V32,250),$W32,250),$D$11*AG$15,250),2,250))) -> 28.7831736464889945724128099126270898651288587326347471360667560701222205213757572096 | AH32: =IF($W32="","",IF(AH$15="","",[1]!xpow([1]!xadd([1]!xmult([1]!xmult($D$10,$V32,250),$W32,250),$D$11*AH$15,250),2,250))) -> 31.0991577315362954712421423814771071559182825024706284480667560701222205213757572096 | AI32: =IF($W32="","",IF(AI$15="","",[1]!xpow([1]!xadd([1]!xmult([1]!xmult($D$10,$V32,250),$W32,250),$D$11*AI$15,250),2,250))) -> 33.5047473721397166473706549212940018272614477627988658240667560701222205213757572096 | AJ32: =IF($W32="","",IF(AJ$15="","",[1]!xpow([1]!xadd([1]!xmult([1]!xmult($D$10,$V32,250),$W32,250),$D$11*AJ$15,250),2,250))) ->  | AP32: 0.01325 | AQ32: =IF($AP32="","",IF(AQ$15="","",[1]!xsqr([1]!xsub(1,[1]!xdiv(X32,$D$14,250),250),250))) -> 0.999999999999999933399177193685766633761819676690795420545444037450322058951287003285704570082323390078777503383864879664613992268802571000414092915626168655946007301713095920964682082353041928732683584297038715339149330013710709649878146782174839703 | AR32: =IF($AP32="","",IF(AR$15="","",[1]!xsqr([1]!xsub(1,[1]!xdiv(Y32,$D$14,250),250),250))) -> 0.999999999999999925001261271971369451894216765025309429558443559562167685962702658783067291712829897803319615189550298934256123574181639664456208021376620206642819228344813544439209587927137596267423171750839596993669336200752263944432928587359104465 | AS32: =IF($AP32="","",IF(AS$15="","",[1]!xsqr([1]!xsub(1,[1]!xdiv(Z32,$D$14,250),250),250))) -> 0.9999999999999999161048472181985489336739576963920260667585317984801366595197166290518945350164421319383403659236880984164029921220263715053915611572763609260248260413893804008103235632273205490997905897740868550273625045289742655795844863940730630175 | AT32: =IF($AP32="","",IF(AT$15="","",[1]!xsqr([1]!xsub(1,[1]!xdiv(AA32,$D$14,250),250),250))) -> 0.9999999999999999067099350323676900421833878937746833492603004659178912463086411930973750606752011865123494311572224009833148470106472416450497600541324168661966391729794748476660520295710362481606487202649414009943044088043647818407325633940153524935 | AU32: =IF($AP32="","",IF(AU$15="","",[1]!xsqr([1]!xsub(1,[1]!xdiv(AB32,$D$14,250),250),250))) -> 0.9999999999999998968165247144787927633724688307153234903919003440516243904837359111617915795479641802130495987406349421514471403050618395258971569147402455039087473798329614284923051067396195090367862882987345653572694847643844658784359245469437297365 | AV32: =IF($AP32="","",IF(AV$15="","",[1]!xsqr([1]!xsub(1,[1]!xdiv(AC32,$D$14,250),250),250))) -> 0.9999999999999998864246162645323598142968092795961924970033095020947340969032743490707604004719266881465506837028859515053866730486434856585587796264244467442912862824432624695293521243361573396774906187462566158011374959430582228461271628167036839675 | AW32: =IF($AP32="","",IF(AW$15="","",[1]!xsqr([1]!xsub(1,[1]!xdiv(AD32,$D$14,250),250),250))) -> 0.999999999999999875534209682527409266805924599597451255986972578862108983001294120115702697204732826320776565204818595951668461023736002270152459636465754159971566057650273853365279589370960633530497912667233264710049567482842364537412440490377361708 | AX32: =IF($AP32="","",IF(AX$15="","",[1]!xsqr([1]!xsub(1,[1]!xdiv(AE32,$D$14,250),250),250))) -> 0.999999999999999864145304968464420285371568101807239730681352760698585967548462528659939855042833153535097952794187719398956528612932694218812981609438952345444319681950243150446033680132050396067154153914403057336890489715102394986738208212087429614 | AY32: =IF($AP32="","",IF(AY$15="","",[1]!xsqr([1]!xsub(1,[1]!xdiv(AF32,$D$14,250),250),250))) -> 0.999999999999999852257902122342819467831988740036417282187080972538565653047058897255904531499831714017884249639761457106314066529142784468463017437462921097518477002287941538331826928570186335799196803071388229127900304301216509597498830037889570286 | AZ32: =IF($AP32="","",IF(AZ$15="","",[1]!xsqr([1]!xsub(1,[1]!xdiv(AG32,$D$14,250),250),250))) -> 0.9999999999999998398720011441649238880213267780272347659594806085301327701438064300740250748367944300100066749122664654494598958861001488666279848297427608895659635682255081561592596894377718091060379388366005048985360133582284529989297196426690142375 | BA32: =IF($AP32="","",IF(BA$15="","",[1]!xsqr([1]!xsub(1,[1]!xdiv(AH32,$D$14,250),250),250))) -> 0.9999999999999998269876020339290840253059725106849224022408412206886277816696698639740750946822860085115334309180954078342451419696837926683630881114603891932256629146096193616514971396746118193280177326797066935699907307510857078841680743078271428835 | BB32: =IF($AP32="","",IF(BB$15="","",[1]!xsqr([1]!xsub(1,[1]!xdiv(AI32,$D$14,250),250),250))) -> 0.999999999999999813604704791632079668376042918947416655704211741117595219575852693328964123535568621107850870048021481970213114817457484009503235134696515292602433388317156896774438239214516799485354564620748712533582745326053097500609306508371537718
V33: 1.287981859 | W33: 0.013125 | X33: =IF($W33="","",IF(X$15="","",[1]!xpow([1]!xadd([1]!xmult([1]!xmult($D$10,$V33,250),$W33,250),$D$11*X$15,250),2,250))) -> 11.97156656564337288637976389642732509528269661867310750920723479812730938392749584 | Y33: =IF($W33="","",IF(Y$15="","",[1]!xpow([1]!xadd([1]!xmult([1]!xmult($D$10,$V33,250),$W33,250),$D$11*Y$15,250),2,250))) -> 13.48110063139496667727079668988245815493289198950011440520723479812730938392749584 | Z33: =IF($W33="","",IF(Z$15="","",[1]!xpow([1]!xadd([1]!xmult([1]!xmult($D$10,$V33,250),$W33,250),$D$11*Z$15,250),2,250))) -> 15.08024025270218804584297610505185598890437230408661095720723479812730938392749584 | AA33: =IF($W33="","",IF(AA$15="","",[1]!xpow([1]!xadd([1]!xmult([1]!xmult($D$10,$V33,250),$W33,250),$D$11*AA$15,250),2,250))) -> 16.76898542956496779219293329802125382287585261867310750920723479812730938392749584 | AB33: =IF($W33="","",IF(AB$15="","",[1]!xpow([1]!xadd([1]!xmult([1]!xmult($D$10,$V33,250),$W33,250),$D$11*AB$15,250),2,250))) -> 18.54733616198330591632066826879065165684733293325960406120723479812730938392749584 | AC33: =IF($W33="","",IF(AC$15="","",[1]!xpow([1]!xadd([1]!xmult([1]!xmult($D$10,$V33,250),$W33,250),$D$11*AC$15,250),2,250))) -> 20.41529244995711205165614550664578471649752830408661095720723479812730938392749584 | AD33: =IF($W33="","",IF(AD$15="","",[1]!xpow([1]!xadd([1]!xmult([1]!xmult($D$10,$V33,250),$W33,250),$D$11*AD$15,250),2,250))) -> 22.37285429348656269800610269961518255046900861867310750920723479812730938392749584 | AE33: =IF($W33="","",IF(AE$15="","",[1]!xpow([1]!xadd([1]!xmult([1]!xmult($D$10,$V33,250),$W33,250),$D$11*AE$15,250),2,250))) -> 24.42002169257157172213383767038458038444048893325960406120723479812730938392749584 | AF33: =IF($W33="","",IF(AF$15="","",[1]!xpow([1]!xadd([1]!xmult([1]!xmult($D$10,$V33,250),$W33,250),$D$11*AF$15,250),2,250))) -> 26.55679464721224219060938592986824299273325419160559026920723479812730938392749584 | AG33: =IF($W33="","",IF(AG$15="","",[1]!xpow([1]!xadd([1]!xmult([1]!xmult($D$10,$V33,250),$W33,250),$D$11*AG$15,250),2,250))) -> 28.78317315740815760381927210120911127806216461867310750920723479812730938392749584 | AH33: =IF($W33="","",IF(AH$15="","",[1]!xpow([1]!xadd([1]!xmult([1]!xmult($D$10,$V33,250),$W33,250),$D$11*AH$15,250),2,250))) -> 31.09915722315961446147360271754997956339107504574062474920723479812730938392749584 | AI33: =IF($W33="","",IF(AI$15="","",[1]!xpow([1]!xadd([1]!xmult([1]!xmult($D$10,$V33,250),$W33,250),$D$11*AI$15,250),2,250))) -> 33.50474684446719159642255533146217172032641019160559026920723479812730938392749584 | AJ33: =IF($W33="","",IF(AJ$15="","",[1]!xpow([1]!xadd([1]!xmult([1]!xmult($D$10,$V33,250),$W33,250),$D$11*AJ$15,250),2,250))) ->  | AP33: 0.013125 | AQ33: =IF($AP33="","",IF(AQ$15="","",[1]!xsqr([1]!xsub(1,[1]!xdiv(X33,$D$14,250),250),250))) -> 0.999999999999999933399178948436382042280926305929683709453941071052556892156943544749062688836464198576135731221889996221858147224738341047166988482052654763187433114019278417636356925231008564535001266721854979541517774798994958278090955586157840437 | AR33: =IF($AP33="","",IF(AR$15="","",[1]!xsqr([1]!xsub(1,[1]!xdiv(Y33,$D$14,250),250),250))) -> 0.999999999999999925001263134069594630494642831856373855137569820970574952730813757987029211095442375865356475924584373491036394984021578645344139915008944718448913200700961642994272119688559004546240406048334773458049509052306873552813917571891073886 | AS33: =IF($AP33="","",IF(AS$15="","",[1]!xsqr([1]!xsub(1,[1]!xdiv(Z33,$D$14,250),250),250))) -> 0.999999999999999916104849187644383882360777526191786629014653926827281461483408917368873573355479262162767077582430429287184516168187657324890621424107743329135307632695955712633656774250847470173012011593975415707756019125590241249601729884934420298 | AT33: =IF($AP33="","",IF(AT$15="","",[1]!xsqr([1]!xsub(1,[1]!xdiv(AA33,$D$14,250),250),250))) -> 0.99999999999999990670993710916113476095660443183834978240605115316716876828906577849024226000300073802412240328740543030327021539061735152102817883997778336797362274541420112338915567617415591963693087433965479282221053481390308179611585006549693342 | AU33: =IF($AP33="","",IF(AU$15="","",[1]!xsqr([1]!xsub(1,[1]!xdiv(AB33,$D$14,250),250),250))) -> 0.9999999999999998968165268986198472522320851828758543824899391962208124013590784450424002976066989502453523618881700623929421572938495167926814687764896366271427647537952083879233241332449847412242671969540659234775122823521463226945505463020606406865 | AV33: =IF($AP33="","",IF(AV$15="","",[1]!xsqr([1]!xsub(1,[1]!xdiv(AC33,$D$14,250),250),250))) -> 0.999999999999999886424618556021024073237757171605236169607907247812891082426212915667390600625796777999530972722492795127224867251905982509020662976104462229822775949685269564760196102010733037171647384545307425255968733478157671159502505888737313125 | AW33: =IF($AP33="","",IF(AW$15="","",[1]!xsqr([1]!xsub(1,[1]!xdiv(AD33,$D$14,250),250),250))) -> 0.999999999999999875534212081363683295833278998982523125053659122031604826159194608499629279686415350323868800669638876604466027042774428370554162440418867373116524471921836057914256167964998426901405862935017286937508626430508162776424749468845510694 | AX33: =IF($AP33="","",IF(AX$15="","",[1]!xsqr([1]!xsub(1,[1]!xdiv(AE33,$D$14,250),250),250))) -> 0.999999999999999864145307474648304084485332596014544945815428133264200209001346328504102342364266316319193874006600109619005735280825829947248648243897193846924540437578295053951501611764907076813496801937155958677524460122512283056395366305587159316 | AY33: =IF($AP33="","",IF(AY$15="","",[1]!xsqr([1]!xsub(1,[1]!xdiv(AF33,$D$14,250),250),250))) -> 0.9999999999999998522579047358743130370372386176689689677222448666621011815419836483388988755082875923115862785282970284885428018416105706954847030576649070160541719506589754859711701738272631034056815166137498820195177664239262407503929457891736197675 | AZ33: =IF($AP33="","",IF(AZ$15="","",[1]!xsqr([1]!xsub(1,[1]!xdiv(AG33,$D$14,250),250),250))) -> 0.9999999999999998398720038650440272273028513257495584163780503603694805658562345904723730417446121611059503951063062176877238354956516426043206111972657446385143206011670822862900878627660518850841298288613791371021164413289250032398404237717955283645 | BA33: =IF($AP33="","",IF(BA$15="","",[1]!xsqr([1]!xsub(1,[1]!xdiv(AH33,$D$14,250),250),250))) -> 0.9999999999999998269876048621557971346637757975564697279220425965131549106991980816787036760398687103681681993326250496288203423796493621842638170270061241113258442202530171036147172608799708249321841988533591971761852319662472352507445327274739005305 | BB33: =IF($AP33="","",IF(BB$15="","",[1]!xsqr([1]!xsub(1,[1]!xdiv(AI33,$D$14,250),250),250))) -> 0.9999999999999998136047077272064025478354868776606838281638105682735356100044896376672833628766840882315049271322891720008528151632852102398234263862643846466680469430526931810946487154781777887379541768395177371080017419746836037258889107590525095605
V34: 1.312869822 | W34: 0.013 | X34: =IF($W34="","",IF(X$15="","",[1]!xpow([1]!xadd([1]!xmult([1]!xmult($D$10,$V34,250),$W34,250),$D$11*X$15,250),2,250))) -> 11.9715662441594011679968105541015369936672709523017423996550266209180296684020404224 | Y34: =IF($W34="","",IF(Y$15="","",[1]!xpow([1]!xadd([1]!xmult([1]!xmult($D$10,$V34,250),$W34,250),$D$11*Y$15,250),2,250))) -> 13.4811002902440769938370864825353147824666268389346235772550266209180296684020404224 | Z34: =IF($W34="","",IF(Z$15="","",[1]!xpow([1]!xadd([1]!xmult([1]!xmult($D$10,$V34,250),$W34,250),$D$11*Z$15,250),2,250))) -> 15.0802398918843803973575798869527249971008656956181829884550266209180296684020404224 | AA34: =IF($W34="","",IF(AA$15="","",[1]!xpow([1]!xadd([1]!xmult([1]!xmult($D$10,$V34,250),$W34,250),$D$11*AA$15,250),2,250))) -> 16.7689850490802421786558510691701352117351045523017423996550266209180296684020404224 | AB34: =IF($W34="","",IF(AB$15="","",[1]!xpow([1]!xadd([1]!xmult([1]!xmult($D$10,$V34,250),$W34,250),$D$11*AB$15,250),2,250))) -> 18.5473357618316623377319000291875454263693434089853018108550266209180296684020404224 | AC34: =IF($W34="","",IF(AC$15="","",[1]!xpow([1]!xadd([1]!xmult([1]!xmult($D$10,$V34,250),$W34,250),$D$11*AC$15,250),2,250))) -> 20.4152920301385505080166204020213232151686992956181829884550266209180296684020404224 | AD34: =IF($W34="","",IF(AD$15="","",[1]!xpow([1]!xadd([1]!xmult([1]!xmult($D$10,$V34,250),$W34,250),$D$11*AD$15,250),2,250))) -> 22.3728538540010831893148915842387334298029381523017423996550266209180296684020404224 | AE34: =IF($W34="","",IF(AE$15="","",[1]!xpow([1]!xadd([1]!xmult([1]!xmult($D$10,$V34,250),$W34,250),$D$11*AE$15,250),2,250))) -> 24.4200212334191742483909405442561436444371770089853018108550266209180296684020404224 | AF34: =IF($W34="","",IF(AF$15="","",[1]!xpow([1]!xadd([1]!xmult([1]!xmult($D$10,$V34,250),$W34,250),$D$11*AF$15,250),2,250))) -> 26.5567941683929267518138736472571862849062988357195394556550266209180296684020404224 | AG34: =IF($W34="","",IF(AG$15="","",[1]!xpow([1]!xadd([1]!xmult([1]!xmult($D$10,$V34,250),$W34,250),$D$11*AG$15,250),2,250))) -> 28.7831726589219241999739320993073316478707717523017423996550266209180296684020404224 | AH34: =IF($W34="","",IF(AH$15="","",[1]!xpow([1]!xadd([1]!xmult([1]!xmult($D$10,$V34,250),$W34,250),$D$11*AH$15,250),2,250))) -> 31.0991567050064630925784349963574770108352446688839453436550266209180296684020404224 | AI34: =IF($W34="","",IF(AI$15="","",[1]!xpow([1]!xadd([1]!xmult([1]!xmult($D$10,$V34,250),$W34,250),$D$11*AI$15,250),2,250))) -> 33.5047463066471222624729141623257845029741324357195394556550266209180296684020404224 | AJ34: =IF($W34="","",IF(AJ$15="","",[1]!xpow([1]!xadd([1]!xmult([1]!xmult($D$10,$V34,250),$W34,250),$D$11*AJ$15,250),2,250))) ->  | AP34: 0.013 | AQ34: =IF($AP34="","",IF(AQ$15="","",[1]!xsqr([1]!xsub(1,[1]!xdiv(X34,$D$14,250),250),250))) -> 0.9999999999999999333991807369321778062744244133332703569670111760565504437312821837933029485592822030887586155333847182374588092808390328947911942996876046264892043244040432627154636209585429361202775945389568555329446186064352223066749067539989179955 | AR34: =IF($AP34="","",IF(AR$15="","",[1]!xsqr([1]!xsub(1,[1]!xdiv(Y34,$D$14,250),250),250))) -> 0.999999999999999925001265031977377275566364043112004201989540373813459848878619830174518943105030533097629374733060055050371662291339842151877529855732726976317411910645517071329831000206679316854475918694466216129024877590034056734301615879472606029 | AS34: =IF($AP34="","",IF(AS$15="","",[1]!xsqr([1]!xsub(1,[1]!xdiv(Z34,$D$14,250),250),250))) -> 0.9999999999999999161048511949641534085158937498562643911644356037839045323639252161892962991270353911504919307761083212304901492495979934551925661050571748042396746518798483018200174034805960505621632913662277603552449560074586235511228333107932885145 | AT34: =IF($AP34="","",IF(AT$15="","",[1]!xsqr([1]!xsub(1,[1]!xdiv(AA34,$D$14,250),250),250))) -> 0.99999999999999990670993922589289116819511866984714161573517120761389009351425820319480721500381517399580456891609178853062255880604166970779982391533781058735026268810113083048237013358111565126957228741503027932537841787337133975369493500361216031 | AU34: =IF($AP34="","",IF(AU$15="","",[1]!xsqr([1]!xsub(1,[1]!xdiv(AB34,$D$14,250),250),250))) -> 0.999999999999999896816529124763590540554000600789440197816078994734581851909583346933449265709910007913750074825278394602224636932047830990878309100908649292014902188689162231595555245613398195243935845594816786864717716440511491757855571159574550615 | AV34: =IF($AP34="","",IF(AV$15="","",[1]!xsqr([1]!xsub(1,[1]!xdiv(AC34,$D$14,250),250),250))) -> 0.9999999999999998864246208915767542426379080283627588169429664482125235949303730696476140410366264048077143043973536718384573283270500842062788913940119272094700934030771321561740187460229015760078643688167879792107112950612823571204930692213475141645 | AW34: =IF($AP34="","",IF(AW$15="","",[1]!xsqr([1]!xsub(1,[1]!xdiv(AD34,$D$14,250),250),250))) -> 0.999999999999999875534214526331400346316837857640839340660779216926476582122095179413998386304634074978624389001271336947090190854498376726457337811477016571610753642109297088873322326987422998232028199558562591537139267549083759521210631179458856696 | AX34: =IF($AP34="","",IF(AX$15="","",[1]!xsqr([1]!xsub(1,[1]!xdiv(AE34,$D$14,250),250),250))) -> 0.999999999999999864145310029028008016052303113009174405313169429590744833342617047772804129077658002938526775934014178904253572856625228446153178363378840461546047153148793340205888159092385374075101218530105609735998728351131858606187991088473648978 | AY34: =IF($AP34="","",IF(AY$15="","",[1]!xsqr([1]!xsub(1,[1]!xdiv(AF34,$D$14,250),250),250))) -> 0.9999999999999998522579073996660038496927936833067949179372137283985792738409437347681924392629226806881594975796160713894492246669681225492367704395830743512959569141978491243666283880914126537886495547384842542669649575613841197718298121610691149275 | AZ34: =IF($AP34="","",IF(AZ$15="","",[1]!xsqr([1]!xsub(1,[1]!xdiv(AG34,$D$14,250),250),250))) -> 0.9999999999999998398720066382477049210314877129770760937939073924161675378887869929019341476235623159305904993567387120992035802698286232779280193070805613057370570067889502589711925964144879711145120820005171686605308520288604021203627490019662826085 | BA34: =IF($AP34="","",IF(BA$15="","",[1]!xsqr([1]!xsub(1,[1]!xdiv(AH34,$D$14,250),250),250))) -> 0.9999999999999998269876077447714617094654976536842385721747293864450833253461289790595973748912492247906844487455149765504238206465400616904560816326467246458572545149319835419485638796420362021522540028121167973428284452701531819425150816299079965535 | BB34: =IF($AP34="","",IF(BB$15="","",[1]!xsqr([1]!xsub(1,[1]!xdiv(AI34,$D$14,250),250),250))) -> 0.999999999999999813604710719234054003736143864856028118135198262003239677184574136701371655768629501160941889520432656023074578858556698934670561056192290191375274237323734740624797489940689323427749610503820399856662872567283343704593779184899788434
V35: 1.338486191 | W35: 0.012875 | X35: =IF($W35="","",IF(X$15="","",[1]!xpow([1]!xadd([1]!xmult([1]!xmult($D$10,$V35,250),$W35,250),$D$11*X$15,250),2,250))) -> 11.9715659164330266750819553141439692387282635395295273929686066290407838832947993664 | Y35: =IF($W35="","",IF(Y$15="","",[1]!xpow([1]!xadd([1]!xmult([1]!xmult($D$10,$V35,250),$W35,250),$D$11*Y$15,250),2,250))) -> 13.4810999424689026336499014479726893343459482952600287785686066290407838832947993664 | Z35: =IF($W35="","",IF(Z$15="","",[1]!xpow([1]!xadd([1]!xmult([1]!xmult($D$10,$V35,250),$W35,250),$D$11*Z$15,250),2,250))) -> 15.0802395240604061698971178703897376214086167173947780857686066290407838832947993664 | AA35: =IF($W35="","",IF(AA$15="","",[1]!xpow([1]!xadd([1]!xmult([1]!xmult($D$10,$V35,250),$W35,250),$D$11*AA$15,250),2,250))) -> 16.7689846612074680839221120706067859084712851395295273929686066290407838832947993664 | AB35: =IF($W35="","",IF(AB$15="","",[1]!xpow([1]!xadd([1]!xmult([1]!xmult($D$10,$V35,250),$W35,250),$D$11*AB$15,250),2,250))) -> 18.5473353539100883757248840486238341955339535616642767001686066290407838832947993664 | AC35: =IF($W35="","",IF(AC$15="","",[1]!xpow([1]!xadd([1]!xmult([1]!xmult($D$10,$V35,250),$W35,250),$D$11*AC$15,250),2,250))) -> 20.4152916021681766787372746268525542911516383173947780857686066290407838832947993664 | AD35: =IF($W35="","",IF(AD$15="","",[1]!xpow([1]!xadd([1]!xmult([1]!xmult($D$10,$V35,250),$W35,250),$D$11*AD$15,250),2,250))) -> 22.3728534059819094927622688270696025782143067395295273929686066290407838832947993664 | AE35: =IF($W35="","",IF(AE$15="","",[1]!xpow([1]!xadd([1]!xmult([1]!xmult($D$10,$V35,250),$W35,250),$D$11*AE$15,250),2,250))) -> 24.4200207653512006845650408050866508652769751616642767001686066290407838832947993664 | AF35: =IF($W35="","",IF(AF$15="","",[1]!xpow([1]!xadd([1]!xmult([1]!xmult($D$10,$V35,250),$W35,250),$D$11*AF$15,250),2,250))) -> 26.5567936802761533207137497386920273437846272502032739289686066290407838832947993664 | AG35: =IF($W35="","",IF(AG$15="","",[1]!xpow([1]!xadd([1]!xmult([1]!xmult($D$10,$V35,250),$W35,250),$D$11*AG$15,250),2,250))) -> 28.7831721507563509016024255835324192479573283395295273929686066290407838832947993664 | AH35: =IF($W35="","",IF(AH$15="","",[1]!xpow([1]!xadd([1]!xmult([1]!xmult($D$10,$V35,250),$W35,250),$D$11*AH$15,250),2,250))) -> 31.0991561767920899269355458733728111521300294288557808569686066290407838832947993664 | AI35: =IF($W35="","",IF(AI$15="","",[1]!xpow([1]!xadd([1]!xmult([1]!xmult($D$10,$V35,250),$W35,250),$D$11*AI$15,250),2,250))) -> 33.5047457583839492295539064951548440135276488502032739289686066290407838832947993664 | AJ35: =IF($W35="","",IF(AJ$15="","",[1]!xpow([1]!xadd([1]!xmult([1]!xmult($D$10,$V35,250),$W35,250),$D$11*AJ$15,250),2,250))) ->  | AP35: 0.012875 | AQ35: =IF($AP35="","",IF(AQ$15="","",[1]!xsqr([1]!xsub(1,[1]!xdiv(X35,$D$14,250),250),250))) -> 0.999999999999999933399182560156022555228844183430587839450415188530825510614804109071235063508256841705003532080112043587169698506361805141820078413732513605696348502800099825231060530604473214336979499220309953257889642004227432086854376922754972032 | AR35: =IF($AP35="","",IF(AR$15="","",[1]!xsqr([1]!xsub(1,[1]!xdiv(Y35,$D$14,250),250),250))) -> 0.9999999999999999250012669667377135051624851349501916179333732487944277653591212750076790231035873310814657675631860865713352689118145769011405662730281015754616696882676763758660996268104593028037540644832856731517548019777055711020603950951744639195 | AS35: =IF($AP35="","",IF(AS$15="","",[1]!xsqr([1]!xsub(1,[1]!xdiv(Z35,$D$14,250),250),250))) -> 0.999999999999999916104853241260981118758988497400955199099831200112441611961388991260732908083380754674506586466275314204266047799393048163383681305585639492396893235283754632944197285484973497681761629813282951896989577608680286051189186111991995571 | AT35: =IF($AP35="","",IF(AT$15="","",[1]!xsqr([1]!xsub(1,[1]!xdiv(AA35,$D$14,250),250),250))) -> 0.9999999999999999067099413837262103590851901333237745651996651069757745874537954674041288601665124097072520697985311796631359599088912944887568404280880748356925186071717935715994233476921300359302004891874684586426180175748862416301472753132713401635 | AU35: =IF($AP35="","",IF(AU$15="","",[1]!xsqr([1]!xsub(1,[1]!xdiv(AB35,$D$14,250),250),250))) -> 0.9999999999999998968165313941334012120910520072256520165768278368828498434861713248161158708089362999973523224950909758097664888372767112828350993422340393663710010504603060716840169511271714447013675554988117207914388733353805975957854538008896673745 | AV35: =IF($AP35="","",IF(AV$15="","",[1]!xsqr([1]!xsub(1,[1]!xdiv(AC35,$D$14,250),250),250))) -> 0.999999999999999886424623272483056394816673331045991523030986662581324033104722467184142762072892994584404142979732867481601115243287708867516224639722255160362519845554297583324659252920293649453690375849477409079280103889253619742141465129409746871 | AW35: =IF($AP35="","",IF(AW$15="","",[1]!xsqr([1]!xsub(1,[1]!xdiv(AD35,$D$14,250),250),250))) -> 0.9999999999999998755342170187741939791425900577455183060961695494923447965176050079077038756964300807357003799878240895968332652917816303913597050345543409527220699974091723263964949760152893709136200913218485452975137801983609298825835466366217585875 | AX35: =IF($AP35="","",IF(AX$15="","",[1]!xsqr([1]!xsub(1,[1]!xdiv(AE35,$D$14,250),250),250))) -> 0.9999999999999998641453126330072931295250459379695302925442190445938271194939771989312089636253912565851437472097189910869597775602584280167775820785942003061060949413095735755148515556147704028512313885747038693498462517569463126979838118369806943625 | AY35: =IF($AP35="","",IF(AY$15="","",[1]!xsqr([1]!xsub(1,[1]!xdiv(AF35,$D$14,250),250),250))) -> 0.999999999999999852257910115181780443817800467901649056147840643307624497715213752793242621053978269173993333651381489706572730159273182124392920385660643092600259438918073134271703013167289446958258310365004084980540807132808995489596355664502330898 | AZ35: =IF($AP35="","",IF(AZ$15="","",[1]!xsqr([1]!xsub(1,[1]!xdiv(AG35,$D$14,250),250),250))) -> 0.999999999999999839872009465299972995792954196617877036178368337105922833410229817065001519646074115215204637420052620567841989261144782060606596468616041161805955055723013336816593282304345899699482396596583144584070292368455601782714210332786032468 | BA35: =IF($AP35="","",IF(BA$15="","",[1]!xsqr([1]!xsub(1,[1]!xdiv(AH35,$D$14,250),250),250))) -> 0.999999999999999826987610683360221264863428064211810915063734850114880003988152219217387806492229484619129318474156257266901067921907350123508886689700190844158015278447803822085840382964240312029540218300983292866655700168861231194109865948028575949 | BB35: =IF($AP35="","",IF(BB$15="","",[1]!xsqr([1]!xsub(1,[1]!xdiv(AI35,$D$14,250),250),250))) -> 0.9999999999999998136047137693593050397968897996253578816267221514613166232272386749162583724865324598535185225781635507643383595322708604743781398248496648834937833395124822337566313631948530767404339431416099673646282237909387684179753199769111458905
V36: 1.364859669 | W36: 0.01275 | X36: =IF($W36="","",IF(X$15="","",[1]!xpow([1]!xadd([1]!xmult([1]!xmult($D$10,$V36,250),$W36,250),$D$11*X$15,250),2,250))) -> 11.9715655822806494576307383850615897984650716991339600772954352141759675304435147776 | Y36: =IF($W36="","",IF(Y$15="","",[1]!xpow([1]!xadd([1]!xmult([1]!xmult($D$10,$V36,250),$W36,250),$D$11*Y$15,250),2,250))) -> 13.4810995878746118260291159838565157032482065076661856004954352141759675304435147776 | Z36: =IF($W36="","",IF(Z$15="","",[1]!xpow([1]!xadd([1]!xmult([1]!xmult($D$10,$V36,250),$W36,250),$D$11*Z$15,250),2,250))) -> 15.0802391490242017721057981115425964036160967034000728388954352141759675304435147776 | AA36: =IF($W36="","",IF(AA$15="","",[1]!xpow([1]!xadd([1]!xmult([1]!xmult($D$10,$V36,250),$W36,250),$D$11*AA$15,250),2,250))) -> 16.7689842657293500959602580170286771039839868991339600772954352141759675304435147776 | AB36: =IF($W36="","",IF(AB$15="","",[1]!xpow([1]!xadd([1]!xmult([1]!xmult($D$10,$V36,250),$W36,250),$D$11*AB$15,250),2,250))) -> 18.5473349379900567975924957003147578043518770948678473156954352141759675304435147776 | AC36: =IF($W36="","",IF(AC$15="","",[1]!xpow([1]!xadd([1]!xmult([1]!xmult($D$10,$V36,250),$W36,250),$D$11*AC$15,250),2,250))) -> 20.4152911658062315104353177435096837091350119034000728388954352141759675304435147776 | AD36: =IF($W36="","",IF(AD$15="","",[1]!xpow([1]!xadd([1]!xmult([1]!xmult($D$10,$V36,250),$W36,250),$D$11*AD$15,250),2,250))) -> 22.3728529491780507342897776489957644095029020991339600772954352141759675304435147776 | AE36: =IF($W36="","",IF(AE$15="","",[1]!xpow([1]!xadd([1]!xmult([1]!xmult($D$10,$V36,250),$W36,250),$D$11*AE$15,250),2,250))) -> 24.4200202881054283359220153322818451098707922948678473156954352141759675304435147776 | AF36: =IF($W36="","",IF(AF$15="","",[1]!xpow([1]!xadd([1]!xmult([1]!xmult($D$10,$V36,250),$W36,250),$D$11*AF$15,250),2,250))) -> 26.5567931825884673818992242114590806058234378778033962692954352141759675304435147776 | AG36: =IF($W36="","",IF(AG$15="","",[1]!xpow([1]!xadd([1]!xmult([1]!xmult($D$10,$V36,250),$W36,250),$D$11*AG$15,250),2,250))) -> 28.7831716326267513726192972809628517150218172991339600772954352141759675304435147776 | AH36: =IF($W36="","",IF(AH$15="","",[1]!xpow([1]!xadd([1]!xmult([1]!xmult($D$10,$V36,250),$W36,250),$D$11*AH$15,250),2,250))) -> 31.0991556382205768077838147954666228242201967204645238852954352141759675304435147776 | AI36: =IF($W36="","",IF(AI$15="","",[1]!xpow([1]!xadd([1]!xmult([1]!xmult($D$10,$V36,250),$W36,250),$D$11*AI$15,250),2,250))) -> 33.5047451993705225202287438434261679113423530778033962692954352141759675304435147776 | AJ36: =IF($W36="","",IF(AJ$15="","",[1]!xpow([1]!xadd([1]!xmult([1]!xmult($D$10,$V36,250),$W36,250),$D$11*AJ$15,250),2,250))) ->  | AP36: 0.01275 | AQ36: =IF($AP36="","",IF(AQ$15="","",[1]!xsqr([1]!xsub(1,[1]!xdiv(X36,$D$14,250),250),250))) -> 0.999999999999999933399184419129328762463704327853104223381774841184309016308482885837350532305216420018784604189538458191856695687338601629113209908860063782990133410044347505303429063447322036489491626134445689891834829269218479227242144908665042999 | AR36: =IF($AP36="","",IF(AR$15="","",[1]!xsqr([1]!xsub(1,[1]!xdiv(Y36,$D$14,250),250),250))) -> 0.999999999999999925001268939434501222124343606711955261856265415092830742608464228949812340015172790314535789616363553827870854912420430963119815132577760260022733675752586323291528215909512062154327762038990381557014637084020919589933578823823862251 | AS36: =IF($AP36="","",IF(AS$15="","",[1]!xsqr([1]!xsub(1,[1]!xdiv(Z36,$D$14,250),250),250))) -> 0.9999999999999999161048553276812503454532210095649290078143847169183224606289283615955079459265841729903798916100637711380792495029967481559331371025135149223974757869755520041772120795853948958827622617590008627039207020075138002178873217482622508355 | AT36: =IF($AP36="","",IF(AT$15="","",[1]!xsqr([1]!xsub(1,[1]!xdiv(AA36,$D$14,250),250),250))) -> 0.99999999999999990670994358386996109551179980611977923131593678161271033267685658037546866908451633992858585119126190319598874275595537582023882145657794489821784611441863440562428501394661460453405060989257946525112602482367861350647370640138174219 | AU36: =IF($AP36="","",IF(AU$15="","",[1]!xsqr([1]!xsub(1,[1]!xdiv(AB36,$D$14,250),250),250))) -> 0.9999999999999998968165337080006334582500421309563375439203795900163541835669672422528695498302217867173020534367862751014409393154225991546926013090920295151138633881049536022882799803727657259032329275258369874584049417982751651080915667335173035675 | AV36: =IF($AP36="","",IF(AV$15="","",[1]!xsqr([1]!xsub(1,[1]!xdiv(AC36,$D$14,250),250),250))) -> 0.9999999999999998864246257000737701507026746031808657024802068155019156214654017951810098551990278541457704962668517042346875272696619755596680166664207588636025798637711043342694659688353242950968948935560278347272948646235350334302552242738581590185 | AW36: =IF($AP36="","",IF(AW$15="","",[1]!xsqr([1]!xsub(1,[1]!xdiv(AD36,$D$14,250),250),250))) -> 0.9999999999999998755342195600883892447609788716388612878948739352285061076182764172739228259424490452863687843255383314428601410647713168977901642908601351916105543553391948967554538505115489322345029152916324103363287226205471861778799930838711153865 | AX36: =IF($AP36="","",IF(AX$15="","",[1]!xsqr([1]!xsub(1,[1]!xdiv(AE36,$D$14,250),250),250))) -> 0.9999999999999998641453152880449699048758260941424800141566026927535367472232470653776582992537230170709880491478936050962620589379509384500892152856716060762156081073937795400406519801694679711645605961196833150040257647041790487480643789031104582605 | AY36: =IF($AP36="","",IF(AY$15="","",[1]!xsqr([1]!xsub(1,[1]!xdiv(AF36,$D$14,250),250),250))) -> 0.9999999999999998522579128839429387289063486998541442909671220000379967592167763912072535028296459319197849409889246290771182845529774893272616253526625812171465457243030637209928675554888459434078859211174962759835734774887452728503000090231669792705 | AZ36: =IF($AP36="","",IF(AZ$15="","",[1]!xsqr([1]!xsub(1,[1]!xdiv(AG36,$D$14,250),250),250))) -> 0.999999999999999839872012347784612790603156356298799769760118131684610003376175389444998464614558976597677373585317322953571595660519722716026200379085718885007235111373524847807976183578649002570759370395938446899906614165279520390466906506652681343 | BA36: =IF($AP36="","",IF(BA$15="","",[1]!xsqr([1]!xsub(1,[1]!xdiv(AH36,$D$14,250),250),250))) -> 0.9999999999999998269876136795683425693952884623607870176964090249107324168670846554238330733700699474153823298924733497964132303095398597745512356754843230312531101597264945160294983933841334713408334843552685741615764245100189141808520333726645643385 | BB36: =IF($AP36="","",IF(BB$15="","",[1]!xsqr([1]!xsub(1,[1]!xdiv(AI36,$D$14,250),250),250))) -> 0.9999999999999998136047168792909078540772767315847001614484492500475217862346064664377401777394553853088842225137171674974103865619781626145596509005664663133748926091225503401498906786069499613411527122163456611157143515743275329103185238120839713505
X37: =IF($W37="","",IF(X$15="","",[1]!xpow([1]!xadd([1]!xmult([1]!xmult($D$10,$V37,250),$W37,250),$D$11*X$15,250),2,250))) ->  | Y37: =IF($W37="","",IF(Y$15="","",[1]!xpow([1]!xadd([1]!xmult([1]!xmult($D$10,$V37,250),$W37,250),$D$11*Y$15,250),2,250))) ->  | Z37: =IF($W37="","",IF(Z$15="","",[1]!xpow([1]!xadd([1]!xmult([1]!xmult($D$10,$V37,250),$W37,250),$D$11*Z$15,250),2,250))) ->  | AA37: =IF($W37="","",IF(AA$15="","",[1]!xpow([1]!xadd([1]!xmult([1]!xmult($D$10,$V37,250),$W37,250),$D$11*AA$15,250),2,250))) ->  | AB37: =IF($W37="","",IF(AB$15="","",[1]!xpow([1]!xadd([1]!xmult([1]!xmult($D$10,$V37,250),$W37,250),$D$11*AB$15,250),2,250))) ->  | AC37: =IF($W37="","",IF(AC$15="","",[1]!xpow([1]!xadd([1]!xmult([1]!xmult($D$10,$V37,250),$W37,250),$D$11*AC$15,250),2,250))) ->  | AD37: =IF($W37="","",IF(AD$15="","",[1]!xpow([1]!xadd([1]!xmult([1]!xmult($D$10,$V37,250),$W37,250),$D$11*AD$15,250),2,250))) ->  | AE37: =IF($W37="","",IF(AE$15="","",[1]!xpow([1]!xadd([1]!xmult([1]!xmult($D$10,$V37,250),$W37,250),$D$11*AE$15,250),2,250))) ->  | AF37: =IF($W37="","",IF(AF$15="","",[1]!xpow([1]!xadd([1]!xmult([1]!xmult($D$10,$V37,250),$W37,250),$D$11*AF$15,250),2,250))) ->  | AG37: =IF($W37="","",IF(AG$15="","",[1]!xpow([1]!xadd([1]!xmult([1]!xmult($D$10,$V37,250),$W37,250),$D$11*AG$15,250),2,250))) ->  | AH37: =IF($W37="","",IF(AH$15="","",[1]!xpow([1]!xadd([1]!xmult([1]!xmult($D$10,$V37,250),$W37,250),$D$11*AH$15,250),2,250))) ->  | AI37: =IF($W37="","",IF(AI$15="","",[1]!xpow([1]!xadd([1]!xmult([1]!xmult($D$10,$V37,250),$W37,250),$D$11*AI$15,250),2,250))) ->  | AJ37: =IF($W37="","",IF(AJ$15="","",[1]!xpow([1]!xadd([1]!xmult([1]!xmult($D$10,$V37,250),$W37,250),$D$11*AJ$15,250),2,250))) ->  | AQ37: =IF($AP37="","",IF(AQ$15="","",[1]!xsqr([1]!xsub(1,[1]!xdiv(X37,$D$14,250),250),250))) ->  | AR37: =IF($AP37="","",IF(AR$15="","",[1]!xsqr([1]!xsub(1,[1]!xdiv(Y37,$D$14,250),250),250))) ->  | AS37: =IF($AP37="","",IF(AS$15="","",[1]!xsqr([1]!xsub(1,[1]!xdiv(Z37,$D$14,250),250),250))) ->  | AT37: =IF($AP37="","",IF(AT$15="","",[1]!xsqr([1]!xsub(1,[1]!xdiv(AA37,$D$14,250),250),250))) ->  | AU37: =IF($AP37="","",IF(AU$15="","",[1]!xsqr([1]!xsub(1,[1]!xdiv(AB37,$D$14,250),250),250))) ->  | AV37: =IF($AP37="","",IF(AV$15="","",[1]!xsqr([1]!xsub(1,[1]!xdiv(AC37,$D$14,250),250),250))) ->  | AW37: =IF($AP37="","",IF(AW$15="","",[1]!xsqr([1]!xsub(1,[1]!xdiv(AD37,$D$14,250),250),250))) ->  | AX37: =IF($AP37="","",IF(AX$15="","",[1]!xsqr([1]!xsub(1,[1]!xdiv(AE37,$D$14,250),250),250))) ->  | AY37: =IF($AP37="","",IF(AY$15="","",[1]!xsqr([1]!xsub(1,[1]!xdiv(AF37,$D$14,250),250),250))) ->  | AZ37: =IF($AP37="","",IF(AZ$15="","",[1]!xsqr([1]!xsub(1,[1]!xdiv(AG37,$D$14,250),250),250))) ->  | BA37: =IF($AP37="","",IF(BA$15="","",[1]!xsqr([1]!xsub(1,[1]!xdiv(AH37,$D$14,250),250),250))) ->  | BB37: =IF($AP37="","",IF(BB$15="","",[1]!xsqr([1]!xsub(1,[1]!xdiv(AI37,$D$14,250),250),250))) -> 
X38: =IF($W38="","",IF(X$15="","",[1]!xpow([1]!xadd([1]!xmult([1]!xmult($D$10,$V38,250),$W38,250),$D$11*X$15,250),2,250))) ->  | Y38: =IF($W38="","",IF(Y$15="","",[1]!xpow([1]!xadd([1]!xmult([1]!xmult($D$10,$V38,250),$W38,250),$D$11*Y$15,250),2,250))) ->  | Z38: =IF($W38="","",IF(Z$15="","",[1]!xpow([1]!xadd([1]!xmult([1]!xmult($D$10,$V38,250),$W38,250),$D$11*Z$15,250),2,250))) ->  | AA38: =IF($W38="","",IF(AA$15="","",[1]!xpow([1]!xadd([1]!xmult([1]!xmult($D$10,$V38,250),$W38,250),$D$11*AA$15,250),2,250))) ->  | AB38: =IF($W38="","",IF(AB$15="","",[1]!xpow([1]!xadd([1]!xmult([1]!xmult($D$10,$V38,250),$W38,250),$D$11*AB$15,250),2,250))) ->  | AC38: =IF($W38="","",IF(AC$15="","",[1]!xpow([1]!xadd([1]!xmult([1]!xmult($D$10,$V38,250),$W38,250),$D$11*AC$15,250),2,250))) ->  | AD38: =IF($W38="","",IF(AD$15="","",[1]!xpow([1]!xadd([1]!xmult([1]!xmult($D$10,$V38,250),$W38,250),$D$11*AD$15,250),2,250))) ->  | AE38: =IF($W38="","",IF(AE$15="","",[1]!xpow([1]!xadd([1]!xmult([1]!xmult($D$10,$V38,250),$W38,250),$D$11*AE$15,250),2,250))) ->  | AF38: =IF($W38="","",IF(AF$15="","",[1]!xpow([1]!xadd([1]!xmult([1]!xmult($D$10,$V38,250),$W38,250),$D$11*AF$15,250),2,250))) ->  | AG38: =IF($W38="","",IF(AG$15="","",[1]!xpow([1]!xadd([1]!xmult([1]!xmult($D$10,$V38,250),$W38,250),$D$11*AG$15,250),2,250))) ->  | AH38: =IF($W38="","",IF(AH$15="","",[1]!xpow([1]!xadd([1]!xmult([1]!xmult($D$10,$V38,250),$W38,250),$D$11*AH$15,250),2,250))) ->  | AI38: =IF($W38="","",IF(AI$15="","",[1]!xpow([1]!xadd([1]!xmult([1]!xmult($D$10,$V38,250),$W38,250),$D$11*AI$15,250),2,250))) ->  | AJ38: =IF($W38="","",IF(AJ$15="","",[1]!xpow([1]!xadd([1]!xmult([1]!xmult($D$10,$V38,250),$W38,250),$D$11*AJ$15,250),2,250))) ->  | AQ38: =IF($AP38="","",IF(AQ$15="","",[1]!xsqr([1]!xsub(1,[1]!xdiv(X38,$D$14,250),250),250))) ->  | AR38: =IF($AP38="","",IF(AR$15="","",[1]!xsqr([1]!xsub(1,[1]!xdiv(Y38,$D$14,250),250),250))) ->  | AS38: =IF($AP38="","",IF(AS$15="","",[1]!xsqr([1]!xsub(1,[1]!xdiv(Z38,$D$14,250),250),250))) ->  | AT38: =IF($AP38="","",IF(AT$15="","",[1]!xsqr([1]!xsub(1,[1]!xdiv(AA38,$D$14,250),250),250))) ->  | AU38: =IF($AP38="","",IF(AU$15="","",[1]!xsqr([1]!xsub(1,[1]!xdiv(AB38,$D$14,250),250),250))) ->  | AV38: =IF($AP38="","",IF(AV$15="","",[1]!xsqr([1]!xsub(1,[1]!xdiv(AC38,$D$14,250),250),250))) ->  | AW38: =IF($AP38="","",IF(AW$15="","",[1]!xsqr([1]!xsub(1,[1]!xdiv(AD38,$D$14,250),250),250))) ->  | AX38: =IF($AP38="","",IF(AX$15="","",[1]!xsqr([1]!xsub(1,[1]!xdiv(AE38,$D$14,250),250),250))) ->  | AY38: =IF($AP38="","",IF(AY$15="","",[1]!xsqr([1]!xsub(1,[1]!xdiv(AF38,$D$14,250),250),250))) ->  | AZ38: =IF($AP38="","",IF(AZ$15="","",[1]!xsqr([1]!xsub(1,[1]!xdiv(AG38,$D$14,250),250),250))) ->  | BA38: =IF($AP38="","",IF(BA$15="","",[1]!xsqr([1]!xsub(1,[1]!xdiv(AH38,$D$14,250),250),250))) ->  | BB38: =IF($AP38="","",IF(BB$15="","",[1]!xsqr([1]!xsub(1,[1]!xdiv(AI38,$D$14,250),250),250))) -> 
D45: g | E45: Tangential Velocity | F45: =X15 -> 3.46 | G45: 3.671666667 | H45: 3.883333333 | I45: 4.095 | J45: 4.306666667 | K45: 4.518333333 | L45: 4.73 | M45: 4.941666667 | N45: 5.153333333 | O45: 5.365 | P45: 5.576666667 | Q45: 5.788333333 | U45: V(L)^2 | W45: Tangential Velocity | X45: =X15 -> 3.46 | Y45: =Y15 -> 3.671666667 | Z45: 3.883333333 | AA45: 4.095 | AB45: 4.306666667 | AC45: 4.518333333 | AD45: 4.73 | AE45: 4.941666667 | AF45: 5.153333333 | AG45: 5.365 | AH45: 5.576666667 | AI45: 5.788333333 | AN45: V(L) Transformation | AP45: Tangential Velocity | AQ45: =X45 -> 3.46 | AR45: =Y45 -> 3.671666667 | AS45: =Z45 -> 3.883333333 | AT45: =AA45 -> 4.095 | AU45: =AB45 -> 4.306666667 | AV45: =AC45 -> 4.518333333 | AW45: =AD45 -> 4.73 | AX45: =AE45 -> 4.941666667 | AY45: =AF45 -> 5.153333333 | AZ45: =AG45 -> 5.365 | BA45: =AH45 -> 5.576666667 | BB45: =AI45 -> 5.788333333
E46: Height | F46: Distance From Center | W46: Distance From Center | X46: =Magnets!E58 -> 0 | Y46: =Magnets!F58 -> 0 | Z46: =Magnets!G58 -> 0 | AA46: =Magnets!H58 -> 0 | AB46: =Magnets!I58 -> 0 | AC46: =Magnets!J58 -> 0 | AD46: =Magnets!K58 -> 0 | AE46: =Magnets!L58 -> 0 | AF46: =Magnets!M58 -> 0 | AG46: =Magnets!N58 -> 0 | AH46: =Magnets!O58 -> 0 | AI46: =Magnets!P58 -> 0 | AP46: Distance From Center | AQ46: =X46 -> 0 | AR46: 0 | AS46: 0 | AT46: 0 | AU46: 0 | AV46: 0 | AW46: 0 | AX46: 0 | AY46: 0 | AZ46: 0 | BA46: 0 | BB46: 0
D47: B | F47: =X16 -> 0.0692 | G47: 0.07343333333 | H47: 0.07766666667 | I47: 0.0819 | J47: 0.08613333333 | K47: 0.09036666667 | L47: 0.0946 | M47: 0.09883333333 | N47: 0.1030666667 | O47: 0.1073 | P47: 0.1115333333 | Q47: 0.1157666667 | R47: 0.12 | V47: B | W47: Height | AO47: B | AP47: Height
D48: =V18 -> 0.9861111111 | E48: =W18 -> 0.015 | F48: =IF($E48="","",IF(F$45="","",VALUE([1]!xmult([1]!xdiv([1]!xsub(AQ18,AQ48,250),$U$51,250),$D$14,250)))) -> 0.0009751682244 | G48: =IF($E48="","",IF(G$45="","",VALUE([1]!xmult([1]!xdiv([1]!xsub(AR18,AR48,250),$U$51,250),$D$14,250)))) -> 0.001034824542 | H48: =IF($E48="","",IF(H$45="","",VALUE([1]!xmult([1]!xdiv([1]!xsub(AS18,AS48,250),$U$51,250),$D$14,250)))) -> 0.00109448086 | I48: =IF($E48="","",IF(I$45="","",VALUE([1]!xmult([1]!xdiv([1]!xsub(AT18,AT48,250),$U$51,250),$D$14,250)))) -> 0.001154137178 | J48: =IF($E48="","",IF(J$45="","",VALUE([1]!xmult([1]!xdiv([1]!xsub(AU18,AU48,250),$U$51,250),$D$14,250)))) -> 0.001213793496 | K48: =IF($E48="","",IF(K$45="","",VALUE([1]!xmult([1]!xdiv([1]!xsub(AV18,AV48,250),$U$51,250),$D$14,250)))) -> 0.001273449813 | L48: =IF($E48="","",IF(L$45="","",VALUE([1]!xmult([1]!xdiv([1]!xsub(AW18,AW48,250),$U$51,250),$D$14,250)))) -> 0.001333106131 | M48: =IF($E48="","",IF(M$45="","",VALUE([1]!xmult([1]!xdiv([1]!xsub(AX18,AX48,250),$U$51,250),$D$14,250)))) -> 0.001392762449 | N48: =IF($E48="","",IF(N$45="","",VALUE([1]!xmult([1]!xdiv([1]!xsub(AY18,AY48,250),$U$51,250),$D$14,250)))) -> 0.001452418767 | O48: =IF($E48="","",IF(O$45="","",VALUE([1]!xmult([1]!xdiv([1]!xsub(AZ18,AZ48,250),$U$51,250),$D$14,250)))) -> 0.001512075085 | P48: =IF($E48="","",IF(P$45="","",VALUE([1]!xmult([1]!xdiv([1]!xsub(BA18,BA48,250),$U$51,250),$D$14,250)))) -> 0.001571731403 | Q48: =IF($E48="","",IF(Q$45="","",VALUE([1]!xmult([1]!xdiv([1]!xsub(BB18,BB48,250),$U$51,250),$D$14,250)))) -> 0.00163138772 | R48: =IF($E48="","",IF(R$45="","",VALUE([1]!xmult([1]!xdiv([1]!xsub(BC18,BC48,250),$U$51,250),$D$14,250)))) ->  | U48: Increments | W48: =W18-$U$51 -> 0.01499875 | X48: =IF($W48="","",IF(X$45="","",[1]!xpow([1]!xadd([1]!xmult([1]!xmult($D$10,$V18,250),$W48,250),$D$11*X$45,250),2,250))) -> 11.9715707473733185918468105428493461837554337425533510421256996353930359976385133405547584 | Y48: =IF($W48="","",IF(Y$45="","",[1]!xpow([1]!xadd([1]!xmult([1]!xmult($D$10,$V18,250),$W48,250),$D$11*Y$45,250),2,250))) -> 13.4811050689439867228882013863093728195931508830612299434152996353930359976385133405547584 | Z48: =IF($W48="","",IF(Z$45="","",[1]!xpow([1]!xadd([1]!xmult([1]!xmult($D$10,$V18,250),$W48,250),$D$11*Z$45,250),2,250))) -> 15.0802449460702824316228247920036717139416183956072904927704996353930359976385133405547584 | AA48: =IF($W48="","",IF(AA$45="","",[1]!xpow([1]!xadd([1]!xmult([1]!xmult($D$10,$V18,250),$W48,250),$D$11*AA$45,250),2,250))) -> 16.7689903787521365181352259754979706082900859081533510421256996353930359976385133405547584 | AB48: =IF($W48="","",IF(AB$45="","",[1]!xpow([1]!xadd([1]!xmult([1]!xmult($D$10,$V18,250),$W48,250),$D$11*AB$45,250),2,250))) -> 18.5473413669895489824254049367922695026385534206994115914808996353930359976385133405547584 | AC48: =IF($W48="","",IF(AC$45="","",[1]!xpow([1]!xadd([1]!xmult([1]!xmult($D$10,$V18,250),$W48,250),$D$11*AC$45,250),2,250))) -> 20.4152979107824294579112402246522961384762705612072904927704996353930359976385133405547584 | AD48: =IF($W48="","",IF(AD$45="","",[1]!xpow([1]!xadd([1]!xmult([1]!xmult($D$10,$V18,250),$W48,250),$D$11*AD$45,250),2,250))) -> 22.3728600101309544444236414081465950328247380737533510421256996353930359976385133405547584 | AE48: =IF($W48="","",IF(AE$45="","",[1]!xpow([1]!xadd([1]!xmult([1]!xmult($D$10,$V18,250),$W48,250),$D$11*AE$45,250),2,250))) -> 24.4200276650350378087138203694408939271732055862994115914808996353930359976385133405547584 | AF48: =IF($W48="","",IF(AF$45="","",[1]!xpow([1]!xadd([1]!xmult([1]!xmult($D$10,$V18,250),$W48,250),$D$11*AF$45,250),2,250))) -> 26.5568008754947826173638985599694650800324234708836537889016996353930359976385133405547584 | AG48: =IF($W48="","",IF(AG$45="","",[1]!xpow([1]!xadd([1]!xmult([1]!xmult($D$10,$V18,250),$W48,250),$D$11*AG$45,250),2,250))) -> 28.7831796415097723707120568407952194573593902393533510421256996353930359976385133405547584 | AH48: =IF($W48="","",IF(AH$45="","",[1]!xpow([1]!xadd([1]!xmult([1]!xmult($D$10,$V18,250),$W48,250),$D$11*AH$45,250),2,250))) -> 31.0991639630803035685046595666209738346863570078230482953496996353930359976385133405547584 | AI48: =IF($W48="","",IF(AI$45="","",[1]!xpow([1]!xadd([1]!xmult([1]!xmult($D$10,$V18,250),$W48,250),$D$11*AI$45,250),2,250))) -> 33.5047538402069550436523139926180895045670756364836537889016996353930359976385133405547584 | AN48: Increments | AP48: =W48 -> 0.01499875 | AQ48: =IF($AP48="","",IF(AQ$45="","",[1]!xsqr([1]!xsub(1,[1]!xdiv(X48,$D$14,250),250),250))) -> 0.9999999999999999333991556844260895908660147961447969095863557195349496081834677924517634227818260822273881798871700208263276288676535665399527312289810950285804023668952387604651601614438596618291077357342725978069935852665334036749283466051698105585 | AR48: =IF($AP48="","",IF(AR$45="","",[1]!xsqr([1]!xsub(1,[1]!xdiv(Y48,$D$14,250),250),250))) -> 0.9999999999999999250012384468737651583140461202006916359121220297451182263226621903146938230746548695404673959307752047696016730223681087912700939603842733967822018534236843678381053683837148247743868852000360287455488944732400171009629048741005066585 | AS48: =IF($AP48="","",IF(AS$45="","",[1]!xsqr([1]!xsub(1,[1]!xdiv(Z48,$D$14,250),250),250))) -> 0.9999999999999999161048230772630173893472215811170536204343192100576611326700546613132596015014919096176245923805404453580276262698859612642674101421155774560836445360127764955216794355407922673976223204879553245032862930427761401763881578080048862755 | AT48: =IF($AP48="","",IF(AT$45="","",[1]!xsqr([1]!xsub(1,[1]!xdiv(AA48,$D$14,250),250),250))) -> 0.999999999999999906709909575594231247110050205415550425131408107877164726647924206435778940111154045153151547850410908019745591358673131719862219963832445180255083637264428798678639179211828790372104110873600565599302180031133811304587937490535687465 | AU48: =IF($AP48="","",IF(AU$45="","",[1]!xsqr([1]!xsub(1,[1]!xdiv(AB48,$D$14,250),250),250))) -> 0.9999999999999998968164979418674067175524914988099777864754349347585277139068524485743765950713053711259005487808303641461127687090695321299269729015284219717808858496896171918562739498767978017710268885066192007094265584385721068383595379820941883305 | AV48: =IF($AP48="","",IF(AV$45="","",[1]!xsqr([1]!xsub(1,[1]!xdiv(AC48,$D$14,250),250),250))) -> 0.9999999999999998864245881760830465177923178372205112649402941413669769128787260491521352909368312690361072997522989978929687755393045334042795793888610842820263465208570405774650376602481318261734815405751247265981270114856946868615455822355059803695 | AW48: =IF($AP48="","",IF(AW$45="","",[1]!xsqr([1]!xsub(1,[1]!xdiv(AD48,$D$14,250),250),250))) -> 0.9999999999999998755341802782401687195547114692667132116321556595567379778057008941539280080876355843560546267104914409203984432726017154288483978915566991079146130326581915342429396753202924729642822553275870217229522217882269305432633044549487085085 | AX48: =IF($AP48="","",IF(AX$45="","",[1]!xsqr([1]!xsub(1,[1]!xdiv(AE48,$D$14,250),250),250))) -> 0.9999999999999998641452742483392524873735893095746531415747286705286035698003991867323583093623455182737194266909338694190318244516914962055398776586266240330690990876032721459915834763690457572186437871851092690330217866993898488325739519672694097495 | AY48: =IF($AP48="","",IF(AY$45="","",[1]!xsqr([1]!xsub(1,[1]!xdiv(AF48,$D$14,250),250),250))) -> 0.9999999999999998522578700863797244190250327727607679021590266490114908490795243193412551881139714998356171878670936955218878816424162175410468485272901196117647006287888775027960901481492797018518877324384499979371751872964144633405468729514575423845 | AZ48: =IF($AP48="","",IF(AZ$45="","",[1]!xsqr([1]!xsub(1,[1]!xdiv(AG48,$D$14,250),250),250))) -> 0.999999999999999839871967792363901588591842440203766021701771517129920989139179079461064715939668504822973961364657769045699475686561548377380118032584980758053694429109495357291468823744630180163179340026269563595696674856036140880990000185773276984 | BA48: =IF($AP48="","",IF(BA$45="","",[1]!xsqr([1]!xsub(1,[1]!xdiv(AH48,$D$14,250),250),250))) -> 0.9999999999999998269875673662901344752539099248821031402390564452253505986196990616510987779342321569908985307706695739242891201830701231748619114728325538878864949963331114449339635531991010872496357602086386434775740981545029953102416703686887144915 | BB48: =IF($AP48="","",IF(BB$45="","",[1]!xsqr([1]!xsub(1,[1]!xdiv(AI48,$D$14,250),250),250))) -> 0.9999999999999998136046688081552028673905223830745890258384308301431205192963205715997464247689469394633829351609000262766899054702182488843884143395164635652578444716683460727386882838487042709395392775380330975588461763629328786680901131264891413595
D49: 1.002754043 | E49: 0.014875 | F49: =IF($E49="","",IF(F$45="","",VALUE([1]!xmult([1]!xdiv([1]!xsub(AQ19,AQ49,250),$U$51,250),$D$14,250)))) -> 0.001983252918 | G49: =IF($E49="","",IF(G$45="","",VALUE([1]!xmult([1]!xdiv([1]!xsub(AR19,AR49,250),$U$51,250),$D$14,250)))) -> 0.002104579234 | H49: =IF($E49="","",IF(H$45="","",VALUE([1]!xmult([1]!xdiv([1]!xsub(AS19,AS49,250),$U$51,250),$D$14,250)))) -> 0.002225905549 | I49: =IF($E49="","",IF(I$45="","",VALUE([1]!xmult([1]!xdiv([1]!xsub(AT19,AT49,250),$U$51,250),$D$14,250)))) -> 0.002347231865 | J49: =IF($E49="","",IF(J$45="","",VALUE([1]!xmult([1]!xdiv([1]!xsub(AU19,AU49,250),$U$51,250),$D$14,250)))) -> 0.00246855818 | K49: =IF($E49="","",IF(K$45="","",VALUE([1]!xmult([1]!xdiv([1]!xsub(AV19,AV49,250),$U$51,250),$D$14,250)))) -> 0.002589884496 | L49: =IF($E49="","",IF(L$45="","",VALUE([1]!xmult([1]!xdiv([1]!xsub(AW19,AW49,250),$U$51,250),$D$14,250)))) -> 0.002711210811 | M49: =IF($E49="","",IF(M$45="","",VALUE([1]!xmult([1]!xdiv([1]!xsub(AX19,AX49,250),$U$51,250),$D$14,250)))) -> 0.002832537127 | N49: =IF($E49="","",IF(N$45="","",VALUE([1]!xmult([1]!xdiv([1]!xsub(AY19,AY49,250),$U$51,250),$D$14,250)))) -> 0.002953863442 | O49: =IF($E49="","",IF(O$45="","",VALUE([1]!xmult([1]!xdiv([1]!xsub(AZ19,AZ49,250),$U$51,250),$D$14,250)))) -> 0.003075189757 | P49: =IF($E49="","",IF(P$45="","",VALUE([1]!xmult([1]!xdiv([1]!xsub(BA19,BA49,250),$U$51,250),$D$14,250)))) -> 0.003196516073 | Q49: =IF($E49="","",IF(Q$45="","",VALUE([1]!xmult([1]!xdiv([1]!xsub(BB19,BB49,250),$U$51,250),$D$14,250)))) -> 0.003317842388 | R49: =IF($E49="","",IF(R$45="","",VALUE([1]!xmult([1]!xdiv([1]!xsub(BC19,BC49,250),$U$51,250),$D$14,250)))) ->  | U49: =U19 -> 0.000125 | W49: =IF(W48="","",IF(W48-$U$19<$J$7,"",IF(W48<$U$19-$U$51,"",W48-$U$19-$U$51))) -> 0.0148725 | X49: =IF($W49="","",IF(X$45="","",[1]!xpow([1]!xadd([1]!xmult([1]!xmult($D$10,$V19,250),$W49,250),$D$11*X$45,250),2,250))) -> 11.97157050405280277121395096370132714801274915917261055905297502829049589867249855088896 | Y49: =IF($W49="","",IF(Y$45="","",[1]!xpow([1]!xadd([1]!xmult([1]!xmult($D$10,$V19,250),$W49,250),$D$11*Y$45,250),2,250))) -> 13.48110481073823804074560787719096196685355015960089030350097502829049589867249855088896 | Z49: =IF($W49="","",IF(Z$45="","",[1]!xpow([1]!xadd([1]!xmult([1]!xmult($D$10,$V19,250),$W49,250),$D$11*Z$45,250),2,250))) -> 15.08024467297930088796979411356708116061032032338675043127697502829049589867249855088896 | AA49: =IF($W49="","",IF(AA$45="","",[1]!xpow([1]!xadd([1]!xmult([1]!xmult($D$10,$V19,250),$W49,250),$D$11*AA$45,250),2,250))) -> 16.76899009077592211297175812774320035436709048717261055905297502829049589867249855088896 | AB49: =IF($W49="","",IF(AB$45="","",[1]!xpow([1]!xadd([1]!xmult([1]!xmult($D$10,$V19,250),$W49,250),$D$11*AB$45,250),2,250))) -> 18.54734106412810171575149991971931954812386065095847068682897502829049589867249855088896 | AC49: =IF($W49="","",IF(AC$45="","",[1]!xpow([1]!xadd([1]!xmult([1]!xmult($D$10,$V19,250),$W49,250),$D$11*AC$45,250),2,250))) -> 20.41529759303574932972760127760895436696466165138675043127697502829049589867249855088896 | AD49: =IF($W49="","",IF(AD$45="","",[1]!xpow([1]!xadd([1]!xmult([1]!xmult($D$10,$V19,250),$W49,250),$D$11*AD$45,250),2,250))) -> 22.37285967749904145472956529178507356072143181517261055905297502829049589867249855088896 | AE49: =IF($W49="","",IF(AE$45="","",[1]!xpow([1]!xadd([1]!xmult([1]!xmult($D$10,$V19,250),$W49,250),$D$11*AE$45,250),2,250))) -> 24.42002731751789195750930708376119275447820197895847068682897502829049589867249855088896 | AF49: =IF($W49="","",IF(AF$45="","",[1]!xpow([1]!xadd([1]!xmult([1]!xmult($D$10,$V19,250),$W49,250),$D$11*AF$45,250),2,250))) -> 26.55680051309240390464824486562379632315094130610191119793297502829049589867249855088896 | AG49: =IF($W49="","",IF(AG$45="","",[1]!xpow([1]!xadd([1]!xmult([1]!xmult($D$10,$V19,250),$W49,250),$D$11*AG$45,250),2,250))) -> 28.78317926422216079648737245582694676707577314317261055905297502829049589867249855088896 | AH49: =IF($W49="","",IF(AH$45="","",[1]!xpow([1]!xadd([1]!xmult([1]!xmult($D$10,$V19,250),$W49,250),$D$11*AH$45,250),2,250))) -> 31.09916357090745913277094449103009721100060498024330992017297502829049589867249855088896 | AI49: =IF($W49="","",IF(AI$45="","",[1]!xpow([1]!xadd([1]!xmult([1]!xmult($D$10,$V19,250),$W49,250),$D$11*AI$45,250),2,250))) -> 33.50475343314887774640605202966566952950528263410191119793297502829049589867249855088896 | AN49: =U79 -> 0 | AP49: =W49 -> 0.0148725 | AQ49: =IF($AP49="","",IF(AQ$45="","",[1]!xsqr([1]!xsub(1,[1]!xdiv(X49,$D$14,250),250),250))) -> 0.9999999999999999333991570380790174249786136519336199056601582012295604232954815808460124538780969053280149099521991347212744613819477643637839774444713673056525371883332198526068196906614175887984171803303177164006172497973169508317398929382855358335 | AR49: =IF($AP49="","",IF(AR$45="","",[1]!xsqr([1]!xsub(1,[1]!xdiv(Y49,$D$14,250),250),250))) -> 0.999999999999999925001239883336968881076505306058047375561285900419070652793956766706095890232955797270216069438454140172477384923958739841442510800629017992893839866005382874863981552622511962166755026080846600273414307677936982294652255605717207253 | AS49: =IF($AP49="","",IF(AS$45="","",[1]!xsqr([1]!xsub(1,[1]!xdiv(Z49,$D$14,250),250),250))) -> 0.999999999999999916104824596536497000763455541764290075893825779517215839435777048142313787916211450213310781682075331682225985237860782945772640091636801648453785715328291066548610237132862799613932170861940387903303589591664849560211207876359598082 | AT49: =IF($AP49="","",IF(AT$45="","",[1]!xsqr([1]!xsub(1,[1]!xdiv(AA49,$D$14,250),250),250))) -> 0.999999999999999906709911177677986747180061212917642611223168563879598217141492062982252502087399422175549254540920433727209843148245980207436545970774760625054336593255844606229804446030670303096440090134057107799663757946724911321738689056551460922 | AU49: =IF($AP49="","",IF(AU$45="","",[1]!xsqr([1]!xsub(1,[1]!xdiv(AB49,$D$14,250),250),250))) -> 0.999999999999999896816499626761438106276281949074204255135625619677163873055792513769386015646603943896949524060158822771697845875434904798600767281533602871906154021991143764709719882438776138940691062972007368244696797830334582481639217170430272068 | AV49: =IF($AP49="","",IF(AV$45="","",[1]!xsqr([1]!xsub(1,[1]!xdiv(AC49,$D$14,250),250),250))) -> 0.999999999999999886424589943787353795165977953497777610140720874618521998829948868761321859557556370491505107867583334261666128437763648924009811256434214992369105763237987733069590841512654378178904725185955741885915409148658879199420027164606834863 | AW49: =IF($AP49="","",IF(AW$45="","",[1]!xsqr([1]!xsub(1,[1]!xdiv(AD49,$D$14,250),250),250))) -> 0.9999999999999998755341821287547518855821561916475815544884138440871056892994157775697271483010635564200936326949987223162384378889489549962209407660266283740179748458657168120596532208654694392191857049372849806283682111148440069576119630251664399585 | AX49: =IF($AP49="","",IF(AX$45="","",[1]!xsqr([1]!xsub(1,[1]!xdiv(AE49,$D$14,250),250),250))) -> 0.999999999999999864145276181664111542054821405493312645360050491156001415873296412285950080377423165548104081513718559983961003785988647139520458503827070791554164716123835783706865118027255802839181641074769116164766604207132546741424513499006836027 | AY49: =IF($AP49="","",IF(AY$45="","",[1]!xsqr([1]!xsub(1,[1]!xdiv(AF49,$D$14,250),250),250))) -> 0.9999999999999998522578721025148593623639674299923877627406512487576185715033553574881243070105721976045358580557539364273198490853423043864702771623233742610992552475735759346521382687107500213668022086881528913639185392866859645382197478215273083605 | AZ49: =IF($AP49="","",IF(AZ$45="","",[1]!xsqr([1]!xsub(1,[1]!xdiv(AG49,$D$14,250),250),250))) -> 0.9999999999999998398719698913093124205767457843711129899972717200857132998576442153958064226683140663792893179046742802634047489576407253958417649631485794977691733049886742393033020806691644660560022260319678572752709011368397553515454895704914502655 | BA49: =IF($AP49="","",IF(BA$45="","",[1]!xsqr([1]!xsub(1,[1]!xdiv(AH49,$D$14,250),250),250))) -> 0.999999999999999826987569548045821195884785094946276990265717020188406206828790402858456383059509435583235866163485005179154407498724501869599091049666862618420057729360882038197401180535066438885113827351639176402167060515406197393560430828187804674 | BB49: =IF($AP49="","",IF(BB$45="","",[1]!xsqr([1]!xsub(1,[1]!xdiv(AI49,$D$14,250),250),250))) -> 0.9999999999999998136046710727211654766869341243323755483595063330563371368490977488498011177883622477584908283537666628312481262018788129782585605187587449670599224269132899504365537024164559107103277126616651408609818325226758826355138616430530138045
D50: 1.01982189 | E50: 0.01475 | F50: =IF($E50="","",IF(F$45="","",VALUE([1]!xmult([1]!xdiv([1]!xsub(AQ20,AQ50,250),$U$51,250),$D$14,250)))) -> 0.003025514681 | G50: =IF($E50="","",IF(G$45="","",VALUE([1]!xmult([1]!xdiv([1]!xsub(AR20,AR50,250),$U$51,250),$D$14,250)))) -> 0.003210601792 | H50: =IF($E50="","",IF(H$45="","",VALUE([1]!xmult([1]!xdiv([1]!xsub(AS20,AS50,250),$U$51,250),$D$14,250)))) -> 0.003395688903 | I50: =IF($E50="","",IF(I$45="","",VALUE([1]!xmult([1]!xdiv([1]!xsub(AT20,AT50,250),$U$51,250),$D$14,250)))) -> 0.003580776014 | J50: =IF($E50="","",IF(J$45="","",VALUE([1]!xmult([1]!xdiv([1]!xsub(AU20,AU50,250),$U$51,250),$D$14,250)))) -> 0.003765863124 | K50: =IF($E50="","",IF(K$45="","",VALUE([1]!xmult([1]!xdiv([1]!xsub(AV20,AV50,250),$U$51,250),$D$14,250)))) -> 0.003950950235 | L50: =IF($E50="","",IF(L$45="","",VALUE([1]!xmult([1]!xdiv([1]!xsub(AW20,AW50,250),$U$51,250),$D$14,250)))) -> 0.004136037346 | M50: =IF($E50="","",IF(M$45="","",VALUE([1]!xmult([1]!xdiv([1]!xsub(AX20,AX50,250),$U$51,250),$D$14,250)))) -> 0.004321124457 | N50: =IF($E50="","",IF(N$45="","",VALUE([1]!xmult([1]!xdiv([1]!xsub(AY20,AY50,250),$U$51,250),$D$14,250)))) -> 0.004506211567 | O50: =IF($E50="","",IF(O$45="","",VALUE([1]!xmult([1]!xdiv([1]!xsub(AZ20,AZ50,250),$U$51,250),$D$14,250)))) -> 0.004691298678 | P50: =IF($E50="","",IF(P$45="","",VALUE([1]!xmult([1]!xdiv([1]!xsub(BA20,BA50,250),$U$51,250),$D$14,250)))) -> 0.004876385789 | Q50: =IF($E50="","",IF(Q$45="","",VALUE([1]!xmult([1]!xdiv([1]!xsub(BB20,BB50,250),$U$51,250),$D$14,250)))) -> 0.0050614729 | R50: =IF($E50="","",IF(R$45="","",VALUE([1]!xmult([1]!xdiv([1]!xsub(BC20,BC50,250),$U$51,250),$D$14,250)))) ->  | U50: Low Delta | W50: =IF(W49="","",IF(W49-$U$19<$J$7,"",IF(W49<$U$19-$U$51,"",W49-$U$19-$U$51))) -> 0.01474625 | X50: =IF($W50="","",IF(X$45="","",[1]!xpow([1]!xadd([1]!xmult([1]!xmult($D$10,$V20,250),$W50,250),$D$11*X$45,250),2,250))) -> 11.97157025665094022046163866892614110352174804955977070737932882896400313436368176027904 | Y50: =IF($W50="","",IF(Y$45="","",[1]!xpow([1]!xadd([1]!xmult([1]!xmult($D$10,$V20,250),$W50,250),$D$11*Y$45,250),2,250))) -> 13.48110454820146440468117004731390564228836820342148794251532882896400313436368176027904 | Z50: =IF($W50="","",IF(Z$45="","",[1]!xpow([1]!xadd([1]!xmult([1]!xmult($D$10,$V20,250),$W50,250),$D$11*Z$45,250),2,250))) -> 15.08024439530761616659251571341876970862173477449062932494732882896400313436368176027904 | AA50: =IF($W50="","",IF(AA$45="","",[1]!xpow([1]!xadd([1]!xmult([1]!xmult($D$10,$V20,250),$W50,250),$D$11*AA$45,250),2,250))) -> 16.76898979796932630628163915732363377495510134555977070737932882896400313436368176027904 | AB50: =IF($W50="","",IF(AB$45="","",[1]!xpow([1]!xadd([1]!xmult([1]!xmult($D$10,$V20,250),$W50,250),$D$11*AB$45,250),2,250))) -> 18.54734075618659482374854037902849784128846791662891208981132882896400313436368176027904 | AC50: =IF($W50="","",IF(AC$45="","",[1]!xpow([1]!xadd([1]!xmult([1]!xmult($D$10,$V20,250),$W50,250),$D$11*AC$45,250),2,250))) -> 20.41529726995933135241251620181626238005508807049062932494732882896400313436368176027904 | AD50: =IF($W50="","",IF(AD$45="","",[1]!xpow([1]!xadd([1]!xmult([1]!xmult($D$10,$V20,250),$W50,250),$D$11*AD$45,250),2,250))) -> 22.37285933928771239210163964572112644638845464155977070737932882896400313436368176027904 | AE50: =IF($W50="","",IF(AE$45="","",[1]!xpow([1]!xadd([1]!xmult([1]!xmult($D$10,$V20,250),$W50,250),$D$11*AE$45,250),2,250))) -> 24.42002696417165180956854086742599051272182121262891208981132882896400313436368176027904 | AF50: =IF($W50="","",IF(AF$45="","",[1]!xpow([1]!xadd([1]!xmult([1]!xmult($D$10,$V20,250),$W50,250),$D$11*AF$45,250),2,250))) -> 26.55680014461125267139392304384795410662193420090547761953932882896400313436368176027904 | AG50: =IF($W50="","",IF(AG$45="","",[1]!xpow([1]!xadd([1]!xmult([1]!xmult($D$10,$V20,250),$W50,250),$D$11*AG$45,250),2,250))) -> 28.78317888060609847792164013411861911782180793755977070737932882896400313436368176027904 | AH50: =IF($W50="","",IF(AH$45="","",[1]!xpow([1]!xadd([1]!xmult([1]!xmult($D$10,$V20,250),$W50,250),$D$11*AH$45,250),2,250))) -> 31.09916317215648572889380166938928412902168167421406379521932882896400313436368176027904 | AI50: =IF($W50="","",IF(AI$45="","",[1]!xpow([1]!xadd([1]!xmult([1]!xmult($D$10,$V20,250),$W50,250),$D$11*AI$45,250),2,250))) -> 33.50475301926299325721392353224544677805528749690547761953932882896400313436368176027904 | AN50: Low Delta | AP50: 0.01474625 | AQ50: =IF($AP50="","",IF(AQ$45="","",[1]!xsqr([1]!xsub(1,[1]!xdiv(X50,$D$14,250),250),250))) -> 0.999999999999999933399158414437498599299520837728437824480430154048561569072283512008473099828038919530643508615254815740196567231978323828677998779862467574213192048811379907446557093423804669248486250825617193072297026180109215408196281224181432671 | AR50: =IF($AP50="","",IF(AR$45="","",[1]!xsqr([1]!xsub(1,[1]!xdiv(Y50,$D$14,250),250),250))) -> 0.999999999999999925001241343894748392592767653234306339543261522489475574532097749118405065236671148122684492940511494906037678589174518198152922879245717824064381487248240435889409584341785369006904774943782494617209182988255003331573349858449929829 | AS50: =IF($AP50="","",IF(AS$45="","",[1]!xsqr([1]!xsub(1,[1]!xdiv(Z50,$D$14,250),250),250))) -> 0.999999999999999916104826141293574849479053154184446428580770094681817172128200879010435574879265145395214196944231389741409091683170040511363063172579486480184936362906953425554949810849436838650666833782115371357415359767598718550088109287784317623 | AT50: =IF($AP50="","",IF(AT$45="","",[1]!xsqr([1]!xsub(1,[1]!xdiv(AA50,$D$14,250),250),250))) -> 0.9999999999999999067099128066343629330949964007572497256707522520694625005424925870608167906532950389473821542361819654538018118447900456953197897002099073260235097510946226650176321180939342091324866215732210834122707985391526997682014575056920537115 | AU50: =IF($AP50="","",IF(AU$45="","",[1]!xsqr([1]!xsub(1,[1]!xdiv(AB50,$D$14,250),250),250))) -> 0.9999999999999998968165013399171126293905571484283943294737201321882225778694668709019674808094639356603718263556977666331137417917314136048395365335319826257932299342533778805951976054687784320970212643893716287671505937387435319546582469335040931175 | AV50: =IF($AP50="","",IF(AV$45="","",[1]!xsqr([1]!xsub(1,[1]!xdiv(AC50,$D$14,250),250),250))) -> 0.999999999999999886424591741142326655475617806774779871451055657101943205274276161414017715889280050398083235049214438663153761474416973954007103813475200747773697720818506814245552980180376194948628960960137256110140414412353920503375867941175325585 | AW50: =IF($AP50="","",IF(AW$45="","",[1]!xsqr([1]!xsub(1,[1]!xdiv(AD50,$D$14,250),250),250))) -> 0.9999999999999998755341840103090230830911413063881676470417149726630811525054979387092393391140906419330364171518496685741507898910765026464227299036142411943634942084541702957471838552696043972254538196353813460317616139247574822172340953794727018435 | AX50: =IF($AP50="","",IF(AX$45="","",[1]!xsqr([1]!xsub(1,[1]!xdiv(AE50,$D$14,250),250),250))) -> 0.9999999999999998641452781474176810767631545955513512425029558359741852348975216578088715321066784664815361738173751900583469521950737326295458474347398302386807457292153772564267817318773062850313190169992009644287623615630287637684911635953564381185 | AY50: =IF($AP50="","",IF(AY$45="","",[1]!xsqr([1]!xsub(1,[1]!xdiv(AF50,$D$14,250),250),250))) -> 0.999999999999999852257874152467727234275629554747808159424176325730922081212430766075599068056476906486430139658405862702110026947765726462639269996594300666579846683844618641809876137493431971843739245729583904172104064319701576645760763626797685887 | AZ50: =IF($AP50="","",IF(AZ$45="","",[1]!xsqr([1]!xsub(1,[1]!xdiv(AG50,$D$14,250),250),250))) -> 0.99999999999999983987197202546147862967980615069749611997852949519011518086098999081773779623906872920536039525553645295839939112148812913012849154926222215047360894497077402951614489399391173158492489678766128676314308666604883855738482727035278356 | BA50: =IF($AP50="","",IF(BA$45="","",[1]!xsqr([1]!xsub(1,[1]!xdiv(AH50,$D$14,250),250),250))) -> 0.9999999999999998269875717663972857421792468944562280015051617570991377439915163924990900461080279619179947359372500685185771560270708689234232042440388667823314237747184822409920175649001485177509629080325149145110224831116075526759821489676067267555 | BB50: =IF($AP50="","",IF(BB$45="","",[1]!xsqr([1]!xsub(1,[1]!xdiv(AI50,$D$14,250),250),250))) -> 0.9999999999999998136046733752719283601926902725904873988131283059638863048634663749964661086695362814105340885038604443059251614377478726360286746406543800428009283726534937278589743818033034492608142756887156650106796482532032775021362457254751687935
D51: 1.037329242 | E51: 0.014625 | F51: =IF($E51="","",IF(F$45="","",VALUE([1]!xmult([1]!xdiv([1]!xsub(AQ21,AQ51,250),$U$51,250),$D$14,250)))) -> 0.004103271822 | G51: =IF($E51="","",IF(G$45="","",VALUE([1]!xmult([1]!xdiv([1]!xsub(AR21,AR51,250),$U$51,250),$D$14,250)))) -> 0.004354291174 | H51: =IF($E51="","",IF(H$45="","",VALUE([1]!xmult([1]!xdiv([1]!xsub(AS21,AS51,250),$U$51,250),$D$14,250)))) -> 0.004605310526 | I51: =IF($E51="","",IF(I$45="","",VALUE([1]!xmult([1]!xdiv([1]!xsub(AT21,AT51,250),$U$51,250),$D$14,250)))) -> 0.004856329877 | J51: =IF($E51="","",IF(J$45="","",VALUE([1]!xmult([1]!xdiv([1]!xsub(AU21,AU51,250),$U$51,250),$D$14,250)))) -> 0.005107349229 | K51: =IF($E51="","",IF(K$45="","",VALUE([1]!xmult([1]!xdiv([1]!xsub(AV21,AV51,250),$U$51,250),$D$14,250)))) -> 0.005358368581 | L51: =IF($E51="","",IF(L$45="","",VALUE([1]!xmult([1]!xdiv([1]!xsub(AW21,AW51,250),$U$51,250),$D$14,250)))) -> 0.005609387933 | M51: =IF($E51="","",IF(M$45="","",VALUE([1]!xmult([1]!xdiv([1]!xsub(AX21,AX51,250),$U$51,250),$D$14,250)))) -> 0.005860407285 | N51: =IF($E51="","",IF(N$45="","",VALUE([1]!xmult([1]!xdiv([1]!xsub(AY21,AY51,250),$U$51,250),$D$14,250)))) -> 0.006111426637 | O51: =IF($E51="","",IF(O$45="","",VALUE([1]!xmult([1]!xdiv([1]!xsub(AZ21,AZ51,250),$U$51,250),$D$14,250)))) -> 0.006362445988 | P51: =IF($E51="","",IF(P$45="","",VALUE([1]!xmult([1]!xdiv([1]!xsub(BA21,BA51,250),$U$51,250),$D$14,250)))) -> 0.00661346534 | Q51: =IF($E51="","",IF(Q$45="","",VALUE([1]!xmult([1]!xdiv([1]!xsub(BB21,BB51,250),$U$51,250),$D$14,250)))) -> 0.006864484692 | R51: =IF($E51="","",IF(R$45="","",VALUE([1]!xmult([1]!xdiv([1]!xsub(BC21,BC51,250),$U$51,250),$D$14,250)))) ->  | U51: =U49/100 -> 1.25e-06 | W51: 0.01462 | X51: =IF($W51="","",IF(X$45="","",[1]!xpow([1]!xadd([1]!xmult([1]!xmult($D$10,$V21,250),$W51,250),$D$11*X$45,250),2,250))) -> 11.971570005064186022431281606770456692321248282860239039895907107194484547179398434816 | Y51: =IF($W51="","",IF(Y$45="","",[1]!xpow([1]!xadd([1]!xmult([1]!xmult($D$10,$V21,250),$W51,250),$D$11*Y$45,250),2,250))) -> 13.481104281223786486639996895491216198876718346270957665175907107194484547179398434816 | Z51: =IF($W51="","",IF(Z$45="","",[1]!xpow([1]!xadd([1]!xmult([1]!xmult($D$10,$V21,250),$W51,250),$D$11*Z$45,250),2,250))) -> 15.080244112939014528539799341674586510124454354565598352535907107194484547179398434816 | AA51: =IF($W51="","",IF(AA$45="","",[1]!xpow([1]!xadd([1]!xmult([1]!xmult($D$10,$V21,250),$W51,250),$D$11*AA$45,250),2,250))) -> 16.768989500209800948217379565657956821372190362860239039895907107194484547179398434816 | AB51: =IF($W51="","",IF(AB$45="","",[1]!xpow([1]!xadd([1]!xmult([1]!xmult($D$10,$V21,250),$W51,250),$D$11*AB$45,250),2,250))) -> 18.547340443036145745672737567441327132619926371154879727255907107194484547179398434816 | AC51: =IF($W51="","",IF(AC$45="","",[1]!xpow([1]!xadd([1]!xmult([1]!xmult($D$10,$V21,250),$W51,250),$D$11*AC$45,250),2,250))) -> 20.415296941417958554325897300562086639175396434565598352535907107194484547179398434816 | AD51: =IF($W51="","",IF(AD$45="","",[1]!xpow([1]!xadd([1]!xmult([1]!xmult($D$10,$V21,250),$W51,250),$D$11*AD$45,250),2,250))) -> 22.372858995355415874003477524545456950423132442860239039895907107194484547179398434816 | AE51: =IF($W51="","",IF(AE$45="","",[1]!xpow([1]!xadd([1]!xmult([1]!xmult($D$10,$V21,250),$W51,250),$D$11*AE$45,250),2,250))) -> 24.420026604848431571458835526328827261670868451154879727255907107194484547179398434816 | AF51: =IF($W51="","",IF(AF$45="","",[1]!xpow([1]!xadd([1]!xmult([1]!xmult($D$10,$V21,250),$W51,250),$D$11*AF$45,250),2,250))) -> 26.556799769897108713271947352574808377610870404333442476695907107194484547179398434816 | AG51: =IF($W51="","",IF(AG$45="","",[1]!xpow([1]!xadd([1]!xmult([1]!xmult($D$10,$V21,250),$W51,250),$D$11*AG$45,250),2,250))) -> 28.783178490501030799789575483432957079474074522860239039895907107194484547179398434816 | AH51: =IF($W51="","",IF(AH$45="","",[1]!xpow([1]!xadd([1]!xmult([1]!xmult($D$10,$V21,250),$W51,250),$D$11*AH$45,250),2,250))) -> 31.099162766660494330751648059291105781337278641387035603095907107194484547179398434816 | AI51: =IF($W51="","",IF(AI$45="","",[1]!xpow([1]!xadd([1]!xmult([1]!xmult($D$10,$V21,250),$W51,250),$D$11*AI$45,250),2,250))) -> 33.504752598376078139058045311462308506661812484333442476695907107194484547179398434816 | AN51: =AN49/100 -> 0 | AP51: 0.01462 | AQ51: =IF($AP51="","",IF(AQ$45="","",[1]!xsqr([1]!xsub(1,[1]!xdiv(X51,$D$14,250),250),250))) -> 0.9999999999999999333991598140775794032316100088050176022501180377710886288414462993250183033953990703321263218447331832175013278286760109823793591302851421278111178297613695558601608100343140528661337520084517749462309889327996862274972937234333585575 | AR51: =IF($AP51="","",IF(AR$45="","",[1]!xsqr([1]!xsub(1,[1]!xdiv(Y51,$D$14,250),250),250))) -> 0.9999999999999999250012428291583898954598752117912865524572578094460708968543490735486149023127126705558576138229653827127438142233422323654764655517931856011012460500127085368615887760404254416559584737651644571307945577597142613944879155050028273295 | AS51: =IF($AP51="","",IF(AS$45="","",[1]!xsqr([1]!xsub(1,[1]!xdiv(Z51,$D$14,250),250),250))) -> 0.999999999999999916104827712180777051285226529017355582854516111064096656390841668730281197558408918727684766551307203634156397461343152677874941142387986052061116325819232342259219986324993970808914381279797916352792015056712547680774366983491335457 | AT51: =IF($AP51="","",IF(AT$45="","",[1]!xsqr([1]!xsub(1,[1]!xdiv(AA51,$D$14,250),250),250))) -> 0.9999999999999999067099144631451258338402379411190957357396530412009483873476056650876578964634076234541373334481710817096585296444211194549726770689208413273606787168324341953450928799887038458370646939092652150561877251308073645443757925541059436165 | AU51: =IF($AP51="","",IF(AU$45="","",[1]!xsqr([1]!xsub(1,[1]!xdiv(AB51,$D$14,250),250),250))) -> 0.9999999999999998968165030820514362290748693316217403155108607568883318955820121091935770684765564926945372326227176836273795985138734268614108706968412180262722801349241423836495904332111992629587408932997701667488479053508841000302535399859810536635 | AV51: =IF($AP51="","",IF(AV$45="","",[1]!xsqr([1]!xsub(1,[1]!xdiv(AC51,$D$14,250),250),250))) -> 0.99999999999999988642459356890021095409495803055966836127945536912992534882217856591960681543176770802250286700206314920807696457525456729482776727439808790097160732398731078331763097268614960959844016370276291434659624608996411200414610298872987435 | AW51: =IF($AP51="","",IF(AW$45="","",[1]!xsqr([1]!xsub(1,[1]!xdiv(AD51,$D$14,250),250),250))) -> 0.999999999999999875534185923690468080649557511758347970265477878134025764043409634523896406402088415073012062778972732851570373725955664849074613215063494461538386428896658763824350369487396616518643478626026158728598118345575336991971862160860593812 | AX51: =IF($AP51="","",IF(AX$45="","",[1]!xsqr([1]!xsub(1,[1]!xdiv(AE51,$D$14,250),250),250))) -> 0.9999999999999998641452801464226867732606496439580521365022724446207514316646804893848823423208650197046401949915577371783650969448643658418584292835460824361314574901722203029255095923133636690144779200350505675254801786555598640302469989168193475955 | AY51: =IF($AP51="","",IF(AY$45="","",[1]!xsqr([1]!xsub(1,[1]!xdiv(AF51,$D$14,250),250),250))) -> 0.999999999999999852257876237096293629716251643283889365819395756661412100872912626686000302738656828668938135126487546449063418798761973802313313074437380042323074737115718631489560889399424183453066266583735505423642557411069722461137365950167467619 | AZ51: =IF($AP51="","",IF(AZ$45="","",[1]!xsqr([1]!xsub(1,[1]!xdiv(AG51,$D$14,250),250),250))) -> 0.9999999999999998398719741957136057240514227741370693919678774497799153686463155797458671932947485372475527622867414277308956274052087141322507145620779846152004766395725750003950993235289761475391802710340365068691302022616121149755177337048767025045 | BA51: =IF($AP51="","",IF(BA$45="","",[1]!xsqr([1]!xsub(1,[1]!xdiv(AH51,$D$14,250),250),250))) -> 0.999999999999999826987574022272973535481861298399187693062785047467698375161493861632009962371879873059694362803168361350441448708494829522900893500480855935091046941736208000658732495196910083779422344976283515916847838762726693108086744406890213277 | BB51: =IF($AP51="","",IF(BB$45="","",[1]!xsqr([1]!xsub(1,[1]!xdiv(AI51,$D$14,250),250),250))) -> 0.999999999999999813604675716771176852446531868646662064472103083380079170491082478341896298522817808359351469134165572083270902940880479010389376770192636537322234973227606431473885468495834049467926692547239606405660906995648669866452719022042003714
D52: 1.05529132 | E52: 0.0145 | F52: =IF($E52="","",IF(F$45="","",VALUE([1]!xmult([1]!xdiv([1]!xsub(AQ22,AQ52,250),$U$51,250),$D$14,250)))) -> 0.005217903479 | G52: =IF($E52="","",IF(G$45="","",VALUE([1]!xmult([1]!xdiv([1]!xsub(AR22,AR52,250),$U$51,250),$D$14,250)))) -> 0.005537110887 | H52: =IF($E52="","",IF(H$45="","",VALUE([1]!xmult([1]!xdiv([1]!xsub(AS22,AS52,250),$U$51,250),$D$14,250)))) -> 0.005856318295 | I52: =IF($E52="","",IF(I$45="","",VALUE([1]!xmult([1]!xdiv([1]!xsub(AT22,AT52,250),$U$51,250),$D$14,250)))) -> 0.006175525703 | J52: =IF($E52="","",IF(J$45="","",VALUE([1]!xmult([1]!xdiv([1]!xsub(AU22,AU52,250),$U$51,250),$D$14,250)))) -> 0.006494733111 | K52: =IF($E52="","",IF(K$45="","",VALUE([1]!xmult([1]!xdiv([1]!xsub(AV22,AV52,250),$U$51,250),$D$14,250)))) -> 0.006813940519 | L52: =IF($E52="","",IF(L$45="","",VALUE([1]!xmult([1]!xdiv([1]!xsub(AW22,AW52,250),$U$51,250),$D$14,250)))) -> 0.007133147928 | M52: =IF($E52="","",IF(M$45="","",VALUE([1]!xmult([1]!xdiv([1]!xsub(AX22,AX52,250),$U$51,250),$D$14,250)))) -> 0.007452355336 | N52: =IF($E52="","",IF(N$45="","",VALUE([1]!xmult([1]!xdiv([1]!xsub(AY22,AY52,250),$U$51,250),$D$14,250)))) -> 0.007771562744 | O52: =IF($E52="","",IF(O$45="","",VALUE([1]!xmult([1]!xdiv([1]!xsub(AZ22,AZ52,250),$U$51,250),$D$14,250)))) -> 0.008090770152 | P52: =IF($E52="","",IF(P$45="","",VALUE([1]!xmult([1]!xdiv([1]!xsub(BA22,BA52,250),$U$51,250),$D$14,250)))) -> 0.00840997756 | Q52: =IF($E52="","",IF(Q$45="","",VALUE([1]!xmult([1]!xdiv([1]!xsub(BB22,BB52,250),$U$51,250),$D$14,250)))) -> 0.008729184968 | R52: =IF($E52="","",IF(R$45="","",VALUE([1]!xmult([1]!xdiv([1]!xsub(BC22,BC52,250),$U$51,250),$D$14,250)))) ->  | W52: 0.01449375 | X52: =IF($W52="","",IF(X$45="","",[1]!xpow([1]!xadd([1]!xmult([1]!xmult($D$10,$V22,250),$W52,250),$D$11*X$45,250),2,250))) -> 11.971569749185463177876448689616483413554624648111124790576025511348912000372991857296 | Y52: =IF($W52="","",IF(Y$45="","",[1]!xpow([1]!xadd([1]!xmult([1]!xmult($D$10,$V22,250),$W52,250),$D$11*Y$45,250),2,250))) -> 13.481104009691576799495368826209334243887843808613136431056025511348912000372991857296 | Z52: =IF($W52="","",IF(Z$45="","",[1]!xpow([1]!xadd([1]!xmult([1]!xmult($D$10,$V22,250),$W52,250),$D$11*Z$45,250),2,250))) -> 15.080243825753317998804636585453334920416856368362130610816025511348912000372991857296 | AA52: =IF($W52="","",IF(AA$45="","",[1]!xpow([1]!xadd([1]!xmult([1]!xmult($D$10,$V22,250),$W52,250),$D$11*AA$45,250),2,250))) -> 16.768989197370617575891682122497335596945868928111124790576025511348912000372991857296 | AB52: =IF($W52="","",IF(AB$45="","",[1]!xpow([1]!xadd([1]!xmult([1]!xmult($D$10,$V22,250),$W52,250),$D$11*AB$45,250),2,250))) -> 18.547340124543475530756505437341336273474881487860118970336025511348912000372991857296 | AC52: =IF($W52="","",IF(AC$45="","",[1]!xpow([1]!xadd([1]!xmult([1]!xmult($D$10,$V22,250),$W52,250),$D$11*AC$45,250),2,250))) -> 20.415296607271801496819870018334187103808100648362130610816025511348912000372991857296 | AD52: =IF($W52="","",IF(AD$45="","",[1]!xpow([1]!xadd([1]!xmult([1]!xmult($D$10,$V22,250),$W52,250),$D$11*AD$45,250),2,250))) -> 22.372858645555771973906915555378187780337113208111124790576025511348912000372991857296 | AE52: =IF($W52="","",IF(AE$45="","",[1]!xpow([1]!xadd([1]!xmult([1]!xmult($D$10,$V22,250),$W52,250),$D$11*AE$45,250),2,250))) -> 24.420026239395300828771738870222188456866125767860118970336025511348912000372991857296 | AF52: =IF($W52="","",IF(AF$45="","",[1]!xpow([1]!xadd([1]!xmult([1]!xmult($D$10,$V22,250),$W52,250),$D$11*AF$45,250),2,250))) -> 26.556799388790491127993576474717338979590931726856095689376025511348912000372991857296 | AG52: =IF($W52="","",IF(AG$45="","",[1]!xpow([1]!xadd([1]!xmult([1]!xmult($D$10,$V22,250),$W52,250),$D$11*AG$45,250),2,250))) -> 28.783178093740926371922148988259039963728357488111124790576025511348912000372991857296 | AH52: =IF($W52="","",IF(AH$45="","",[1]!xpow([1]!xadd([1]!xmult([1]!xmult($D$10,$V22,250),$W52,250),$D$11*AH$45,250),2,250))) -> 31.099162354246903060295165946800740947865783249366153891776025511348912000372991857296 | AI52: =IF($W52="","",IF(AI$45="","",[1]!xpow([1]!xadd([1]!xmult([1]!xmult($D$10,$V22,250),$W52,250),$D$11*AI$45,250),2,250))) -> 33.504752170309000026008809907598191162982176006856095689376025511348912000372991857296 | AP52: 0.01449375 | AQ52: =IF($AP52="","",IF(AQ$45="","",[1]!xsqr([1]!xsub(1,[1]!xdiv(X52,$D$14,250),250),250))) -> 0.9999999999999999333991612375949559828428552461350012318426845756101000790699114487364450862235140537489009684211993894960172901771615349925866871013005823660209429097507549269542072433956846217373138599139433642431272630822147556490338150844039567965 | AR52: =IF($AP52="","",IF(AR$45="","",[1]!xsqr([1]!xsub(1,[1]!xdiv(Y52,$D$14,250),250),250))) -> 0.9999999999999999250012443397600315392817098529188300676850469982575538175285191333130804099859249422424234746183281908177241681123524155716823600412195727624031479344605673301792110846580738467282856423618859578071391801825474294125414011428034951045 | AS52: =IF($AP52="","",IF(AS$45="","",[1]!xsqr([1]!xsub(1,[1]!xdiv(Z52,$D$14,250),250),250))) -> 0.999999999999999916104829309866683759321767050285877102344249487523567824564477072341365046776410883181603194304930524077717801815626058849276330154958374764098769072048838194475059324279241323251999384880325402982972678298947340346160006495014072921 | AT52: =IF($AP52="","",IF(AT$45="","",[1]!xsqr([1]!xsub(1,[1]!xdiv(AA52,$D$14,250),250),250))) -> 0.999999999999999906709916147915297606091486731858915587720259829287793571172713904422611563772792069627800878831213753436292053343334655565904495211598631889704860098907254460526629765583921916655485160632336810092731960462566491286774413314577971197 | AU52: =IF($AP52="","",IF(AU$45="","",[1]!xsqr([1]!xsub(1,[1]!xdiv(AB52,$D$14,250),250),250))) -> 0.9999999999999998968165048539058730655408289113972092266857394589424495270457442869226953902270993006859423269819826054702494218855803442933109099708230581344369073069029060096313492666879068654585808667178923201990125357522660277416923074232161144585 | AV52: =IF($AP52="","",IF(AV$45="","",[1]!xsqr([1]!xsub(1,[1]!xdiv(AC52,$D$14,250),250),250))) -> 0.999999999999999886424595427838912854771516831922039267374458171737740897786286480018860998844820336788661322576596188007665603634875274764623909521682199451136483556012881521290535651194656804445189727244712157907414497234558867043513744896960132352 | AW52: =IF($AP52="","",IF(AW$45="","",[1]!xsqr([1]!xsub(1,[1]!xdiv(AD52,$D$14,250),250),250))) -> 0.999999999999999875534187869713435045540832531987160584250617259829997478782500635099519000079403539485123269793614543430335071977247003358595019449429556717504566485158696607960386527672913346303026607205024448516971361635148348485785839086893015657 | AX52: =IF($AP52="","",IF(AX$45="","",[1]!xsqr([1]!xsub(1,[1]!xdiv(AE52,$D$14,250),250),250))) -> 0.9999999999999998641452821795299188023666437933197483804983188891048650235175593830444803885129448293378019544976993716378382553331193269914399618083076028438665889281046307274146467020048130034400892068716313288732269418159738764752145427402931825045 | AY52: =IF($AP52="","",IF(AY$45="","",[1]!xsqr([1]!xsub(1,[1]!xdiv(AF52,$D$14,250),250),250))) -> 0.9999999999999998522578783572877907230410821795260697502954125544557151640831905394427114067906618380722056089991535642574098552691202915754095163604435804479816680881323663046625384714879384979555496157075090299266110141339159602084021329788635378665 | AZ52: =IF($AP52="","",IF(AZ$45="","",[1]!xsqr([1]!xsub(1,[1]!xdiv(AG52,$D$14,250),250),250))) -> 0.999999999999999839871976402989367881582750216252852066219656930391717280468219724451949708110095066259600732241845360164412177952514848364850418931060055787634737070840600261783902096840787429298861703804680906053304042207465062488668557895988843923 | BA52: =IF($AP52="","",IF(BA$45="","",[1]!xsqr([1]!xsub(1,[1]!xdiv(AH52,$D$14,250),250),250))) -> 0.9999999999999998269875763166330007572196889473571057740048604517545243055429723185996428269909926657452772808568025050783230511049199272918806025369221908791577149824566982321578284802213329178066003128589087797575631119444763560644629153446614483565 | BB52: =IF($AP52="","",IF(BB$45="","",[1]!xsqr([1]!xsub(1,[1]!xdiv(AI52,$D$14,250),250),250))) -> 0.9999999999999998136046780982154691384114342418849200192108391113156102144367578263842391139479003299607816651642628222606091253014531110538580320897460162812878916509820809384481775242451916978014526562313134477788070675809317118438735625582531363215
D53: 1.073724008 | E53: 0.014375 | F53: =IF($E53="","",IF(F$45="","",VALUE([1]!xmult([1]!xdiv([1]!xsub(AQ23,AQ53,250),$U$51,250),$D$14,250)))) -> 0.00637085294 | G53: =IF($E53="","",IF(G$45="","",VALUE([1]!xmult([1]!xdiv([1]!xsub(AR23,AR53,250),$U$51,250),$D$14,250)))) -> 0.006760592514 | H53: =IF($E53="","",IF(H$45="","",VALUE([1]!xmult([1]!xdiv([1]!xsub(AS23,AS53,250),$U$51,250),$D$14,250)))) -> 0.007150332087 | I53: =IF($E53="","",IF(I$45="","",VALUE([1]!xmult([1]!xdiv([1]!xsub(AT23,AT53,250),$U$51,250),$D$14,250)))) -> 0.007540071661 | J53: =IF($E53="","",IF(J$45="","",VALUE([1]!xmult([1]!xdiv([1]!xsub(AU23,AU53,250),$U$51,250),$D$14,250)))) -> 0.007929811234 | K53: =IF($E53="","",IF(K$45="","",VALUE([1]!xmult([1]!xdiv([1]!xsub(AV23,AV53,250),$U$51,250),$D$14,250)))) -> 0.008319550808 | L53: =IF($E53="","",IF(L$45="","",VALUE([1]!xmult([1]!xdiv([1]!xsub(AW23,AW53,250),$U$51,250),$D$14,250)))) -> 0.008709290381 | M53: =IF($E53="","",IF(M$45="","",VALUE([1]!xmult([1]!xdiv([1]!xsub(AX23,AX53,250),$U$51,250),$D$14,250)))) -> 0.009099029955 | N53: =IF($E53="","",IF(N$45="","",VALUE([1]!xmult([1]!xdiv([1]!xsub(AY23,AY53,250),$U$51,250),$D$14,250)))) -> 0.009488769529 | O53: =IF($E53="","",IF(O$45="","",VALUE([1]!xmult([1]!xdiv([1]!xsub(AZ23,AZ53,250),$U$51,250),$D$14,250)))) -> 0.009878509102 | P53: =IF($E53="","",IF(P$45="","",VALUE([1]!xmult([1]!xdiv([1]!xsub(BA23,BA53,250),$U$51,250),$D$14,250)))) -> 0.01026824868 | Q53: =IF($E53="","",IF(Q$45="","",VALUE([1]!xmult([1]!xdiv([1]!xsub(BB23,BB53,250),$U$51,250),$D$14,250)))) -> 0.01065798825 | R53: =IF($E53="","",IF(R$45="","",VALUE([1]!xmult([1]!xdiv([1]!xsub(BC23,BC53,250),$U$51,250),$D$14,250)))) ->  | W53: 0.0143675 | X53: =IF($W53="","",IF(X$45="","",[1]!xpow([1]!xadd([1]!xmult([1]!xmult($D$10,$V23,250),$W53,250),$D$11*X$45,250),2,250))) -> 11.97156948890401072091122533880215993529233772340694792420204829293019355645951499894784 | Y53: =IF($W53="","",IF(Y$45="","",[1]!xpow([1]!xadd([1]!xmult([1]!xmult($D$10,$V23,250),$W53,250),$D$11*Y$45,250),2,250))) -> 13.48110373348729852087363957332032983672739930805031977290604829293019355645951499894784 | Z53: =IF($W53="","",IF(Z$45="","",[1]!xpow([1]!xadd([1]!xmult([1]!xmult($D$10,$V23,250),$W53,250),$D$11*Z$45,250),2,250))) -> 15.08024353362621389852564917100201224542557398772863384855404829293019355645951499894784 | AA53: =IF($W53="","",IF(AA$45="","",[1]!xpow([1]!xadd([1]!xmult([1]!xmult($D$10,$V23,250),$W53,250),$D$11*AA$45,250),2,250))) -> 16.76898888932068765395543654648369465412374866740694792420204829293019355645951499894784 | AB53: =IF($W53="","",IF(AB$45="","",[1]!xpow([1]!xadd([1]!xmult([1]!xmult($D$10,$V23,250),$W53,250),$D$11*AB$45,250),2,250))) -> 18.54733980057071978716300169976537706282192334708526199985004829293019355645951499894784 | AC53: =IF($W53="","",IF(AC$45="","",[1]!xpow([1]!xadd([1]!xmult([1]!xmult($D$10,$V23,250),$W53,250),$D$11*AC$45,250),2,250))) -> 20.41529626737621993156986037868354696425698493172863384855404829293019355645951499894784 | AD53: =IF($W53="","",IF(AD$45="","",[1]!xpow([1]!xadd([1]!xmult([1]!xmult($D$10,$V23,250),$W53,250),$D$11*AD$45,250),2,250))) -> 22.37285828973736458699964775416522937295515961140694792420204829293019355645951499894784 | AE53: =IF($W53="","",IF(AE$45="","",[1]!xpow([1]!xadd([1]!xmult([1]!xmult($D$10,$V23,250),$W53,250),$D$11*AE$45,250),2,250))) -> 24.42002586765406762020721290744691178165333429108526199985004829293019355645951499894784 | AF53: =IF($W53="","",IF(AF$45="","",[1]!xpow([1]!xadd([1]!xmult([1]!xmult($D$10,$V23,250),$W53,250),$D$11*AF$45,250),2,250))) -> 26.55679900112643209777104009089210669761462206579851830244204829293019355645951499894784 | AG53: =IF($W53="","",IF(AG$45="","",[1]!xpow([1]!xadd([1]!xmult([1]!xmult($D$10,$V23,250),$W53,250),$D$11*AG$45,250),2,250))) -> 28.78317769015404152004385896184676409178657055540694792420204829293019355645951499894784 | AH53: =IF($W53="","",IF(AH$45="","",[1]!xpow([1]!xadd([1]!xmult([1]!xmult($D$10,$V23,250),$W53,250),$D$11*AH$45,250),2,250))) -> 31.09916193473719238676112227780142148595851904501537754596204829293019355645951499894784 | AI53: =IF($W53="","",IF(AI$45="","",[1]!xpow([1]!xadd([1]!xmult([1]!xmult($D$10,$V23,250),$W53,250),$D$11*AI$45,250),2,250))) -> 33.50475173487646353081525129857364141644603300979851830244204829293019355645951499894784 | AP53: 0.0143675 | AQ53: =IF($AP53="","",IF(AQ$45="","",[1]!xsqr([1]!xsub(1,[1]!xdiv(X53,$D$14,250),250),250))) -> 0.9999999999999999333991626856058193126408354652393693384801609659299078585316685918375222627040092789994890683688192122451668516808313278267693145941032319528331320873299897480114914528692775230751427418618800067563916018547854740410915692192178385365 | AR53: =IF($AP53="","",IF(AR$45="","",[1]!xsqr([1]!xsub(1,[1]!xdiv(Y53,$D$14,250),250),250))) -> 0.9999999999999999250012458763535600840702801811179372217913092419884117730335237120536756530277816752340401435302247016658505433198997026486338331787181618378528170746189765724185164650724019389998148091431583316536683025032589589987077281711117413995 | AS53: =IF($AP53="","",IF(AS$45="","",[1]!xsqr([1]!xsub(1,[1]!xdiv(Z53,$D$14,250),250),250))) -> 0.999999999999999916104830935042877519105114793352167198124357674233550983438011253493983700414224334699390526902174309866498673630885957991583757720320667961376389222188324772309567268740610091091654322286853279758889019510803844868589219887426442823 | AT53: =IF($AP53="","",IF(AT$45="","",[1]!xsqr([1]!xsub(1,[1]!xdiv(AA53,$D$14,250),250),250))) -> 0.9999999999999999067099178616741565808696143202342791885083334872419104704743731844445082333769504999557262512611745247196384775307057231602216477260541660051812270212815434037421571000981038600291966442046606393951101894549288643043799813331049967555 | AU53: =IF($AP53="","",IF(AU$45="","",[1]!xsqr([1]!xsub(1,[1]!xdiv(AB53,$D$14,250),250),250))) -> 0.9999999999999998968165066562473972553137389079984163230084154049690031334794583868921290172120294979316818176697930008764244580127597469574122213986561515191266902519546344208467801596896073277717870917052171496851516349421393954635553917084354524695 | AV53: =IF($AP53="","",IF(AV$45="","",[1]!xsqr([1]!xsub(1,[1]!xdiv(AC53,$D$14,250),250),250))) -> 0.99999999999999988642459731876310225953502692433530651829770322812989891626584951803797641559152939473121156710888041093546672366061775187165167098112864837680524220023792101200698489311178449405537434718944714141084065597062896728930320171303546066 | AW53: =IF($AP53="","",IF(AW$45="","",[1]!xsqr([1]!xsub(1,[1]!xdiv(AD53,$D$14,250),250),250))) -> 0.999999999999999875534189849220289665299130555884449593202638429422409592678278597994028699235012534979950029981208578387719234485919499530887459479390604390225386146794191965583682005050433789954111025770830879975164685104497908500395295846463603552 | AX53: =IF($AP53="","",IF(AX$45="","",[1]!xsqr([1]!xsub(1,[1]!xdiv(AE53,$D$14,250),250),250))) -> 0.9999999999999998641452842476194386371197327090424674195771651458335656475237812812957572419356732369786491604916100015633829963931588494841978145053602445037812656166790430904429711779535922383652173661856140217602949494906310383016336344333641202925 | AY53: =IF($AP53="","",IF(AY$45="","",[1]!xsqr([1]!xsub(1,[1]!xdiv(AF53,$D$14,250),250),250))) -> 0.999999999999999852257880513959975772793150087695939277873903139283906427920666477861554733924128158482169584289014946094841015150245112680643964721160918080949777183087193167524505301340941005243572514663517752469705947935947135608682901275419728117 | AZ53: =IF($AP53="","",IF(AZ$45="","",[1]!xsqr([1]!xsub(1,[1]!xdiv(AG53,$D$14,250),250),250))) -> 0.9999999999999998398719786482442181463212453187447409313790472970081266303869845567230549457613971307084293652817687351901399230244285686660382675142777845019018549539854352710391486287769104038721626856935045385946107579025372014632975096240655108145 | BA53: =IF($AP53="","",IF(BA$45="","",[1]!xsqr([1]!xsub(1,[1]!xdiv(AH53,$D$14,250),250),250))) -> 0.999999999999999826987578650470516236944614601937060529780272488541907799942096493912393039372681370151749939908145672031056592411744404622926952743010882785389726981638409261031489563485197177220279330490126561286646546005344953736812466686933325454 | BB53: =IF($AP53="","",IF(BB$45="","",[1]!xsqr([1]!xsub(1,[1]!xdiv(AI53,$D$14,250),250),250))) -> 0.999999999999999813604680520635649833143718977821030443629826067716733811796218208099454948852398260889081680131968987912496837169941575871066465549266443641326565126851545444520577548420420369067490483983732399208269027919123594312627730448948281283
D54: 1.09264389 | E54: 0.01425 | F54: =IF($E54="","",IF(F$45="","",VALUE([1]!xmult([1]!xdiv([1]!xsub(AQ24,AQ54,250),$U$51,250),$D$14,250)))) -> 0.007563631173 | G54: =IF($E54="","",IF(G$45="","",VALUE([1]!xmult([1]!xdiv([1]!xsub(AR24,AR54,250),$U$51,250),$D$14,250)))) -> 0.008026339456 | H54: =IF($E54="","",IF(H$45="","",VALUE([1]!xmult([1]!xdiv([1]!xsub(AS24,AS54,250),$U$51,250),$D$14,250)))) -> 0.008489047738 | I54: =IF($E54="","",IF(I$45="","",VALUE([1]!xmult([1]!xdiv([1]!xsub(AT24,AT54,250),$U$51,250),$D$14,250)))) -> 0.00895175602 | J54: =IF($E54="","",IF(J$45="","",VALUE([1]!xmult([1]!xdiv([1]!xsub(AU24,AU54,250),$U$51,250),$D$14,250)))) -> 0.009414464303 | K54: =IF($E54="","",IF(K$45="","",VALUE([1]!xmult([1]!xdiv([1]!xsub(AV24,AV54,250),$U$51,250),$D$14,250)))) -> 0.009877172585 | L54: =IF($E54="","",IF(L$45="","",VALUE([1]!xmult([1]!xdiv([1]!xsub(AW24,AW54,250),$U$51,250),$D$14,250)))) -> 0.01033988087 | M54: =IF($E54="","",IF(M$45="","",VALUE([1]!xmult([1]!xdiv([1]!xsub(AX24,AX54,250),$U$51,250),$D$14,250)))) -> 0.01080258915 | N54: =IF($E54="","",IF(N$45="","",VALUE([1]!xmult([1]!xdiv([1]!xsub(AY24,AY54,250),$U$51,250),$D$14,250)))) -> 0.01126529743 | O54: =IF($E54="","",IF(O$45="","",VALUE([1]!xmult([1]!xdiv([1]!xsub(AZ24,AZ54,250),$U$51,250),$D$14,250)))) -> 0.01172800571 | P54: =IF($E54="","",IF(P$45="","",VALUE([1]!xmult([1]!xdiv([1]!xsub(BA24,BA54,250),$U$51,250),$D$14,250)))) -> 0.012190714 | Q54: =IF($E54="","",IF(Q$45="","",VALUE([1]!xmult([1]!xdiv([1]!xsub(BB24,BB54,250),$U$51,250),$D$14,250)))) -> 0.01265342228 | R54: =IF($E54="","",IF(R$45="","",VALUE([1]!xmult([1]!xdiv([1]!xsub(BC24,BC54,250),$U$51,250),$D$14,250)))) ->  | W54: 0.01424125 | X54: =IF($W54="","",IF(X$45="","",[1]!xpow([1]!xadd([1]!xmult([1]!xmult($D$10,$V24,250),$W54,250),$D$11*X$45,250),2,250))) -> 11.97156922410522393330467668107416473893068071908089578591121447864062967242574160027904 | Y54: =IF($W54="","",IF(Y$45="","",[1]!xpow([1]!xadd([1]!xmult([1]!xmult($D$10,$V24,250),$W54,250),$D$11*Y$45,250),2,250))) -> 13.48110345248933593246737046188167464100403392249150055077521447864062967242574160027904 | Z54: =IF($W54="","",IF(Z$45="","",[1]!xpow([1]!xadd([1]!xmult([1]!xmult($D$10,$V24,250),$W54,250),$D$11*Z$45,250),2,250))) -> 15.08024323642907550931889429046053325991543067278619816834321447864062967242574160027904 | AA54: =IF($W54="","",IF(AA$45="","",[1]!xpow([1]!xadd([1]!xmult([1]!xmult($D$10,$V24,250),$W54,250),$D$11*AA$45,250),2,250))) -> 16.76898857592437346394819589683939187882682742308089578591121447864062967242574160027904 | AB54: =IF($W54="","",IF(AB$45="","",[1]!xpow([1]!xadd([1]!xmult([1]!xmult($D$10,$V24,250),$W54,250),$D$11*AB$45,250),2,250))) -> 18.54733947097522979635527528101825049773822417337559340347921447864062967242574160027904 | AC54: =IF($W54="","",IF(AC$45="","",[1]!xpow([1]!xadd([1]!xmult([1]!xmult($D$10,$V24,250),$W54,250),$D$11*AC$45,250),2,250))) -> 20.41529592158155413996241350622576039981157737678619816834321447864062967242574160027904 | AD54: =IF($W54="","",IF(AD$45="","",[1]!xpow([1]!xadd([1]!xmult([1]!xmult($D$10,$V24,250),$W54,250),$D$11*AD$45,250),2,250))) -> 22.37285792774352299459171511260461901872297412708089578591121447864062967242574160027904 | AE54: =IF($W54="","",IF(AE$45="","",[1]!xpow([1]!xadd([1]!xmult([1]!xmult($D$10,$V24,250),$W54,250),$D$11*AE$45,250),2,250))) -> 24.42002548946105022699879449678347763763437087737559340347921447864062967242574160027904 | AF54: =IF($W54="","",IF(AF$45="","",[1]!xpow([1]!xadd([1]!xmult([1]!xmult($D$10,$V24,250),$W54,250),$D$11*AF$45,250),2,250))) -> 26.55679860673423890376137059573368497338381117455438387375121447864062967242574160027904 | AG54: =IF($W54="","",IF(AG$45="","",[1]!xpow([1]!xadd([1]!xmult([1]!xmult($D$10,$V24,250),$W54,250),$D$11*AG$45,250),2,250))) -> 28.78317727956267252523523432836984615861912083108089578591121447864062967242574160027904 | AH54: =IF($W54="","",IF(AH$45="","",[1]!xpow([1]!xadd([1]!xmult([1]!xmult($D$10,$V24,250),$W54,250),$D$11*AH$45,250),2,250))) -> 31.09916150794664759115354250600600734385443048760740769807121447864062967242574160027904 | AI54: =IF($W54="","",IF(AI$45="","",[1]!xpow([1]!xadd([1]!xmult([1]!xmult($D$10,$V24,250),$W54,250),$D$11*AI$45,250),2,250))) -> 33.50475129188674293440488981149891211327995787855438387375121447864062967242574160027904 | AP54: 0.01424125 | AQ54: =IF($AP54="","",IF(AQ$45="","",[1]!xsqr([1]!xsub(1,[1]!xdiv(X54,$D$14,250),250),250))) -> 0.9999999999999999333991641587477441234438448734258113207540246752966318391591114460888156440901151472863266107705490117674511172305208302273617237949808781415009300316390384137790545612011756067962466364295011952288250889785938676873251169998334829665 | AR54: =IF($AP54="","",IF(AR$45="","",[1]!xsqr([1]!xsub(1,[1]!xdiv(Y54,$D$14,250),250),250))) -> 0.9999999999999999250012474396155542087844498023047480393724365638939956115432189713664638815807873884348557976163673619706448830234274195335431985551314658667313210135141832985065181412019993935603017054794125249486646151070518713176943511873089221925 | AS54: =IF($AP54="","",IF(AS$45="","",[1]!xsqr([1]!xsub(1,[1]!xdiv(Z54,$D$14,250),250),250))) -> 0.999999999999999916104832588424940957734704606458847509291427348130081762304825875459854574672681042844687903660864309255507613458872727462580378471104305973544973641398800919819270014279839081654653872058681751181040231873714916343269481567029477691 | AT54: =IF($AP54="","",IF(AT$45="","",[1]!xsqr([1]!xsub(1,[1]!xdiv(AA54,$D$14,250),250),250))) -> 0.999999999999999906709919605176289333414626797884439600527411741159120579034968561753746224555965348402726436920619888950229528944234808706766393001955424235692184885525058183825174856273729018778209171165624464615383641812902020561812601767431622933 | AU54: =IF($AP54="","",IF(AU$45="","",[1]!xsqr([1]!xsub(1,[1]!xdiv(AB54,$D$14,250),250),250))) -> 0.999999999999999896816508489869599321774176657589726084929023904875206791200087094075683208311207514840674097806174234486655400535119637595736646184328104080515598521354101919423871499340871586236123006585342449307746574871143377428971830401381278602 | AV54: =IF($AP54="","",IF(AV$45="","",[1]!xsqr([1]!xsub(1,[1]!xdiv(AC54,$D$14,250),250),250))) -> 0.9999999999999998864245992425053736399066350469695448275567866009189969440046600330937324485541980842419718730520417907994741103296612938051092877464821980934855429386556504909565273041760294423325494994851703138598296336817102075111055121167491466035 | AW54: =IF($AP54="","",IF(AW$45="","",[1]!xsqr([1]!xsub(1,[1]!xdiv(AD54,$D$14,250),250),250))) -> 0.999999999999999875534191863082630359586169569577351675673638350937325212786709754323731502795957403714987072206964311474605615892208530889268047220847090074962078986164228036743709223237866034324702308861257745945194786546540255095421495673198358799 | AX54: =IF($AP54="","",IF(AX$45="","",[1]!xsqr([1]!xsub(1,[1]!xdiv(AE54,$D$14,250),250),250))) -> 0.999999999999999864145286351601848645322205625513878449653723329032407277771175545392397000153206272725407838046027524488011896714365079564462286919259608483660803059387718363179898331852329497596113268879982554112064340793156441789671575743948588222 | AY54: =IF($AP54="","",IF(AY$45="","",[1]!xsqr([1]!xsub(1,[1]!xdiv(AF54,$D$14,250),250),250))) -> 0.9999999999999998522578827080624550949153176945097117655656615907605730602764354486591402866274031872252335776193024089542314950375632424049863212876711598477121374016914334997614714068819794460983389251515683655815828855444092003550491945803404597535 | AZ54: =IF($AP54="","",IF(AZ$45="","",[1]!xsqr([1]!xsub(1,[1]!xdiv(AG54,$D$14,250),250),250))) -> 0.9999999999999998398719809324667667823503379739589912529911635614240452521682704586953252813927771438823945515129454102173368919364624810640978679468720013566269310505374952786597613156571778067266917414235745896423459605725391521634186419830701108945 | BA54: =IF($AP54="","",IF(BA$45="","",[1]!xsqr([1]!xsub(1,[1]!xdiv(AH54,$D$14,250),250),250))) -> 0.99999999999999982698758102481313418688063572159380978440515975821999015052066802792607351857044696852473110615960457362560198751658072513491884686586242846724846833027874151881299514866446454697944542106203117308954518944051108203185123536327415575 | BB54: =IF($AP54="","",IF(BB$45="","",[1]!xsqr([1]!xsub(1,[1]!xdiv(AI54,$D$14,250),250),250))) -> 0.999999999999999813604682985098337097007960318086101843736182821670392996406687280499009750598789024849261429656582807607939938304198372960138372791575172714966559506633101521518580308798111723736557619689602687916827126166043761471096886273553994594
D55: 1.11206829 | E55: 0.014125 | F55: =IF($E55="","",IF(F$45="","",VALUE([1]!xmult([1]!xdiv([1]!xsub(AQ25,AQ55,250),$U$51,250),$D$14,250)))) -> 0.00879782058 | G55: =IF($E55="","",IF(G$45="","",VALUE([1]!xmult([1]!xdiv([1]!xsub(AR25,AR55,250),$U$51,250),$D$14,250)))) -> 0.009336030919 | H55: =IF($E55="","",IF(H$45="","",VALUE([1]!xmult([1]!xdiv([1]!xsub(AS25,AS55,250),$U$51,250),$D$14,250)))) -> 0.009874241257 | I55: =IF($E55="","",IF(I$45="","",VALUE([1]!xmult([1]!xdiv([1]!xsub(AT25,AT55,250),$U$51,250),$D$14,250)))) -> 0.0104124516 | J55: =IF($E55="","",IF(J$45="","",VALUE([1]!xmult([1]!xdiv([1]!xsub(AU25,AU55,250),$U$51,250),$D$14,250)))) -> 0.01095066193 | K55: =IF($E55="","",IF(K$45="","",VALUE([1]!xmult([1]!xdiv([1]!xsub(AV25,AV55,250),$U$51,250),$D$14,250)))) -> 0.01148887227 | L55: =IF($E55="","",IF(L$45="","",VALUE([1]!xmult([1]!xdiv([1]!xsub(AW25,AW55,250),$U$51,250),$D$14,250)))) -> 0.01202708261 | M55: =IF($E55="","",IF(M$45="","",VALUE([1]!xmult([1]!xdiv([1]!xsub(AX25,AX55,250),$U$51,250),$D$14,250)))) -> 0.01256529295 | N55: =IF($E55="","",IF(N$45="","",VALUE([1]!xmult([1]!xdiv([1]!xsub(AY25,AY55,250),$U$51,250),$D$14,250)))) -> 0.01310350329 | O55: =IF($E55="","",IF(O$45="","",VALUE([1]!xmult([1]!xdiv([1]!xsub(AZ25,AZ55,250),$U$51,250),$D$14,250)))) -> 0.01364171363 | P55: =IF($E55="","",IF(P$45="","",VALUE([1]!xmult([1]!xdiv([1]!xsub(BA25,BA55,250),$U$51,250),$D$14,250)))) -> 0.01417992397 | Q55: =IF($E55="","",IF(Q$45="","",VALUE([1]!xmult([1]!xdiv([1]!xsub(BB25,BB55,250),$U$51,250),$D$14,250)))) -> 0.0147181343 | R55: =IF($E55="","",IF(R$45="","",VALUE([1]!xmult([1]!xdiv([1]!xsub(BC25,BC55,250),$U$51,250),$D$14,250)))) ->  | W55: 0.014115 | X55: =IF($W55="","",IF(X$45="","",[1]!xpow([1]!xadd([1]!xmult([1]!xmult($D$10,$V25,250),$W55,250),$D$11*X$45,250),2,250))) -> 11.97156895467048616575038363176625235535934801154551094581520333118885233698548599325696 | Y55: =IF($W55="","",IF(Y$45="","",[1]!xpow([1]!xadd([1]!xmult([1]!xmult($D$10,$V25,250),$W55,250),$D$11*Y$45,250),2,250))) -> 13.48110316657181595287513603690659026956820015361789698216720333118885233698548599325696 | Z55: =IF($W55="","",IF(Z$45="","",[1]!xpow([1]!xadd([1]!xmult([1]!xmult($D$10,$V25,250),$W55,250),$D$11*Z$45,250),2,250))) -> 15.08024293402877331768793977569802311507879281858170396399120333118885233698548599325696 | AA55: =IF($W55="","",IF(AA$45="","",[1]!xpow([1]!xadd([1]!xmult([1]!xmult($D$10,$V25,250),$W55,250),$D$11*AA$45,250),2,250))) -> 16.76898825704128906027852129228945596058938548354551094581520333118885233698548599325696 | AB55: =IF($W55="","",IF(AB$45="","",[1]!xpow([1]!xadd([1]!xmult([1]!xmult($D$10,$V25,250),$W55,250),$D$11*AB$45,250),2,250))) -> 18.54733913560936318064688058668088880609997814850931792763920333118885233698548599325696 | AC55: =IF($W55="","",IF(AC$45="","",[1]!xpow([1]!xadd([1]!xmult([1]!xmult($D$10,$V25,250),$W55,250),$D$11*AC$45,250),2,250))) -> 20.41529556973290531221607743622122672030883029058170396399120333118885233698548599325696 | AD55: =IF($W55="","",IF(AD$45="","",[1]!xpow([1]!xadd([1]!xmult([1]!xmult($D$10,$V25,250),$W55,250),$D$11*AD$45,250),2,250))) -> 22.37285755941209195480665895281265956581942295554551094581520333118885233698548599325696 | AE55: =IF($W55="","",IF(AE$45="","",[1]!xpow([1]!xadd([1]!xmult([1]!xmult($D$10,$V25,250),$W55,250),$D$11*AE$45,250),2,250))) -> 24.42002510464683697517501824720409241133001562050931792763920333118885233698548599325696 | AF55: =IF($W55="","",IF(AF$45="","",[1]!xpow([1]!xadd([1]!xmult([1]!xmult($D$10,$V25,250),$W55,250),$D$11*AF$45,250),2,250))) -> 26.55679820543724343989809554224662018814234880836454585493520333118885233698548599325696 | AG55: =IF($W55="","",IF(AG$45="","",[1]!xpow([1]!xadd([1]!xmult([1]!xmult($D$10,$V25,250),$W55,250),$D$11*AG$45,250),2,250))) -> 28.78317686178289484933479661333586317104946042754551094581520333118885233698548599325696 | AH55: =IF($W55="","",IF(AH$45="","",[1]!xpow([1]!xadd([1]!xmult([1]!xmult($D$10,$V25,250),$W55,250),$D$11*AH$45,250),2,250))) -> 31.09916107368408770321594212942510615395657204672647603669520333118885233698548599325696 | AI55: =IF($W55="","",IF(AI$45="","",[1]!xpow([1]!xadd([1]!xmult([1]!xmult($D$10,$V25,250),$W55,250),$D$11*AI$45,250),2,250))) -> 33.50475084114140083442623320276982379337238628036454585493520333118885233698548599325696 | AP55: 0.014115 | AQ55: =IF($AP55="","",IF(AQ$45="","",[1]!xsqr([1]!xsub(1,[1]!xdiv(X55,$D$14,250),250),250))) -> 0.9999999999999999333991656576806245227502814870383182993854100077737103141629462315441879966533092953673583023264925583644044515568119585277175139142936724838736738006413640339204219370196164064177172230681928285436150626562408170236572971551596172895 | AR55: =IF($AP55="","",IF(AR$45="","",[1]!xsqr([1]!xsub(1,[1]!xdiv(Y55,$D$14,250),250),250))) -> 0.999999999999999925001249030246277368808907310240674392389552608009965507270818794495010346836153977291859741314815998589540370037369100164269691523560811637134764299123059846666192623135452991820570988858009804931259883692684932901068997568995162102 | AS55: =IF($AP55="","",IF(AS$45="","",[1]!xsqr([1]!xsub(1,[1]!xdiv(Z55,$D$14,250),250),250))) -> 0.9999999999999999161048342707535068784815175690452766989639142150957856726551198371548391240833852513437364011080087931619626300728882306216222255953124753314848828698762329467917479305560324483553344909098807521276270280209870404064671170087985073415 | AT55: =IF($AP55="","",IF(AT$45="","",[1]!xsqr([1]!xsub(1,[1]!xdiv(AA55,$D$14,250),250),250))) -> 0.999999999999999906709921379202698014883797731034314484967760495244698290948711561732012825371475162731310429592495088384965384475461924138340867243505195569216423549915072052899544900532780898082071481879064849112870520171400213158319352492403970736 | AU55: =IF($AP55="","",IF(AU$45="","",[1]!xsqr([1]!xsub(1,[1]!xdiv(AB55,$D$14,250),250),250))) -> 0.999999999999999896816510355593850763965708214349599512165273019700664594978785412365759353373052314124572180749601076708191020895433823284581463987693672663336816703706844873203609724398945400900951623084478359368339708173880691494506316307080315886 | AV55: =IF($AP55="","",IF(AV$45="","",[1]!xsqr([1]!xsub(1,[1]!xdiv(AC55,$D$14,250),250),250))) -> 0.9999999999999998864246011999274678428161978359718290408493571268615467378645679092601245751971569965806714222884492149826832214607121302537461856138005763242881523713278402827636484653650646134899194787653639457866452292202652990456080736955967003115 | AW55: =IF($AP55="","",IF(AW$45="","",[1]!xsqr([1]!xsub(1,[1]!xdiv(AD55,$D$14,250),250),250))) -> 0.9999999999999998755341939122025673232180986996835700974233711255531560179227432338150489941495837787865462552352959970992952546747075560889671074458469296727242547195343379737674873837324141008392771439631251128906992046534750631871413981660664978925 | AX55: =IF($AP55="","",IF(AX$45="","",[1]!xsqr([1]!xsub(1,[1]!xdiv(AE55,$D$14,250),250),250))) -> 0.9999999999999998641452884924196283696765041611714138976289434309017375065806625949942518022780874213516904305435261859355895632434283633391465290279668708399516664640303250047821914271897018212321114091427972829795654382756824266145985938701783241375 | AY55: =IF($AP55="","",IF(AY$45="","",[1]!xsqr([1]!xsub(1,[1]!xdiv(AF55,$D$14,250),250),250))) -> 0.999999999999999852257884940578077579996321018847307642577560938254397565683921885543625505838073470856691858850369289688226666869624069734419503112301124270955420605969883244921470156928901040558464068016822465787909788031288642423970232792196145174 | AZ55: =IF($AP55="","",IF(AZ$45="","",[1]!xsqr([1]!xsub(1,[1]!xdiv(AG55,$D$14,250),250),250))) -> 0.9999999999999998398719832566802320281450528810479985710966812994612102291240748198483737006889733084426500098174560474423106773716314779471781436197434768575534881778823326148821906302116680087944812678920073634121466724897576874727476578679108948045 | BA55: =IF($AP55="","",IF(BA$45="","",[1]!xsqr([1]!xsub(1,[1]!xdiv(AH55,$D$14,250),250),250))) -> 0.9999999999999998269875834407244421933890656872824413304562605936498009529174856383317864976203361751095006687001421771557972956912231763515731774095989210610325665460894262991452145931321887389675982355510588707964316134460262688045559456033189630235 | BB55: =IF($AP55="","",IF(BB$45="","",[1]!xsqr([1]!xsub(1,[1]!xdiv(AI55,$D$14,250),250),250))) -> 0.9999999999999998136046854927074878642517698630949333726096265498403057492058758429778741541194722055648554275385330576033544394338328347417026217536546211946246649218129389204818196101403031319519570132995163853190146523014393008818263188333946153135
D56: 1.132015306 | E56: 0.014 | F56: =IF($E56="","",IF(F$45="","",VALUE([1]!xmult([1]!xdiv([1]!xsub(AQ26,AQ56,250),$U$51,250),$D$14,250)))) -> 0.01007507899 | G56: =IF($E56="","",IF(G$45="","",VALUE([1]!xmult([1]!xdiv([1]!xsub(AR26,AR56,250),$U$51,250),$D$14,250)))) -> 0.01069142616 | H56: =IF($E56="","",IF(H$45="","",VALUE([1]!xmult([1]!xdiv([1]!xsub(AS26,AS56,250),$U$51,250),$D$14,250)))) -> 0.01130777332 | I56: =IF($E56="","",IF(I$45="","",VALUE([1]!xmult([1]!xdiv([1]!xsub(AT26,AT56,250),$U$51,250),$D$14,250)))) -> 0.01192412048 | J56: =IF($E56="","",IF(J$45="","",VALUE([1]!xmult([1]!xdiv([1]!xsub(AU26,AU56,250),$U$51,250),$D$14,250)))) -> 0.01254046764 | K56: =IF($E56="","",IF(K$45="","",VALUE([1]!xmult([1]!xdiv([1]!xsub(AV26,AV56,250),$U$51,250),$D$14,250)))) -> 0.0131568148 | L56: =IF($E56="","",IF(L$45="","",VALUE([1]!xmult([1]!xdiv([1]!xsub(AW26,AW56,250),$U$51,250),$D$14,250)))) -> 0.01377316196 | M56: =IF($E56="","",IF(M$45="","",VALUE([1]!xmult([1]!xdiv([1]!xsub(AX26,AX56,250),$U$51,250),$D$14,250)))) -> 0.01438950912 | N56: =IF($E56="","",IF(N$45="","",VALUE([1]!xmult([1]!xdiv([1]!xsub(AY26,AY56,250),$U$51,250),$D$14,250)))) -> 0.01500585628 | O56: =IF($E56="","",IF(O$45="","",VALUE([1]!xmult([1]!xdiv([1]!xsub(AZ26,AZ56,250),$U$51,250),$D$14,250)))) -> 0.01562220345 | P56: =IF($E56="","",IF(P$45="","",VALUE([1]!xmult([1]!xdiv([1]!xsub(BA26,BA56,250),$U$51,250),$D$14,250)))) -> 0.01623855061 | Q56: =IF($E56="","",IF(Q$45="","",VALUE([1]!xmult([1]!xdiv([1]!xsub(BB26,BB56,250),$U$51,250),$D$14,250)))) -> 0.01685489777 | R56: =IF($E56="","",IF(R$45="","",VALUE([1]!xmult([1]!xdiv([1]!xsub(BC26,BC56,250),$U$51,250),$D$14,250)))) ->  | W56: 0.01398875 | X56: =IF($W56="","",IF(X$45="","",[1]!xpow([1]!xadd([1]!xmult([1]!xmult($D$10,$V26,250),$W56,250),$D$11*X$45,250),2,250))) -> 11.971568680476991757535177328821769529106486674887474851583392888462310994624600912656 | Y56: =IF($W56="","",IF(Y$45="","",[1]!xpow([1]!xadd([1]!xmult([1]!xmult($D$10,$V26,250),$W56,250),$D$11*Y$45,250),2,250))) -> 13.481102875604420224279665561606528286082526495938629194463392888462310994624600912656 | Z56: =IF($W56="","",IF(Z$45="","",[1]!xpow([1]!xadd([1]!xmult([1]!xmult($D$10,$V26,250),$W56,250),$D$11*Z$45,250),2,250))) -> 15.080242626287476268711412660263466346368926925413052023023392888462310994624600912656 | AA56: =IF($W56="","",IF(AA$45="","",[1]!xpow([1]!xadd([1]!xmult([1]!xmult($D$10,$V26,250),$W56,250),$D$11*AA$45,250),2,250))) -> 16.768987932526090690920937536720404406655327354887474851583392888462310994624600912656 | AB56: =IF($W56="","",IF(AB$45="","",[1]!xpow([1]!xadd([1]!xmult([1]!xmult($D$10,$V26,250),$W56,250),$D$11*AB$45,250),2,250))) -> 18.547338794320263490908240190977342466941727784361897680143392888462310994624600912656 | AC56: =IF($W56="","",IF(AC$45="","",[1]!xpow([1]!xadd([1]!xmult([1]!xmult($D$10,$V26,250),$W56,250),$D$11*AC$45,250),2,250))) -> 20.415295211669904302097172868162101223917767605413052023023392888462310994624600912656 | AD56: =IF($W56="","",IF(AD$45="","",[1]!xpow([1]!xadd([1]!xmult([1]!xmult($D$10,$V26,250),$W56,250),$D$11*AD$45,250),2,250))) -> 22.372857184575189624306697744619039284204168034887474851583392888462310994624600912656 | AE56: =IF($W56="","",IF(AE$45="","",[1]!xpow([1]!xadd([1]!xmult([1]!xmult($D$10,$V26,250),$W56,250),$D$11*AE$45,250),2,250))) -> 24.420024713036033324294000398875977344490568464361897680143392888462310994624600912656 | AF56: =IF($W56="","",IF(AF$45="","",[1]!xpow([1]!xadd([1]!xmult([1]!xmult($D$10,$V26,250),$W56,250),$D$11*AF$45,250),2,250))) -> 26.556797797052538468635228586005094708087329502259588994383392888462310994624600912656 | AG56: =IF($W56="","",IF(AG$45="","",[1]!xpow([1]!xadd([1]!xmult([1]!xmult($D$10,$V26,250),$W56,250),$D$11*AG$45,250),2,250))) -> 28.783176436624288557692457952517674161753008714887474851583392888462310994624600912656 | AH56: =IF($W56="","",IF(AH$45="","",[1]!xpow([1]!xadd([1]!xmult([1]!xmult($D$10,$V26,250),$W56,250),$D$11*AH$45,250),2,250))) -> 31.099160631751580091194131764030253615418687927515360708783392888462310994624600912656 | AI56: =IF($W56="","",IF(AI$45="","",[1]!xpow([1]!xadd([1]!xmult([1]!xmult($D$10,$V26,250),$W56,250),$D$11*AI$45,250),2,250))) -> 33.504750382434991902020988793903729585636170182259588994383392888462310994624600912656 | AP56: 0.01398875 | AQ56: =IF($AP56="","",IF(AQ$45="","",[1]!xsqr([1]!xsub(1,[1]!xdiv(X56,$D$14,250),250),250))) -> 0.9999999999999999333991671830876591369411902580500461400454521289858314070108300692111854139078961296779161587366835274266407110102844944963294183503558050005505303654147017872454120879550460247965791714171999659889806606364371218599283975133476369045 | AR56: =IF($AP56="","",IF(AR$45="","",[1]!xsqr([1]!xsub(1,[1]!xdiv(Y56,$D$14,250),250),250))) -> 0.999999999999999925001250648970723204794661704722220994792079845340983922744608796980485084083105081389726699343545798694714343905430603792489446109684755151101186502168266433799591798294919476602771993585952253005060887094062887993732738144549741302 | AS56: =IF($AP56="","",IF(AS$45="","",[1]!xsqr([1]!xsub(1,[1]!xdiv(Z56,$D$14,250),250),250))) -> 0.999999999999999916104835982795363936266528704383135561675234830789343508717118159388351079122656547379843819719790695398809548684744080954718162705915690121791410344535299828209570551433142499519574259011810091043310589677320735806835502671877320162 | AT56: =IF($AP56="","",IF(AT$45="","",[1]!xsqr([1]!xsub(1,[1]!xdiv(AA56,$D$14,250),250),250))) -> 0.999999999999999906709923184561966294468068167577488853430995955267091718565455860646821236224330112668611784335078561087888745320057871039275889266288858272042633478833316974387659542597415554643201131504044486963278241240518741123411356324501861257 | AU56: =IF($AP56="","",IF(AU$45="","",[1]!xsqr([1]!xsub(1,[1]!xdiv(AB56,$D$14,250),250),250))) -> 0.9999999999999998968165122542705302653492406520027581794999355863463046627312451504270326008487314448802914292565102507262676915178367010219597533501472048547813702572211393777067442441447979309738693195662309797685835594784749898443755942360451520735 | AV56: =IF($AP56="","",IF(AV$45="","",[1]!xsqr([1]!xsub(1,[1]!xdiv(AC56,$D$14,250),250),250))) -> 0.999999999999999886424603191921558565994586417602150546430521795762876957102254893137340705822261815481089322490910390015567364525242999471145299440059889835346038126670487432627610275736489626797819312351060750482805406667220148768044475230944702167 | AW56: =IF($AP56="","",IF(AW$45="","",[1]!xsqr([1]!xsub(1,[1]!xdiv(AD56,$D$14,250),250),250))) -> 0.999999999999999875534195997514069268195755100900210131000204108115222613089007025854489367886988105962417407235618937852272120630313305533033264648516793075440819487769622743941981005879814477851536324125802413775569255221815534509243319416293623731 | AX56: =IF($AP56="","",IF(AX$45="","",[1]!xsqr([1]!xsub(1,[1]!xdiv(AE56,$D$14,250),250),250))) -> 0.9999999999999998641452906710485415364534315005460378953436615022171868882283791170850302239295725140727412795255130674131775540833006181934018567132011848133276736834287116662538783515818576437034301230978630295417311659250154580504924621834810035865 | AY56: =IF($AP56="","",IF(AY$45="","",[1]!xsqr([1]!xsub(1,[1]!xdiv(AF56,$D$14,250),250),250))) -> 0.9999999999999998522578872125244019685769312511004023901215989910475065038801543081453599167606157282094195618975531232835142424747635955005498114753214258495850061253520057702502042471813592111643780326426242862979218626076390663690468282088845688115 | AZ56: =IF($AP56="","",IF(AZ$45="","",[1]!xsqr([1]!xsub(1,[1]!xdiv(AG56,$D$14,250),250),250))) -> 0.999999999999999839871985621943967638516123314083093194183198128009956595388948531367908127215065092002977401513742578616997931300183475133931530378150673795400477826628861893104181203728008863009271565876932483174454189490068712211119293099537509328 | BA56: =IF($AP56="","",IF(BA$45="","",[1]!xsqr([1]!xsub(1,[1]!xdiv(AH56,$D$14,250),250),250))) -> 0.999999999999999826987585899305589025550599858338197907581932806821173402837496682157472808186708987168685626306885858351910236239302124274936089915061082980107227737579168950785686898370829376772673518624925637445776265459460242444646255451263616732 | BB56: =IF($AP56="","",IF(BB$45="","",[1]!xsqr([1]!xsub(1,[1]!xdiv(AI56,$D$14,250),250),250))) -> 0.999999999999999813604688044606045918225814931931458541827980652887356757866157383290158968630420183476658481410222974268663574331577639665535048660328210645320742906784983792773397346285302419597848472322265951820904662059115973794232399271706396044
D57: 1.152503855 | E57: 0.013875 | F57: =IF($E57="","",IF(F$45="","",VALUE([1]!xmult([1]!xdiv([1]!xsub(AQ27,AQ57,250),$U$51,250),$D$14,250)))) -> 0.01139714394 | G57: =IF($E57="","",IF(G$45="","",VALUE([1]!xmult([1]!xdiv([1]!xsub(AR27,AR57,250),$U$51,250),$D$14,250)))) -> 0.01209436898 | H57: =IF($E57="","",IF(H$45="","",VALUE([1]!xmult([1]!xdiv([1]!xsub(AS27,AS57,250),$U$51,250),$D$14,250)))) -> 0.01279159403 | I57: =IF($E57="","",IF(I$45="","",VALUE([1]!xmult([1]!xdiv([1]!xsub(AT27,AT57,250),$U$51,250),$D$14,250)))) -> 0.01348881907 | J57: =IF($E57="","",IF(J$45="","",VALUE([1]!xmult([1]!xdiv([1]!xsub(AU27,AU57,250),$U$51,250),$D$14,250)))) -> 0.01418604411 | K57: =IF($E57="","",IF(K$45="","",VALUE([1]!xmult([1]!xdiv([1]!xsub(AV27,AV57,250),$U$51,250),$D$14,250)))) -> 0.01488326916 | L57: =IF($E57="","",IF(L$45="","",VALUE([1]!xmult([1]!xdiv([1]!xsub(AW27,AW57,250),$U$51,250),$D$14,250)))) -> 0.0155804942 | M57: =IF($E57="","",IF(M$45="","",VALUE([1]!xmult([1]!xdiv([1]!xsub(AX27,AX57,250),$U$51,250),$D$14,250)))) -> 0.01627771925 | N57: =IF($E57="","",IF(N$45="","",VALUE([1]!xmult([1]!xdiv([1]!xsub(AY27,AY57,250),$U$51,250),$D$14,250)))) -> 0.01697494429 | O57: =IF($E57="","",IF(O$45="","",VALUE([1]!xmult([1]!xdiv([1]!xsub(AZ27,AZ57,250),$U$51,250),$D$14,250)))) -> 0.01767216933 | P57: =IF($E57="","",IF(P$45="","",VALUE([1]!xmult([1]!xdiv([1]!xsub(BA27,BA57,250),$U$51,250),$D$14,250)))) -> 0.01836939438 | Q57: =IF($E57="","",IF(Q$45="","",VALUE([1]!xmult([1]!xdiv([1]!xsub(BB27,BB57,250),$U$51,250),$D$14,250)))) -> 0.01906661942 | R57: =IF($E57="","",IF(R$45="","",VALUE([1]!xmult([1]!xdiv([1]!xsub(BC27,BC57,250),$U$51,250),$D$14,250)))) ->  | W57: 0.0138625 | X57: =IF($W57="","",IF(X$45="","",[1]!xpow([1]!xadd([1]!xmult([1]!xmult($D$10,$V27,250),$W57,250),$D$11*X$45,250),2,250))) -> 11.971568401397559490418477349796183822420189640074392357424681361103137642028625444864 | Y57: =IF($W57="","",IF(Y$45="","",[1]!xpow([1]!xadd([1]!xmult([1]!xmult($D$10,$V27,250),$W57,250),$D$11*Y$45,250),2,250))) -> 13.481102579452187154261123530029306763432425051867228519984681361103137642028625444864 | Z57: =IF($W57="","",IF(Z$45="","",[1]!xpow([1]!xadd([1]!xmult([1]!xmult($D$10,$V27,250),$W57,250),$D$11*Z$45,250),2,250))) -> 15.080242313062442395790221987120298659104065425970810438704681361103137642028625444864 | AA57: =IF($W57="","",IF(AA$45="","",[1]!xpow([1]!xadd([1]!xmult([1]!xmult($D$10,$V27,250),$W57,250),$D$11*AA$45,250),2,250))) -> 16.768987602228256015097098222011290554775705800074392357424681361103137642028625444864 | AB57: =IF($W57="","",IF(AB$45="","",[1]!xpow([1]!xadd([1]!xmult([1]!xmult($D$10,$V27,250),$W57,250),$D$11*AB$45,250),2,250))) -> 18.547338446949628012181752234702282450447346174177974276144681361103137642028625444864 | AC57: =IF($W57="","",IF(AC$45="","",[1]!xpow([1]!xadd([1]!xmult([1]!xmult($D$10,$V27,250),$W57,250),$D$11*AC$45,250),2,250))) -> 20.415294847226468020468842859335405391459581585970810438704681361103137642028625444864 | AD57: =IF($W57="","",IF(AD$45="","",[1]!xpow([1]!xadd([1]!xmult([1]!xmult($D$10,$V27,250),$W57,250),$D$11*AD$45,250),2,250))) -> 22.372856803058952539775719094226397287131221960074392357424681361103137642028625444864 | AE57: =IF($W57="","",IF(AE$45="","",[1]!xpow([1]!xadd([1]!xmult([1]!xmult($D$10,$V27,250),$W57,250),$D$11*AE$45,250),2,250))) -> 24.420024314446995436860373106917389182802862334177974276144681361103137642028625444864 | AF57: =IF($W57="","",IF(AF$45="","",[1]!xpow([1]!xadd([1]!xmult([1]!xmult($D$10,$V27,250),$W57,250),$D$11*AF$45,250),2,250))) -> 26.556797381390699778298146063466250033133907670592301951024681361103137642028625444864 | AG57: =IF($W57="","",IF(AG$45="","",[1]!xpow([1]!xadd([1]!xmult([1]!xmult($D$10,$V27,250),$W57,250),$D$11*AG$45,250),2,250))) -> 28.783176003889649064454339966441504019486738120074392357424681361103137642028625444864 | AH57: =IF($W57="","",IF(AH$45="","",[1]!xpow([1]!xadd([1]!xmult([1]!xmult($D$10,$V27,250),$W57,250),$D$11*AH$45,250),2,250))) -> 31.099160181944139795054978314416758005839568569556482763824681361103137642028625444864 | AI57: =IF($W57="","",IF(AI$45="","",[1]!xpow([1]!xadd([1]!xmult([1]!xmult($D$10,$V27,250),$W57,250),$D$11*AI$45,250),2,250))) -> 33.504749915554750802976766935681356765489423830592301951024681361103137642028625444864 | AP57: 0.0138625 | AQ57: =IF($AP57="","",IF(AQ$45="","",[1]!xsqr([1]!xsub(1,[1]!xdiv(X57,$D$14,250),250),250))) -> 0.9999999999999999333991687356763889140383176637310058261605288464082970368839098419717776903583217794525103920773655800273860138202342341910203804200730203633859080360373877838623782257876621820011565749796494247138484479553479937175085504899316938195 | AR57: =IF($AP57="","",IF(AR$45="","",[1]!xsqr([1]!xsub(1,[1]!xdiv(Y57,$D$14,250),250),250))) -> 0.999999999999999925001252296539716833596790943048963321977540901842337959736614537432413297764619255819876637276179345044634977873371444982102352292351924546354292478764292103949303228697039185231854241662923266482044639015206993878484747935174007909 | AS57: =IF($AP57="","",IF(AS$45="","",[1]!xsqr([1]!xsub(1,[1]!xdiv(Z57,$D$14,250),250),250))) -> 0.9999999999999999161048377253446214167781494958457810242588341866602590768286604609396711709011173820947427525478289109884635413170762509765867979816995649029985566228309473092294806731907663254971932538910042301533143534271115855208366859793586104055 | AT57: =IF($AP57="","",IF(AT$45="","",[1]!xsqr([1]!xsub(1,[1]!xdiv(AA57,$D$14,250),250),250))) -> 0.9999999999999999067099250220914876266891831181486870708833343873413847575069821021751197920184224091169776960299551434971542048343336156636558820671230486459593845258295779314255131416094508052442129588422235663477649094450696924898631056840379375015 | AU57: =IF($AP57="","",IF(AU$45="","",[1]!xsqr([1]!xsub(1,[1]!xdiv(AB57,$D$14,250),250),250))) -> 0.9999999999999998968165141867803154492798525096976111086621526835492240800457678149083605815822712554783827080339709041758977302278353035760959102881063694083107325405133523013977475908220176022871389633486869243865797667417295488054800257845908862155 | AV57: =IF($AP57="","",IF(AV$45="","",[1]!xsqr([1]!xsub(1,[1]!xdiv(AC57,$D$14,250),250),250))) -> 0.9999999999999998864246052194116076016302108159182892686542832397960344416951089758828806452073358313519285371404636433060255460295171555317496443962383044579264521836987200983792078795732455227923172666859606746509358138150364403568867239680318130015 | AW57: =IF($AP57="","",IF(AW$45="","",[1]!xsqr([1]!xsub(1,[1]!xdiv(AD57,$D$14,250),250),250))) -> 0.9999999999999998755341981199843821555408823284975644905812189336132533717691197591894335742355902992863452517400307792880145344426066429189232881020702477803031542776163185350371671788980893163874821960218786039991312003777890978465344716477939707355 | AX57: =IF($AP57="","",IF(AX$45="","",[1]!xsqr([1]!xsub(1,[1]!xdiv(AE57,$D$14,250),250),250))) -> 0.9999999999999998641452928884991182755080647315670668612281026050494751574937233476946983953016737498604863069197914075471942244063924873991564251523416298216674204827314241429415549495453326040380701140484600781186950297529985673306029535914723843685 | AY57: =IF($AP57="","",IF(AY$45="","",[1]!xsqr([1]!xsub(1,[1]!xdiv(AF57,$D$14,250),250),250))) -> 0.9999999999999998522578895249552425593455610582899404819462443715411624522794717972735383963873656712725356680497770271348945685635966167009724495222664794246504187613394019267072646714050173531960602675604327549694360875263590519992082948538751143025 | AZ57: =IF($AP57="","",IF(AZ$45="","",[1]!xsqr([1]!xsub(1,[1]!xdiv(AG57,$D$14,250),250),250))) -> 0.999999999999999839871988029355072080985291385988734415508830899620997474525201859237298481534730059749492239250568755598209391464209808951267624798126370510773825521005773905473164478977525257929561101778828807170394460934458943717225399242794899687 | BA57: =IF($AP57="","",IF(BA$45="","",[1]!xsqr([1]!xsub(1,[1]!xdiv(AH57,$D$14,250),250),250))) -> 0.9999999999999998269875884016969573197203097952297582387796068339381295895878348403443978817289990468972786713496130817478689238545610781552961868973383846980029280737892615195750003281732250629476019916513987962141858497927828186001676327608464313075 | BB57: =IF($AP57="","",IF(BB$45="","",[1]!xsqr([1]!xsub(1,[1]!xdiv(AI57,$D$14,250),250),250))) -> 0.99999999999999981360469064197767806411850675892082236980078169917541156979972937962387906011579632882212887338434362964984792531776081623285617652635442105596429024537320104141893434648352397221650106073009841882952569170243637657658170328417959301
D58: 1.173553719 | E58: 0.01375 | F58: =IF($E58="","",IF(F$45="","",VALUE([1]!xmult([1]!xdiv([1]!xsub(AQ28,AQ58,250),$U$51,250),$D$14,250)))) -> 0.01276583716 | G58: =IF($E58="","",IF(G$45="","",VALUE([1]!xmult([1]!xdiv([1]!xsub(AR28,AR58,250),$U$51,250),$D$14,250)))) -> 0.0135467926 | H58: =IF($E58="","",IF(H$45="","",VALUE([1]!xmult([1]!xdiv([1]!xsub(AS28,AS58,250),$U$51,250),$D$14,250)))) -> 0.01432774803 | I58: =IF($E58="","",IF(I$45="","",VALUE([1]!xmult([1]!xdiv([1]!xsub(AT28,AT58,250),$U$51,250),$D$14,250)))) -> 0.01510870346 | J58: =IF($E58="","",IF(J$45="","",VALUE([1]!xmult([1]!xdiv([1]!xsub(AU28,AU58,250),$U$51,250),$D$14,250)))) -> 0.0158896589 | K58: =IF($E58="","",IF(K$45="","",VALUE([1]!xmult([1]!xdiv([1]!xsub(AV28,AV58,250),$U$51,250),$D$14,250)))) -> 0.01667061433 | L58: =IF($E58="","",IF(L$45="","",VALUE([1]!xmult([1]!xdiv([1]!xsub(AW28,AW58,250),$U$51,250),$D$14,250)))) -> 0.01745156976 | M58: =IF($E58="","",IF(M$45="","",VALUE([1]!xmult([1]!xdiv([1]!xsub(AX28,AX58,250),$U$51,250),$D$14,250)))) -> 0.0182325252 | N58: =IF($E58="","",IF(N$45="","",VALUE([1]!xmult([1]!xdiv([1]!xsub(AY28,AY58,250),$U$51,250),$D$14,250)))) -> 0.01901348063 | O58: =IF($E58="","",IF(O$45="","",VALUE([1]!xmult([1]!xdiv([1]!xsub(AZ28,AZ58,250),$U$51,250),$D$14,250)))) -> 0.01979443606 | P58: =IF($E58="","",IF(P$45="","",VALUE([1]!xmult([1]!xdiv([1]!xsub(BA28,BA58,250),$U$51,250),$D$14,250)))) -> 0.0205753915 | Q58: =IF($E58="","",IF(Q$45="","",VALUE([1]!xmult([1]!xdiv([1]!xsub(BB28,BB58,250),$U$51,250),$D$14,250)))) -> 0.02135634693 | R58: =IF($E58="","",IF(R$45="","",VALUE([1]!xmult([1]!xdiv([1]!xsub(BC28,BC58,250),$U$51,250),$D$14,250)))) ->  | W58: 0.01373625 | X58: =IF($W58="","",IF(X$45="","",[1]!xpow([1]!xadd([1]!xmult([1]!xmult($D$10,$V28,250),$W58,250),$D$11*X$45,250),2,250))) -> 11.97156811730043598791695971800408099624694482197713837311530867403643651279090666672384 | Y58: =IF($W58="","",IF(Y$45="","",[1]!xpow([1]!xadd([1]!xmult([1]!xmult($D$10,$V28,250),$W58,250),$D$11*Y$45,250),2,250))) -> 13.48110227797530328791970630257305531363464785179191967161130867403643651279090666672384 | Z58: =IF($W58="","",IF(Z$45="","",[1]!xpow([1]!xadd([1]!xmult([1]!xmult($D$10,$V28,250),$W58,250),$D$11*Z$45,250),2,250))) -> 15.08024199420579816560808407295908722598145546488452902236330867403643651279090666672384 | AA58: =IF($W58="","",IF(AA$45="","",[1]!xpow([1]!xadd([1]!xmult([1]!xmult($D$10,$V28,250),$W58,250),$D$11*AA$45,250),2,250))) -> 16.76898726599185142107423962114511913832826307797713837311530867403643651279090666672384 | AB58: =IF($W58="","",IF(AB$45="","",[1]!xpow([1]!xadd([1]!xmult([1]!xmult($D$10,$V28,250),$W58,250),$D$11*AB$45,250),2,250))) -> 18.54733809333346305431817294713115105067507069106974772386730867403643651279090666672384 | AC58: =IF($W58="","",IF(AC$45="","",[1]!xpow([1]!xadd([1]!xmult([1]!xmult($D$10,$V28,250),$W58,250),$D$11*AC$45,250),2,250))) -> 20.41529447623054269876536397610012536806277372088452902236330867403643651279090666672384 | AD58: =IF($W58="","",IF(AD$45="","",[1]!xpow([1]!xadd([1]!xmult([1]!xmult($D$10,$V28,250),$W58,250),$D$11*AD$45,250),2,250))) -> 22.37285641468326685423151952428615728040958133397713837311530867403643651279090666672384 | AE58: =IF($W58="","",IF(AE$45="","",[1]!xpow([1]!xadd([1]!xmult([1]!xmult($D$10,$V28,250),$W58,250),$D$11*AE$45,250),2,250))) -> 24.42002390869154938747545285027218919275638894706974772386730867403643651279090666672384 | AF58: =IF($W58="","",IF(AF$45="","",[1]!xpow([1]!xadd([1]!xmult([1]!xmult($D$10,$V28,250),$W58,250),$D$11*AF$45,250),2,250))) -> 26.55679695825549336507168402907527870006230114344018512687530867403643651279090666672384 | AG58: =IF($W58="","",IF(AG$45="","",[1]!xpow([1]!xadd([1]!xmult([1]!xmult($D$10,$V28,250),$W58,250),$D$11*AG$45,250),2,250))) -> 28.78317556337468228738879942742719542249089958997713837311530867403643651279090666672384 | AH58: =IF($W58="","",IF(AH$45="","",[1]!xpow([1]!xadd([1]!xmult([1]!xmult($D$10,$V28,250),$W58,250),$D$11*AH$45,250),2,250))) -> 31.09915972404941265415035927077911214491949803651409161935530867403643651279090666672384 | AI58: =IF($W58="","",IF(AI$45="","",[1]!xpow([1]!xadd([1]!xmult([1]!xmult($D$10,$V28,250),$W58,250),$D$11*AI$45,250),2,250))) -> 33.50474944028026329822896393221631684214361939944018512687530867403643651279090666672384 | AP58: 0.01373625 | AQ58: =IF($AP58="","",IF(AQ$45="","",[1]!xsqr([1]!xsub(1,[1]!xdiv(X58,$D$14,250),250),250))) -> 0.9999999999999999333991703161797908626887833289271841367041590093336244382098995299666836032097785807775201136407523664747432250312848104743054054627407510310877872682767969613717714246545657337171659225127352666510646898933440777306718799961083715945 | AR58: =IF($AP58="","",IF(AR$45="","",[1]!xsqr([1]!xsub(1,[1]!xdiv(Y58,$D$14,250),250),250))) -> 0.9999999999999999250012539737310754973718779447590526664873446692792024566105883706340265664142668487078839320151214486036595536688752905308157233446133066623307919133349406930012927035911453605629813752901669661350875342567615289292247187825711217735 | AS58: =IF($AP58="","",IF(AS$45="","",[1]!xsqr([1]!xsub(1,[1]!xdiv(Z58,$D$14,250),250),250))) -> 0.999999999999999916104839499223936795682428277262979013324963225565339955280011099016657862144070949724905859993009573567273778268595464721498398417086778113807815322054597289679355590279066263320761035473143180947541116940052670847670846781898116282 | AT58: =IF($AP58="","",IF(AT$45="","",[1]!xsqr([1]!xsub(1,[1]!xdiv(AA58,$D$14,250),250),250))) -> 0.9999999999999999067099268926587597207226563320995693428331876448893977780790514554557358841010679321851827168300856702966838116854422826483725307553823680153997386307534038600433121495078114444939362869104769339857883243322533783788730751099415607025 | AU58: =IF($AP58="","",IF(AU$45="","",[1]!xsqr([1]!xsub(1,[1]!xdiv(AB58,$D$14,250),250),250))) -> 0.9999999999999998968165161540355442584425229536050507468243602936809897547719885876412923747189878346910851593005284166994335629967073505093608797579554281458293380554312619098602157639865352556078262903884120132929889823489239873639954022306230264545 | AV58: =IF($AP58="","",IF(AV$45="","",[1]!xsqr([1]!xsub(1,[1]!xdiv(AC58,$D$14,250),250),250))) -> 0.9999999999999998864246072833547931259175134968385373834510331209089530529605698050725600649458959561160016716624631555369429098065252172885979662667506893262775706361305921337122068920981748017575452837356565093742615464107935678088469610906697268165 | AW58: =IF($AP58="","",IF(AW$45="","",[1]!xsqr([1]!xsub(1,[1]!xdiv(AD58,$D$14,250),250),250))) -> 0.9999999999999998755342002806155243949573882680090084731021217339220489661905043395988837607349248095539319982834600143737076360540053955264915240511601085878525945404549428311322560280609284385782744747262556644490421082844271864392161696415609257125 | AX58: =IF($AP58="","",IF(AX$45="","",[1]!xsqr([1]!xsub(1,[1]!xdiv(AE58,$D$14,250),250),250))) -> 0.999999999999999864145295145818217230053777160881472129798780528420112181917570053635621574906648696347492888959201955639140256600485374448641647819118691505212972138990765572082577068458697886201075608854992681892688098008753584106821975813730443381 | AY58: =IF($AP58="","",IF(AY$45="","",[1]!xsqr([1]!xsub(1,[1]!xdiv(AF58,$D$14,250),250),250))) -> 0.99999999999999985225789187896229822902505128817828931826954929003857967608098798374589917296237701286998024696399415429717446730154559972445850264331818259261623222219110747127851506800565768624706721489725691982420431895438960079162749324079029346 | AZ58: =IF($AP58="","",IF(AZ$45="","",[1]!xsqr([1]!xsub(1,[1]!xdiv(AG58,$D$14,250),250),250))) -> 0.999999999999999839871990480050084465784859131966628872615594001516290604867725780150984134628583425798798378132796811818600580609123605571538014346594331329358564935163885457093235784122540927942078665701679937504070079363375577014631151026007600587 | BA58: =IF($AP58="","",IF(BA$45="","",[1]!xsqr([1]!xsub(1,[1]!xdiv(AH58,$D$14,250),250),250))) -> 0.999999999999999826987590949079926419639958722297856069300061295184721274296782627261726698257585676398647476615069024095446171310757247416249556214895799345862360489355713961563761808484026792489786008779714014737125865198773527582195898591876211661 | BB58: =IF($AP58="","",IF(BB$45="","",[1]!xsqr([1]!xsub(1,[1]!xdiv(AI58,$D$14,250),250),250))) -> 0.9999999999999998136046932860486038791810803514906758658535941715804648278482707399518443320387646697207701203822698370654435829352444911672840016489307389937593276831929064747324585359848063463455316041172894071792925358195918046133558803040158467575
D59: 1.19518559 | E59: 0.013625 | F59: =IF($E59="","",IF(F$45="","",VALUE([1]!xmult([1]!xdiv([1]!xsub(AQ29,AQ59,250),$U$51,250),$D$14,250)))) -> 0.01418306948 | G59: =IF($E59="","",IF(G$45="","",VALUE([1]!xmult([1]!xdiv([1]!xsub(AR29,AR59,250),$U$51,250),$D$14,250)))) -> 0.01505072471 | H59: =IF($E59="","",IF(H$45="","",VALUE([1]!xmult([1]!xdiv([1]!xsub(AS29,AS59,250),$U$51,250),$D$14,250)))) -> 0.01591837993 | I59: =IF($E59="","",IF(I$45="","",VALUE([1]!xmult([1]!xdiv([1]!xsub(AT29,AT59,250),$U$51,250),$D$14,250)))) -> 0.01678603515 | J59: =IF($E59="","",IF(J$45="","",VALUE([1]!xmult([1]!xdiv([1]!xsub(AU29,AU59,250),$U$51,250),$D$14,250)))) -> 0.01765369038 | K59: =IF($E59="","",IF(K$45="","",VALUE([1]!xmult([1]!xdiv([1]!xsub(AV29,AV59,250),$U$51,250),$D$14,250)))) -> 0.0185213456 | L59: =IF($E59="","",IF(L$45="","",VALUE([1]!xmult([1]!xdiv([1]!xsub(AW29,AW59,250),$U$51,250),$D$14,250)))) -> 0.01938900083 | M59: =IF($E59="","",IF(M$45="","",VALUE([1]!xmult([1]!xdiv([1]!xsub(AX29,AX59,250),$U$51,250),$D$14,250)))) -> 0.02025665605 | N59: =IF($E59="","",IF(N$45="","",VALUE([1]!xmult([1]!xdiv([1]!xsub(AY29,AY59,250),$U$51,250),$D$14,250)))) -> 0.02112431128 | O59: =IF($E59="","",IF(O$45="","",VALUE([1]!xmult([1]!xdiv([1]!xsub(AZ29,AZ59,250),$U$51,250),$D$14,250)))) -> 0.0219919665 | P59: =IF($E59="","",IF(P$45="","",VALUE([1]!xmult([1]!xdiv([1]!xsub(BA29,BA59,250),$U$51,250),$D$14,250)))) -> 0.02285962172 | Q59: =IF($E59="","",IF(Q$45="","",VALUE([1]!xmult([1]!xdiv([1]!xsub(BB29,BB59,250),$U$51,250),$D$14,250)))) -> 0.02372727695 | R59: =IF($E59="","",IF(R$45="","",VALUE([1]!xmult([1]!xdiv([1]!xsub(BC29,BC59,250),$U$51,250),$D$14,250)))) ->  | W59: 0.01361 | X59: =IF($W59="","",IF(X$45="","",[1]!xpow([1]!xadd([1]!xmult([1]!xmult($D$10,$V29,250),$W59,250),$D$11*X$45,250),2,250))) -> 11.97156782804908841773591207280146364765191281194136993712682877137434896525041682939904 | Y59: =IF($W59="","",IF(Y$45="","",[1]!xpow([1]!xadd([1]!xmult([1]!xmult($D$10,$V29,250),$W59,250),$D$11*Y$45,250),2,250))) -> 13.48110197102888332875831925262143296197390754338054859799082877137434896525041682939904 | Z59: =IF($W59="","",IF(Z$45="","",[1]!xpow([1]!xadd([1]!xmult([1]!xmult($D$10,$V29,250),$W59,250),$D$11*Z$45,250),2,250))) -> 15.08024166956430581746552163058653951392918652966095926755882877137434896525041682939904 | AA59: =IF($W59="","",IF(AA$45="","",[1]!xpow([1]!xadd([1]!xmult([1]!xmult($D$10,$V29,250),$W59,250),$D$11*AA$45,250),2,250))) -> 16.76898692365528668395050178635164606588446551594136993712682877137434896525041682939904 | AB59: =IF($W59="","",IF(AB$45="","",[1]!xpow([1]!xadd([1]!xmult([1]!xmult($D$10,$V29,250),$W59,250),$D$11*AB$45,250),2,250))) -> 18.54733773330182592821325971991675261783974450222178060669482877137434896525041682939904 | AC59: =IF($W59="","",IF(AC$45="","",[1]!xpow([1]!xadd([1]!xmult([1]!xmult($D$10,$V29,250),$W59,250),$D$11*AC$45,250),2,250))) -> 20.41529409850383318368011134413672193216173923366095926755882877137434896525041682939904 | AD59: =IF($W59="","",IF(AD$45="","",[1]!xpow([1]!xadd([1]!xmult([1]!xmult($D$10,$V29,250),$W59,250),$D$11*AD$45,250),2,250))) -> 22.37285601926148495016509149990182848411701821994136993712682877137434896525041682939904 | AE59: =IF($W59="","",IF(AE$45="","",[1]!xpow([1]!xadd([1]!xmult([1]!xmult($D$10,$V29,250),$W59,250),$D$11*AE$45,250),2,250))) -> 24.42002349557469509442784943346693503607229720622178060669482877137434896525041682939904 | AF59: =IF($W59="","",IF(AF$45="","",[1]!xpow([1]!xadd([1]!xmult([1]!xmult($D$10,$V29,250),$W59,250),$D$11*AF$45,250),2,250))) -> 26.55679652744356668304206923217717882566086044734342328496682877137434896525041682939904 | AG59: =IF($W59="","",IF(AG$45="","",[1]!xpow([1]!xadd([1]!xmult([1]!xmult($D$10,$V29,250),$W59,250),$D$11*AG$45,250),2,250))) -> 28.78317511486768321637968121345201090234957092394136993712682877137434896525041682939904 | AH59: =IF($W59="","",IF(AH$45="","",[1]!xpow([1]!xadd([1]!xmult([1]!xmult($D$10,$V29,250),$W59,250),$D$11*AH$45,250),2,250))) -> 31.09915925784734119416173763972684297903828140053931658928682877137434896525041682939904 | AI59: =IF($W59="","",IF(AI$45="","",[1]!xpow([1]!xadd([1]!xmult([1]!xmult($D$10,$V29,250),$W59,250),$D$11*AI$45,250),2,250))) -> 33.50474895638311944925665894572736124389341315134342328496682877137434896525041682939904 | AP59: 0.01361 | AQ59: =IF($AP59="","",IF(AQ$45="","",[1]!xsqr([1]!xsub(1,[1]!xdiv(X59,$D$14,250),250),250))) -> 0.999999999999999933399171925357431300421942269138026144737953233145465144474671501281917829026421147531676124167826640927070788644712855013129991644554000705010911796908821005432016675634534449597588478044638723153050503035830383966529935238803053513 | AR59: =IF($AP59="","",IF(AR$45="","",[1]!xsqr([1]!xsub(1,[1]!xdiv(Y59,$D$14,250),250),250))) -> 0.9999999999999999250012556813508323624641100832299316297264057762078672747303409649767911540669979572972822676925453959415953399533928922961028919045964445678008228696708721054427620048214915118753829907446789899101011654561373606685730199132849559565 | AS59: =IF($AP59="","",IF(AS$45="","",[1]!xsqr([1]!xsub(1,[1]!xdiv(Z59,$D$14,250),250),250))) -> 0.999999999999999916104841305285810088138386976379783718421034914532197590035147671637851848135883750978337825571390995764544284686605755026433280074081804944652567462309745928112191072013944152803794488638354247743267143625843581290202835141632079028 | AT59: =IF($AP59="","",IF(AT$45="","",[1]!xsqr([1]!xsub(1,[1]!xdiv(AA59,$D$14,250),250),250))) -> 0.999999999999999906709928797162749440542344292817710442379132625065401392172380701948595878158890244596642771993948541491725395078048810447646466021362420564909164515928704603590470432089718151764716395710729955019627329837213937374173769317969454939 | AU59: =IF($AP59="","",IF(AU$45="","",[1]!xsqr([1]!xsub(1,[1]!xdiv(AB59,$D$14,250),250),250))) -> 0.9999999999999998968165181569816504056259430240995723580554197926435998997639869685201561607668082281179783905807863226302995061700778827794124176144847467546139638180535545111295444111254267812230995968595686025946350456042417131261876780774151651915 | AV59: =IF($AP59="","",IF(AV$45="","",[1]!xsqr([1]!xsub(1,[1]!xdiv(AC59,$D$14,250),250),250))) -> 0.999999999999999886424609384743015700460017863854005488888199761121642925974043971867815210676853981145503219742134727733498801757588456179649762150563336019356775385917730061349061808189892425357181536208701653786953010394649175953107025355982651075 | AW59: =IF($AP59="","",IF(AW$45="","",[1]!xsqr([1]!xsub(1,[1]!xdiv(AD59,$D$14,250),250),250))) -> 0.9999999999999998755342024804458633968636308828098457184701595961348547151858062811920469810817019823060977478346271428759729268719028865942674034745136221626566550627337516513072125351216973431747593631613853394254033394686535021284455493114769829635 | AX59: =IF($AP59="","",IF(AX$45="","",[1]!xsqr([1]!xsub(1,[1]!xdiv(AE59,$D$14,250),250),250))) -> 0.999999999999999864145297444090672659323761313301623026253243323373367590748465296420032688390492273557507852688463464728990019355313461260109078711328306127987104542835023171357294016735877683618832425325168700884997579089387504962539366519494192569 | AY59: =IF($AP59="","",IF(AY$45="","",[1]!xsqr([1]!xsub(1,[1]!xdiv(AF59,$D$14,250),250),250))) -> 0.999999999999999852257894275676870085663431223921443441441818025714853872110798399126624447442961769335881868586920655747625638297895709424417133105473752411607700233490067710937317930432834882866021929527248034594533759849443215422800749885788253423 | AZ59: =IF($AP59="","",IF(AZ$45="","",[1]!xsqr([1]!xsub(1,[1]!xdiv(AG59,$D$14,250),250),250))) -> 0.9999999999999998398719929752067727497776860093556628632733043859261564598513048906532704989792736857232722913532606738574140690467857422063129511013549355543583485905240341048329268358531100838279633572626820393640123614530724341522208695740437000695 | BA59: =IF($AP59="","",IF(BA$45="","",[1]!xsqr([1]!xsub(1,[1]!xdiv(AH59,$D$14,250),250),250))) -> 0.9999999999999998269875935426787311309872362728256148318141369168149203763852262112725196810241012423958945150994626303200175986216826647143486116492938196648755521601704310633591550858546269591757674930068725223736350105580404498807841360163491146435 | BB59: =IF($AP59="","",IF(BB$45="","",[1]!xsqr([1]!xsub(1,[1]!xdiv(AI59,$D$14,250),250),250))) -> 0.9999999999999998136046959780895250179060664971201957710590921566997330626876141793856590497668666066065302776292295987972366421334616305788889275746734393152950481790244284933890743042541843405495389059235938248013716555450887295102730761647023710075
D60: 1.217421125 | E60: 0.0135 | F60: =IF($E60="","",IF(F$45="","",VALUE([1]!xmult([1]!xdiv([1]!xsub(AQ30,AQ60,250),$U$51,250),$D$14,250)))) -> 0.01565084593 | G60: =IF($E60="","",IF(G$45="","",VALUE([1]!xmult([1]!xdiv([1]!xsub(AR30,AR60,250),$U$51,250),$D$14,250)))) -> 0.01660829301 | H60: =IF($E60="","",IF(H$45="","",VALUE([1]!xmult([1]!xdiv([1]!xsub(AS30,AS60,250),$U$51,250),$D$14,250)))) -> 0.01756574008 | I60: =IF($E60="","",IF(I$45="","",VALUE([1]!xmult([1]!xdiv([1]!xsub(AT30,AT60,250),$U$51,250),$D$14,250)))) -> 0.01852318716 | J60: =IF($E60="","",IF(J$45="","",VALUE([1]!xmult([1]!xdiv([1]!xsub(AU30,AU60,250),$U$51,250),$D$14,250)))) -> 0.01948063424 | K60: =IF($E60="","",IF(K$45="","",VALUE([1]!xmult([1]!xdiv([1]!xsub(AV30,AV60,250),$U$51,250),$D$14,250)))) -> 0.02043808131 | L60: =IF($E60="","",IF(L$45="","",VALUE([1]!xmult([1]!xdiv([1]!xsub(AW30,AW60,250),$U$51,250),$D$14,250)))) -> 0.02139552839 | M60: =IF($E60="","",IF(M$45="","",VALUE([1]!xmult([1]!xdiv([1]!xsub(AX30,AX60,250),$U$51,250),$D$14,250)))) -> 0.02235297547 | N60: =IF($E60="","",IF(N$45="","",VALUE([1]!xmult([1]!xdiv([1]!xsub(AY30,AY60,250),$U$51,250),$D$14,250)))) -> 0.02331042254 | O60: =IF($E60="","",IF(O$45="","",VALUE([1]!xmult([1]!xdiv([1]!xsub(AZ30,AZ60,250),$U$51,250),$D$14,250)))) -> 0.02426786962 | P60: =IF($E60="","",IF(P$45="","",VALUE([1]!xmult([1]!xdiv([1]!xsub(BA30,BA60,250),$U$51,250),$D$14,250)))) -> 0.02522531669 | Q60: =IF($E60="","",IF(Q$45="","",VALUE([1]!xmult([1]!xdiv([1]!xsub(BB30,BB60,250),$U$51,250),$D$14,250)))) -> 0.02618276377 | R60: =IF($E60="","",IF(R$45="","",VALUE([1]!xmult([1]!xdiv([1]!xsub(BC30,BC60,250),$U$51,250),$D$14,250)))) ->  | W60: 0.01348375 | X60: =IF($W60="","",IF(X$45="","",[1]!xpow([1]!xadd([1]!xmult([1]!xmult($D$10,$V30,250),$W60,250),$D$11*X$45,250),2,250))) -> 11.97156753350198581773595770694778693579053259799626935178710152682507950773849216133184 | Y60: =IF($W60="","",IF(Y$45="","",[1]!xpow([1]!xadd([1]!xmult([1]!xmult($D$10,$V30,250),$W60,250),$D$11*Y$45,250),2,250))) -> 13.48110165846273808713834451761479910449918041748054553569110152682507950773849216133184 | Z60: =IF($W60="","",IF(Z$45="","",[1]!xpow([1]!xadd([1]!xmult([1]!xmult($D$10,$V30,250),$W60,250),$D$11*Z$45,250),2,250))) -> 15.08024133897911793422467523307380108149159807973840744373910152682507950773849216133184 | AA60: =IF($W60="","",IF(AA$45="","",[1]!xpow([1]!xadd([1]!xmult([1]!xmult($D$10,$V30,250),$W60,250),$D$11*AA$45,250),2,250))) -> 16.76898657505105615908878372633280305848401574199626935178710152682507950773849216133184 | AB60: =IF($W60="","",IF(AB$45="","",[1]!xpow([1]!xadd([1]!xmult([1]!xmult($D$10,$V30,250),$W60,250),$D$11*AB$45,250),2,250))) -> 18.54733736667855276173066999739180503547643340425413125983510152682507950773849216133184 | AC60: =IF($W60="","",IF(AC$45="","",[1]!xpow([1]!xadd([1]!xmult([1]!xmult($D$10,$V30,250),$W60,250),$D$11*AC$45,250),2,250))) -> 20.41529371386151737557750125245881720418508122373840744373910152682507950773849216133184 | AD60: =IF($W60="","",IF(AD$45="","",[1]!xpow([1]!xadd([1]!xmult([1]!xmult($D$10,$V30,250),$W60,250),$D$11*AD$45,250),2,250))) -> 22.37285561660012650044160974571781918117749888599626935178710152682507950773849216133184 | AE60: =IF($W60="","",IF(AE$45="","",[1]!xpow([1]!xadd([1]!xmult([1]!xmult($D$10,$V30,250),$W60,250),$D$11*AE$45,250),2,250))) -> 24.42002307489429400308349601677682115816991654825413125983510152682507950773849216133184 | AF60: =IF($W60="","",IF(AF$45="","",[1]!xpow([1]!xadd([1]!xmult([1]!xmult($D$10,$V30,250),$W60,250),$D$11*AF$45,250),2,250))) -> 26.55679608874412295007599285962781294344610405328557889202710152682507950773849216133184 | AG60: =IF($W60="","",IF(AG$45="","",[1]!xpow([1]!xadd([1]!xmult([1]!xmult($D$10,$V30,250),$W60,250),$D$11*AG$45,250),2,250))) -> 28.78317465814919684179443576510283530387098202999626935178710152682507950773849216133184 | AH60: =IF($W60="","",IF(AH$45="","",[1]!xpow([1]!xadd([1]!xmult([1]!xmult($D$10,$V30,250),$W60,250),$D$11*AH$45,250),2,250))) -> 31.09915878310981217795732311557785766429586000670695981154710152682507950773849216133184 | AI60: =IF($W60="","",IF(AI$45="","",[1]!xpow([1]!xadd([1]!xmult([1]!xmult($D$10,$V30,250),$W60,250),$D$11*AI$45,250),2,250))) -> 33.50474846362654779142881887901282906613958719728557889202710152682507950773849216133184 | AP60: 0.01348375 | AQ60: =IF($AP60="","",IF(AQ$45="","",[1]!xsqr([1]!xsub(1,[1]!xdiv(X60,$D$14,250),250),250))) -> 0.999999999999999933399173563996682392026294743854488749158308383391100911556147092992420901778127965541187764974970037338711525588349856127206397375844013963293370253052164334625647394875288940911860657986486734480394805263081799029798328220363804929 | AR60: =IF($AP60="","",IF(AR$45="","",[1]!xsqr([1]!xsub(1,[1]!xdiv(Y60,$D$14,250),250),250))) -> 0.999999999999999925001257420234527480223765888213418500487325975747650354548836770919826178742170609242558237161998513275411995433276084945741885258190430103982272365523541011808133861140667981738476170558743199075402623791147979974199164746362708398 | AS60: =IF($AP60="","",IF(AS$45="","",[1]!xsqr([1]!xsub(1,[1]!xdiv(Z60,$D$14,250),250),250))) -> 0.999999999999999916104843144413949232058084670106604303901517707225942693400497620657892068302840154710776547242212620973304962100678430241601908989061856431613378474650082951720642414292364124022307206194868639244927629590460604797698382670635957174 | AT60: =IF($AP60="","",IF(AT$45="","",[1]!xsqr([1]!xsub(1,[1]!xdiv(AA60,$D$14,250),250),250))) -> 0.999999999999999906709930736535332610622086625693690678439571797440141315617997315582341330239988057331867116127897787069782531262065414845172329132670189880225249753658179715413369339890144327096842086853732654504789713521124193677508077887572985656 | AU60: =IF($AP60="","",IF(AU$45="","",[1]!xsqr([1]!xsub(1,[1]!xdiv(AB60,$D$14,250),250),250))) -> 0.9999999999999998968165201965986776018657328964455424692684283150976542259359379305780903686819476882966141293065173807071681250093217323782921122830284860087645435934700211513305864873934280108346205471878874792406601217179577665088299711186208042425 | AV60: =IF($AP60="","",IF(AV$45="","",[1]!xsqr([1]!xsub(1,[1]!xdiv(AC60,$D$14,250),250),250))) -> 0.9999999999999998864246115246044869228551223679203121866404204396943800385244956233233281041080582909963221159383678618331900782431555183949241111482725390774904360272335518885633455420432621858183762528083535417734680389257281282624842263152668735955 | AW60: =IF($AP60="","",IF(AW$45="","",[1]!xsqr([1]!xsub(1,[1]!xdiv(AD60,$D$14,250),250),250))) -> 0.9999999999999998755342047205517786454187891767328156065021914585349012464294177196782309002521519025104284096524985687079402688988851012870326372836003215398585227041643821115187793059149599596774604284775721722408130119930092186854854125748057508215 | AX60: =IF($AP60="","",IF(AX$45="","",[1]!xsqr([1]!xsub(1,[1]!xdiv(AE60,$D$14,250),250),250))) -> 0.999999999999999864145299784441031934038976747147099195267408899332527974653797273446620158102115344683902228644397027367021322689884666330826804893407314548723208876031899154023759628540964876963058987765940747926339738718750816755779607958152730114 | AY60: =IF($AP60="","",IF(AY$45="","",[1]!xsqr([1]!xsub(1,[1]!xdiv(AF60,$D$14,250),250),250))) -> 0.9999999999999998522578967162716733865434432556557610732363999179562469413825641231873117785979547653082610611399695934975217125942588424133033646540071837118428198488408431943485637929043045574308094861147634120609854196658447627645422904249948100605 | AZ60: =IF($AP60="","",IF(AZ$45="","",[1]!xsqr([1]!xsub(1,[1]!xdiv(AG60,$D$14,250),250),250))) -> 0.9999999999999998398719955160460200768082904149182102186483570426828369857238207811280018283845796596828266026249223808384479171359638008947499148869438097123708634337216011438144830500154361668717192534358778479504917021171491886289180589305036123945 | BA60: =IF($AP60="","",IF(BA$45="","",[1]!xsqr([1]!xsub(1,[1]!xdiv(AH60,$D$14,250),250),250))) -> 0.9999999999999998269875961837624224841684368520272478668838433848992216491055142743600331497576394436436901563224754953092931321612666531282027387586085433992201430855292798498934927542548733737692894223362191586323728251781431552969478449633652941985 | BB60: =IF($AP60="","",IF(BB$45="","",[1]!xsqr([1]!xsub(1,[1]!xdiv(AI60,$D$14,250),250),250))) -> 0.9999999999999998136046987194176603972615469896142137452716703363301642049494091953101206365878301343163094640315622168366521086813709581981816575326786871972474012905966437626802914347809382893329495029590625101550774459183138104697062754811210660195
D61: 1.240282994 | E61: 0.013375 | F61: =IF($E61="","",IF(F$45="","",VALUE([1]!xmult([1]!xdiv([1]!xsub(AQ31,AQ61,250),$U$51,250),$D$14,250)))) -> 0.01717127129 | G61: =IF($E61="","",IF(G$45="","",VALUE([1]!xmult([1]!xdiv([1]!xsub(AR31,AR61,250),$U$51,250),$D$14,250)))) -> 0.01822173104 | H61: =IF($E61="","",IF(H$45="","",VALUE([1]!xmult([1]!xdiv([1]!xsub(AS31,AS61,250),$U$51,250),$D$14,250)))) -> 0.01927219079 | I61: =IF($E61="","",IF(I$45="","",VALUE([1]!xmult([1]!xdiv([1]!xsub(AT31,AT61,250),$U$51,250),$D$14,250)))) -> 0.02032265054 | J61: =IF($E61="","",IF(J$45="","",VALUE([1]!xmult([1]!xdiv([1]!xsub(AU31,AU61,250),$U$51,250),$D$14,250)))) -> 0.02137311029 | K61: =IF($E61="","",IF(K$45="","",VALUE([1]!xmult([1]!xdiv([1]!xsub(AV31,AV61,250),$U$51,250),$D$14,250)))) -> 0.02242357004 | L61: =IF($E61="","",IF(L$45="","",VALUE([1]!xmult([1]!xdiv([1]!xsub(AW31,AW61,250),$U$51,250),$D$14,250)))) -> 0.02347402979 | M61: =IF($E61="","",IF(M$45="","",VALUE([1]!xmult([1]!xdiv([1]!xsub(AX31,AX61,250),$U$51,250),$D$14,250)))) -> 0.02452448954 | N61: =IF($E61="","",IF(N$45="","",VALUE([1]!xmult([1]!xdiv([1]!xsub(AY31,AY61,250),$U$51,250),$D$14,250)))) -> 0.02557494929 | O61: =IF($E61="","",IF(O$45="","",VALUE([1]!xmult([1]!xdiv([1]!xsub(AZ31,AZ61,250),$U$51,250),$D$14,250)))) -> 0.02662540904 | P61: =IF($E61="","",IF(P$45="","",VALUE([1]!xmult([1]!xdiv([1]!xsub(BA31,BA61,250),$U$51,250),$D$14,250)))) -> 0.02767586879 | Q61: =IF($E61="","",IF(Q$45="","",VALUE([1]!xmult([1]!xdiv([1]!xsub(BB31,BB61,250),$U$51,250),$D$14,250)))) -> 0.02872632854 | R61: =IF($E61="","",IF(R$45="","",VALUE([1]!xmult([1]!xdiv([1]!xsub(BC31,BC61,250),$U$51,250),$D$14,250)))) ->  | W61: 0.0133575 | X61: =IF($W61="","",IF(X$45="","",[1]!xpow([1]!xadd([1]!xmult([1]!xmult($D$10,$V31,250),$W61,250),$D$11*X$45,250),2,250))) -> 11.97156723351236830116900012674737864825129408832325371924227503620952734640148491833344 | Y61: =IF($W61="","",IF(Y$45="","",[1]!xpow([1]!xadd([1]!xmult([1]!xmult($D$10,$V31,250),$W61,250),$D$11*Y$45,250),2,250))) -> 13.48110134012112956651137881695874988298717523586282386682627503620952734640148491833344 | Z61: =IF($W61="","",IF(Z$45="","",[1]!xpow([1]!xadd([1]!xmult([1]!xmult($D$10,$V31,250),$W61,250),$D$11*Z$45,250),2,250))) -> 15.08024100228551840953683438876506869359095597409303879303427503620952734640148491833344 | AA61: =IF($W61="","",IF(AA$45="","",[1]!xpow([1]!xadd([1]!xmult([1]!xmult($D$10,$V31,250),$W61,250),$D$11*AA$45,250),2,250))) -> 16.76898622000546563034006773837138750419473671232325371924227503620952734640148491833344 | AB61: =IF($W61="","",IF(AB$45="","",[1]!xpow([1]!xadd([1]!xmult([1]!xmult($D$10,$V31,250),$W61,250),$D$11*AB$45,250),2,250))) -> 18.54733699328097122892107886577770631479851745055346864545027503620952734640148491833344 | AC61: =IF($W61="","",IF(AC$45="","",[1]!xpow([1]!xadd([1]!xmult([1]!xmult($D$10,$V31,250),$W61,250),$D$11*AC$45,250),2,250))) -> 20.41529332211194483870790200038907754953439859809303879303427503620952734640148491833344 | AD61: =IF($W61="","",IF(AD$45="","",[1]!xpow([1]!xadd([1]!xmult([1]!xmult($D$10,$V31,250),$W61,250),$D$11*AD$45,250),2,250))) -> 22.37285520649856295951113534999539636013817933632325371924227503620952734640148491833344 | AE61: =IF($W61="","",IF(AE$45="","",[1]!xpow([1]!xadd([1]!xmult([1]!xmult($D$10,$V31,250),$W61,250),$D$11*AE$45,250),2,250))) -> 24.42002264644073945809214647740171517074196007455346864545027503620952734640148491833344 | AF61: =IF($W61="","",IF(AF$45="","",[1]!xpow([1]!xadd([1]!xmult([1]!xmult($D$10,$V31,250),$W61,250),$D$11*AF$45,250),2,250))) -> 26.55679564193857740102290115340298155721364040347432835028227503620952734640148491833344 | AG61: =IF($W61="","",IF(AG$45="","",[1]!xpow([1]!xadd([1]!xmult([1]!xmult($D$10,$V31,250),$W61,250),$D$11*AG$45,250),2,250))) -> 28.78317419299166028868220296161940521608162196032325371924227503620952734640148491833344 | AH61: =IF($W61="","",IF(AH$45="","",[1]!xpow([1]!xadd([1]!xmult([1]!xmult($D$10,$V31,250),$W61,250),$D$11*AH$45,250),2,250))) -> 31.09915829960028462078594921483582887494960351717217908820227503620952734640148491833344 | AI61: =IF($W61="","",IF(AI$45="","",[1]!xpow([1]!xadd([1]!xmult([1]!xmult($D$10,$V31,250),$W61,250),$D$11*AI$45,250),2,250))) -> 33.50474796176502923019396876502699041315708302747432835028227503620952734640148491833344 | AP61: 0.0133575 | AQ61: =IF($AP61="","",IF(AQ$45="","",[1]!xsqr([1]!xsub(1,[1]!xdiv(X61,$D$14,250),250),250))) -> 0.999999999999999933399175232914006118585302090640334803566386556796475095485743938092157877599720719313004635864286872343254213407791289542887380241458587696724796030489358255525413933339289917191814344616024248139097410180368604073810123931948207584 | AR61: =IF($AP61="","",IF(AR$45="","",[1]!xsqr([1]!xsub(1,[1]!xdiv(Y61,$D$14,250),250),250))) -> 0.999999999999999925001259191248570303597141145033000104321875322404929076295861477567150689887473345173536967932630437147889701194694141308509987926368471829971884555176796708803286300930135864329232789662440167713529039142750248737564670132085539016 | AS61: =IF($AP61="","",IF(AS$45="","",[1]!xsqr([1]!xsub(1,[1]!xdiv(Z61,$D$14,250),250),250))) -> 0.999999999999999916104845017524711152250653952545442182927466038782317986901122683534394210598655117797884875724195602970495843069249557283965113119402075318988477346890493332975898708511968093793449955078152070155968404903198162259120648637457339361 | AT61: =IF($AP61="","",IF(AT$45="","",[1]!xsqr([1]!xsub(1,[1]!xdiv(AA61,$D$14,250),250),250))) -> 0.999999999999999906709932711742813627633852734978432697732246853284471695820173176845048969650351436372704712026471626409953528006034972168417325811386292821336841474404879312202529818319194343585858413259219423746108850087686149094589859949782962582 | AU61: =IF($AP61="","",IF(AU$45="","",[1]!xsqr([1]!xsub(1,[1]!xdiv(AB61,$D$14,250),250),250))) -> 0.9999999999999998968165222739028777156966987864879077709591544848529601737306720439485596662942763532976928309745750128344502925457415387236047992340038207865536025263034404303549611119912228760481159462869483502427598726093551724787455127968168459915 | AV61: =IF($AP61="","",IF(AV$45="","",[1]!xsqr([1]!xsub(1,[1]!xdiv(AC61,$D$14,250),250),250))) -> 0.9999999999999998864246137040054061335004676782731470514912243226025257734135868429480393701811390653665880047990238932632773222962646266189322941999341312987004571049867855700632720133256716797373535683759978244492655099420844207793377563298977668135 | AW61: =IF($AP61="","",IF(AW$45="","",[1]!xsqr([1]!xsub(1,[1]!xdiv(AD61,$D$14,250),250),250))) -> 0.9999999999999998755342070020494169528833406337219258690241861239645574838841272726648309904018969411596136358955759959523711277734013354726044991971202427062588724557222598878804140176060849030025757156685267250910617069477805118997848061694050608525 | AX61: =IF($AP61="","",IF(AX$45="","",[1]!xsqr([1]!xsub(1,[1]!xdiv(AE61,$D$14,250),250),250))) -> 0.99999999999999986414530216803538933832273776273941782875283231322090468973267669505015078381605205970722454054615288539879552201232332286025446539526556389738626190024059429272528610460830912838880768463603493611087919396932050914122332405891762873 | AY61: =IF($AP61="","",IF(AY$45="","",[1]!xsqr([1]!xsub(1,[1]!xdiv(AF61,$D$14,250),250),250))) -> 0.9999999999999998522578992019627498876512408615472364669533044926580738555283893447878212554504598563637937302211356186276061629089934392035729832389529469559074879672485487027076099743689179400548174773484963953723150951375457666242088703909015654495 | AZ61: =IF($AP61="","",IF(AZ$45="","",[1]!xsqr([1]!xsub(1,[1]!xdiv(AG61,$D$14,250),250),250))) -> 0.999999999999999839871998103833815674725657927314085483062794359423778106072440002767234184022526746448693194008590049496614655794689546862538486750698716315706863904705211147516667736134993314500597040543881695539959719107598512011290306409306898839 | BA61: =IF($AP61="","",IF(BA$45="","",[1]!xsqr([1]!xsub(1,[1]!xdiv(AH61,$D$14,250),250),250))) -> 0.9999999999999998269875988736469371788953781409496698057178518340149370062544513504612443899317415066279374024709442853049754431389225963760678092626392134424321104201196546187014460293516186933723017616769227216584482259765123391583988231929781542225 | BB61: =IF($AP61="","",IF(BB$45="","",[1]!xsqr([1]!xsub(1,[1]!xdiv(AI61,$D$14,250),250),250))) -> 0.9999999999999998136047015113988941888221834129901211366554321042512587579865799783112553697114278998094735382219437665268230680943309269109246964759743118816287912858040650031266284437673282179845572532817931458149948551351613936930698769463266171215
